BodyName,ServiceAreaCategorisation,ServiceDivisionCategorisation,ExpensesType,Date,TransactionNumber,Amount,CapitalorRevenue,SupplierName,MerchantCategory
Peterborough City Council,Children's & Safeguarding,External Education Placements,Services,01/10/2018,30193103,3118.00,Revenue,Kirkstone House School,Out Of Area Education Costs
Peterborough City Council,Children's & Safeguarding,External Education Placements,Services,01/10/2018,30193104,3943.67,Revenue,Kirkstone House School,Out Of Area Education Costs
Peterborough City Council,Children's & Safeguarding,External Education Placements,Services,01/10/2018,30193106,3756.66,Revenue,Kirkstone House School,Out Of Area Education Costs
Peterborough City Council,Children's & Safeguarding,External Education Placements,Services,01/10/2018,30193107,4516.41,Revenue,Kirkstone House School,Out Of Area Education Costs
Peterborough City Council,Children's & Safeguarding,External Education Placements,Services,01/10/2018,30193109,3756.66,Revenue,Kirkstone House School,Out Of Area Education Costs
Peterborough City Council,Children's & Safeguarding,External Education Placements,Services,01/10/2018,30193110,1390.00,Revenue,Kirkstone House School,Out Of Area Education Costs
Peterborough City Council,Children's & Safeguarding,External Education Placements,Services,01/10/2018,30193112,2429.58,Revenue,Kirkstone House School,Out Of Area Education Costs
Peterborough City Council,Children's & Safeguarding,External Education Placements,Services,01/10/2018,30193113,2845.35,Revenue,Kirkstone House School,Out Of Area Education Costs
Peterborough City Council,Children's & Safeguarding,External Education Placements,Services,01/10/2018,30193114,1390.00,Revenue,Kirkstone House School,Out Of Area Education Costs
Peterborough City Council,Children's & Safeguarding,External Education Placements,Services,01/10/2018,30193115,4516.41,Revenue,Kirkstone House School,Out Of Area Education Costs
Peterborough City Council,Children's & Safeguarding,External Education Placements,Services,01/10/2018,30193116,4516.41,Revenue,Kirkstone House School,Out Of Area Education Costs
Peterborough City Council,Corporate Items,Corporate Services,Services,01/10/2018,30193651,17200.00,Revenue,Penna Plc,Consultants Fees
Peterborough City Council,Communities,Cultural Services,Rents,01/10/2018,30193970,111686.60,Revenue,Jones Lang LaSalle,Rent
Peterborough City Council,Adults,Independent Sector Placements,Services,01/10/2018,30194158,2352.00,Revenue,Sahara Community Care Services Limited,Home Care
Peterborough City Council,Adults,Independent Sector Placements,Services,01/10/2018,30194160,742.00,Revenue,Sahara Community Care Services Limited,Home Care
Peterborough City Council,Adults,Independent Sector Placements,Services,01/10/2018,30194161,896.00,Revenue,Sahara Community Care Services Limited,Home Care
Peterborough City Council,Adults,Independent Sector Placements,Services,01/10/2018,30194163,686.00,Revenue,Sahara Community Care Services Limited,Home Care
Peterborough City Council,Adults,Independent Sector Placements,Services,01/10/2018,30194167,2744.00,Revenue,Sahara Community Care Services Limited,Home Care
Peterborough City Council,Adults,Independent Sector Placements,Services,01/10/2018,30194168,980.00,Revenue,Sahara Community Care Services Limited,Home Care
Peterborough City Council,Adults,Independent Sector Placements,Services,01/10/2018,30194172,735.00,Revenue,Sahara Community Care Services Limited,Home Care
Peterborough City Council,Adults,Home Services Delivery Model,Third Party Payments,01/10/2018,30194234,44166.66,Revenue,Axiom Housing Association Ltd,Grant-Third Party
Peterborough City Council,Adults,Mental Health,Services,01/10/2018,30194246,9590.66,Revenue,Mind in Cambridgeshire Ltd,Contract Services
Peterborough City Council,Commissioning and Commercial Operations,Clare Lodge,Agency Staff,01/10/2018,30194324,1376.00,Revenue,Wrixon Care Services,External Temporary Staff
Peterborough City Council,Commissioning and Commercial Operations,Clare Lodge,Agency Staff,01/10/2018,30194325,928.00,Revenue,Wrixon Care Services,External Temporary Staff
Peterborough City Council,Commissioning and Commercial Operations,Clare Lodge,Agency Staff,01/10/2018,30194326,1928.00,Revenue,Wrixon Care Services,External Temporary Staff
Peterborough City Council,Commissioning and Commercial Operations,Clare Lodge,Agency Staff,01/10/2018,30194327,960.00,Revenue,Wrixon Care Services,External Temporary Staff
Peterborough City Council,Commissioning and Commercial Operations,Clare Lodge,Agency Staff,01/10/2018,30194331,1104.00,Revenue,Wrixon Care Services,External Temporary Staff
Peterborough City Council,Commissioning and Commercial Operations,Clare Lodge,Agency Staff,01/10/2018,30194334,1344.00,Revenue,Wrixon Care Services,External Temporary Staff
Peterborough City Council,Adults,Independent Sector Placements,Services,01/10/2018,30194415,665.00,Revenue,Sahara Community Care Services Limited,Home Care
Peterborough City Council,Adults,Independent Sector Placements,Services,01/10/2018,30194418,609.00,Revenue,Sahara Community Care Services Limited,Home Care
Peterborough City Council,Adults,Independent Sector Placements,Services,01/10/2018,30194419,1078.00,Revenue,Sahara Community Care Services Limited,Home Care
Peterborough City Council,Adults,Independent Sector Placements,Services,01/10/2018,30194421,1176.00,Revenue,Sahara Community Care Services Limited,Home Care
Peterborough City Council,Adults,Independent Sector Placements,Services,01/10/2018,30194424,546.00,Revenue,Sahara Community Care Services Limited,Home Care
Peterborough City Council,Adults,Independent Sector Placements,Services,01/10/2018,30194425,896.00,Revenue,Sahara Community Care Services Limited,Home Care
Peterborough City Council,Adults,Independent Sector Placements,Services,01/10/2018,30194446,1800.00,Revenue,FIELD HOUSE (EYE) LTD,Residential Care
Peterborough City Council,Adults,Independent Sector Placements,Services,01/10/2018,30194450,2400.00,Revenue,FIELD HOUSE (EYE) LTD,Residential Care
Peterborough City Council,Adults,Independent Sector Placements,Services,01/10/2018,30194451,942.86,Revenue,FIELD HOUSE (EYE) LTD,Residential Care
Peterborough City Council,Adults,Independent Sector Placements,Services,01/10/2018,30194453,1200.00,Revenue,FIELD HOUSE (EYE) LTD,Residential Care
Peterborough City Council,ICT,ICT,Agency Staff,01/10/2018,30194528,2000.00,Revenue,Cranford Solutions Ltd,External Temporary Staff
Peterborough City Council,Adults,Independent Sector Placements,Services,01/10/2018,30194577,651.00,Revenue,Sahara Community Care Services Limited,Home Care
Peterborough City Council,Parking Services,Parking Services,Services,01/10/2018,30194596,3666.18,Revenue,Parkeon Limited,Hired Services
Peterborough City Council,Communities,Targeted Youth Service,Services,01/10/2018,30194640,910.00,Revenue,"KeyQuest Ltd,T/a Thinking outside the Box Escape Rms",Youth Programmes
Peterborough City Council,Sustainable Growth Strategy,Environment Strategy,Services,01/10/2018,30194681,630.00,Revenue,Free Thinking Design Limited,Professional Services
Peterborough City Council,Peterborough Highway Services,Transport & Infrastructure Commissioning,Transport Expenses,01/10/2018,30194683,27625.00,Revenue,Stagecoach in Peterborough,Public Transport
Peterborough City Council,Westcombe Engineering,Westcombe Engineering,"Tools, Equipment, Furniture & Materials",01/10/2018,30195057,531.36,Revenue,Barron Clark Castings Ltd,Materials
Peterborough City Council,Westcombe Engineering,Westcombe Engineering,"Tools, Equipment, Furniture & Materials",01/10/2018,30195058,741.00,Revenue,Barron Clark Castings Ltd,Materials
Peterborough City Council,Westcombe Engineering,Westcombe Engineering,"Tools, Equipment, Furniture & Materials",01/10/2018,30195059,640.46,Revenue,Barron Clark Castings Ltd,Materials
Peterborough City Council,Corporate,Corporate,Non Revenue,01/10/2018,30195161,572.42,Capital,Bloom & Wake Ltd,Grant Payment
Peterborough City Council,HR,HR,Services,01/10/2018,30195181,1000.00,Revenue,Kealey-HR,Consultants Fees
Peterborough City Council,Adults,Independent Sector Placements,Services,01/10/2018,30195287,535.31,Revenue,Bluebird Care Peterborough,Home Care
Peterborough City Council,Development and Construction,Development Management,Agency Staff,01/10/2018,30195878,1000.21,Revenue,Reed Specialist Recruitment Limited,External Temporary Staff
Peterborough City Council,Programme Management Office,Programme Management Office,Services,01/10/2018,30195898,7788.00,Revenue,4OC Ltd,Consultants Fees
Peterborough City Council,HR,HR,Advertising,01/10/2018,30195902,3053.82,Revenue,TMP (UK) LTD,Recruitment Advertising
Peterborough City Council,Development and Construction,Development Management,Agency Staff,01/10/2018,30195991,1365.01,Revenue,Reed Specialist Recruitment Limited,External Temporary Staff
Peterborough City Council,Adults,Independent Sector Placements,Services,01/10/2018,30196042,780.40,Revenue,Swanton Community Support,Home Care
Peterborough City Council,Legal Services,Legal Services,Agency Staff,01/10/2018,30196067,892.25,Revenue,Giant Professional Limited,External Temporary Staff
Peterborough City Council,Peterborough Serco Strategic Partnership,PSSP Retained Services,Services,01/10/2018,30196281,10000.00,Revenue,Pitney Bowes Limited,Postage
Peterborough City Council,Peterborough Serco Strategic Partnership,PSSP Retained Services,"Tools, Equipment, Furniture & Materials",01/10/2018,30196516,783.32,Revenue,Konica Minolta Bus.Sol. East Ltd,Computer Hardware
Peterborough City Council,Commissioning and Commercial Operations,Early Years & Quality Improvement,Services,01/10/2018,30196556,1296.75,Revenue,Redacted Personal Data,Grant Payment
Peterborough City Council,Adults,Independent Sector Placements,Services,01/10/2018,30196604,2057.14,Revenue,LESTER HALL APARTMENTS LTD,Residential Care
Peterborough City Council,Adults,Independent Sector Placements,Services,01/10/2018,30196605,3400.00,Revenue,LESTER HALL APARTMENTS LTD,Residential Care
Peterborough City Council,Adults,Independent Sector Placements,Services,01/10/2018,30196659,945.00,Revenue,Sagecare Ltd,Home Care
Peterborough City Council,Adults,Independent Sector Placements,Services,01/10/2018,30196737,2321.93,Revenue,Athena (Ashlynn Grange),Residential Care
Peterborough City Council,Children's & Safeguarding,Access to Resources & Specialist Commissioning,Services,01/10/2018,30196739,3814.20,Revenue,Byrne House Ltd,Boarding Out Fees
Peterborough City Council,Children's & Safeguarding,Access to Resources & Specialist Commissioning,Services,01/10/2018,30196740,3814.20,Revenue,Byrne House Ltd,Boarding Out Fees
Peterborough City Council,Children's & Safeguarding,Access to Resources & Specialist Commissioning,Services,01/10/2018,30196741,3814.20,Revenue,Byrne House Ltd,Boarding Out Fees
Peterborough City Council,Children's & Safeguarding,Access to Resources & Specialist Commissioning,Services,01/10/2018,30196742,3498.35,Revenue,Byrne House Ltd,Boarding Out Fees
Peterborough City Council,Children's & Safeguarding,Access to Resources & Specialist Commissioning,Services,01/10/2018,30196744,3941.34,Revenue,Byrne House Ltd,Boarding Out Fees
Peterborough City Council,Children's & Safeguarding,Access to Resources & Specialist Commissioning,Services,01/10/2018,30196745,3941.34,Revenue,Byrne House Ltd,Boarding Out Fees
Peterborough City Council,Children's & Safeguarding,Access to Resources & Specialist Commissioning,Services,01/10/2018,30196746,5721.30,Revenue,Byrne House Ltd,Boarding Out Fees
Peterborough City Council,Children's & Safeguarding,Access to Resources & Specialist Commissioning,Services,01/10/2018,30196748,3305.64,Revenue,Byrne House Ltd,Boarding Out Fees
Peterborough City Council,Development and Construction,Development Management,Repair & Maintenance of Buildings,01/10/2018,30196818,6000.00,Revenue,JD Wright Ltd,Premises Repairs
Peterborough City Council,Development and Construction,Development Management,Repair & Maintenance of Buildings,01/10/2018,30196819,2220.00,Revenue,JD Wright Ltd,Premises Repairs
Peterborough City Council,Children's & Safeguarding,Commissioning - CSC,Third Party Payments,02/10/2018,8000128220,681035.67,Revenue,IAS TACT,Third Party Payments - Contract
Peterborough City Council,Adults,Independent Sector Placements,Services,03/10/2018,30193580,5285.00,Revenue,Voyage,Home Care
Peterborough City Council,Adults,Independent Sector Placements,Services,03/10/2018,30193581,4198.72,Revenue,Voyage,Home Care
Peterborough City Council,Adults,Independent Sector Placements,Services,03/10/2018,30193582,4291.04,Revenue,Voyage,Home Care
Peterborough City Council,Corporate Items,Corporate Services,Agency Staff,03/10/2018,30193623,14310.00,Revenue,Penna Plc,External Temporary Staff
Peterborough City Council,Corporate Items,Corporate Services,Agency Staff,03/10/2018,30193638,21238.00,Revenue,Penna Plc,External Temporary Staff
Peterborough City Council,Financial Services,Finance,Agency Staff,03/10/2018,30193645,19194.00,Revenue,Penna Plc,External Temporary Staff
Peterborough City Council,Corporate Property,Strategic Projects,Agency Staff,03/10/2018,30193660,17612.00,Revenue,Penna Plc,External Temporary Staff
Peterborough City Council,Legal Services,Legal Services,Agency Staff,03/10/2018,30193667,731.48,Revenue,Venn Group Ltd,External Temporary Staff
Peterborough City Council,Legal Services,Legal Services,Agency Staff,03/10/2018,30193671,525.17,Revenue,Venn Group Ltd,External Temporary Staff
Peterborough City Council,Corporate Property,Strategic Projects,Services,03/10/2018,30193676,2083.34,Revenue,NPS Peterborough Ltd,Consultants Fees
Peterborough City Council,Legal Services,Legal Services,Agency Staff,03/10/2018,30193679,1650.00,Revenue,Venn Group Ltd,External Temporary Staff
Peterborough City Council,Legal Services,Legal Services,Agency Staff,03/10/2018,30193685,806.51,Revenue,Venn Group Ltd,External Temporary Staff
Peterborough City Council,Legal Services,Legal Services,Agency Staff,03/10/2018,30193686,684.83,Revenue,Venn Group Ltd,External Temporary Staff
Peterborough City Council,Legal Services,Legal Services,Agency Staff,03/10/2018,30193689,904.98,Revenue,Venn Group Ltd,External Temporary Staff
Peterborough City Council,Adults,Independent Sector Placements,Services,03/10/2018,30193902,3100.00,Revenue,Alysia Caring Ltd T/a Cherry Blossom care Home,Residential Care
Peterborough City Council,Adults,Independent Sector Placements,Services,03/10/2018,30193904,2825.04,Revenue,Alysia Caring Ltd T/a Cherry Blossom care Home,Residential Care
Peterborough City Council,Adults,Independent Sector Placements,Services,03/10/2018,30193905,1847.60,Revenue,Alysia Caring Ltd T/a Cherry Blossom care Home,Residential Care
Peterborough City Council,Adults,Independent Sector Placements,Services,03/10/2018,30193907,2128.00,Revenue,Alysia Caring Ltd T/a Cherry Blossom care Home,Residential Care
Peterborough City Council,Adults,Independent Sector Placements,Services,03/10/2018,30193952,1023.84,Revenue,Alysia Caring Ltd T/a Cherry Blossom care Home,Residential Care
Peterborough City Council,Adults,Independent Sector Placements,Services,03/10/2018,30193953,1883.32,Revenue,Alysia Caring Ltd T/a Cherry Blossom care Home,Residential Care
Peterborough City Council,Adults,Independent Sector Placements,Services,03/10/2018,30193954,3100.00,Revenue,Alysia Caring Ltd T/a Cherry Blossom care Home,Residential Care
Peterborough City Council,Adults,Independent Sector Placements,Services,03/10/2018,30193955,2930.04,Revenue,Alysia Caring Ltd T/a Cherry Blossom care Home,Residential Care
Peterborough City Council,Adults,Independent Sector Placements,Services,03/10/2018,30193956,825.88,Revenue,Alysia Caring Ltd T/a Cherry Blossom care Home,Residential Care
Peterborough City Council,Adults,Independent Sector Placements,Services,03/10/2018,30193957,2737.04,Revenue,Alysia Caring Ltd T/a Cherry Blossom care Home,Residential Care
Peterborough City Council,Adults,Independent Sector Placements,Services,03/10/2018,30193958,2460.04,Revenue,Alysia Caring Ltd T/a Cherry Blossom care Home,Residential Care
Peterborough City Council,Adults,Independent Sector Placements,Services,03/10/2018,30193959,1773.88,Revenue,Alysia Caring Ltd T/a Cherry Blossom care Home,Residential Care
Peterborough City Council,Commissioning and Commercial Operations,Clare Lodge,Agency Staff,03/10/2018,30194333,1360.00,Revenue,Wrixon Care Services,External Temporary Staff
Peterborough City Council,Commissioning and Commercial Operations,Clare Lodge,Agency Staff,03/10/2018,30194335,1008.00,Revenue,Wrixon Care Services,External Temporary Staff
Peterborough City Council,Adults,Independent Sector Placements,Services,03/10/2018,30194456,1535.56,Revenue,FIELD HOUSE (EYE) LTD,Residential Care
Peterborough City Council,Adults,Independent Sector Placements,Services,03/10/2018,30194457,1269.48,Revenue,FIELD HOUSE (EYE) LTD,Residential Care
Peterborough City Council,Adults,Independent Sector Placements,Services,03/10/2018,30194458,1110.44,Revenue,FIELD HOUSE (EYE) LTD,Residential Care
Peterborough City Council,Adults,Independent Sector Placements,Services,03/10/2018,30194571,4535.72,Revenue,Voyage,Home Care
Peterborough City Council,Adults,Independent Sector Placements,Services,03/10/2018,30194573,5671.72,Revenue,Voyage,Home Care
Peterborough City Council,Adults,Independent Sector Placements,Services,03/10/2018,30194578,6966.72,Revenue,Autism Care (UK) Ltd,Residential Care
Peterborough City Council,Adults,Independent Sector Placements,Services,03/10/2018,30194581,589.44,Revenue,Alysia Caring Ltd T/a Cherry Blossom care Home,Residential Care
Peterborough City Council,Public Health,PH Commissioning,Services,03/10/2018,30194582,244685.50,Revenue,Cambs & P'boro NHS Foundation Trust,Hired Services
Peterborough City Council,Commissioning and Commercial Operations,Commissioning,Third Party Payments,03/10/2018,30194583,9209.00,Revenue,Cambs & P'boro NHS Foundation Trust,Third Party Payments - Contract
Peterborough City Council,Public Health,PH Commissioning,Third Party Payments,03/10/2018,30194587,63250.00,Revenue,Cambs & P'boro NHS Foundation Trust,Third Party Payments - Contract
Peterborough City Council,Corporate,Corporate,Non Revenue,03/10/2018,30194602,540.02,Capital,Specialised Movers Ltd,Building And Site Works
Peterborough City Council,Corporate,Corporate,Non Revenue,03/10/2018,30194605,15370.99,Capital,Specialised Movers Ltd,Building And Site Works
Peterborough City Council,Peterborough Highway Services,Network and Traffic Management,Services,03/10/2018,30194607,1293.16,Revenue,Johnston Press Midlands Division,Advertising
Peterborough City Council,Peterborough Highway Services,Network and Traffic Management,Services,03/10/2018,30194608,1666.74,Revenue,Johnston Press Midlands Division,Advertising
Peterborough City Council,Adults,Independent Sector Placements,Services,03/10/2018,30194621,5149.76,Revenue,LEONARD CHESHIRE DISABILITY,Residential Care
Peterborough City Council,Adults,Independent Sector Placements,Services,03/10/2018,30194626,522.95,Revenue,Deafblind Enablement Ltd,Home Care
Peterborough City Council,Adults,Independent Sector Placements,Services,03/10/2018,30194627,5354.44,Revenue,Accomplish Group Limited (Orchard Hill),Residential Care
Peterborough City Council,Adults,Independent Sector Placements,Services,03/10/2018,30194628,2701.64,Revenue,LEONARD CHESHIRE DISABILITY,Residential Care
Peterborough City Council,Adults,Independent Sector Placements,Services,03/10/2018,30194629,5354.44,Revenue,Accomplish Group Limited (Orchard Hill),Residential Care
Peterborough City Council,Peterborough Highway Services,Highway & Drainage Control,Agency Staff,03/10/2018,30194647,1197.90,Revenue,Matchtech,External Temporary Staff
Peterborough City Council,Legal Services,Legal Services,Services,03/10/2018,30194652,1040.00,Revenue,"Elliott, Ms Margot",Legal Costs
Peterborough City Council,Director's Office,Director's Office,Interview & Training Expenses,03/10/2018,30194695,1000.00,Revenue,CIPFA,Training
Peterborough City Council,Children's & Safeguarding,Early Help ASC/CSC,Services,03/10/2018,30194703,3750.00,Revenue,The Ministry of Parenting,Hired Services
Peterborough City Council,Commissioning and Commercial Operations,Commissioning,Services,03/10/2018,30194705,870.00,Revenue,121 Social Care Limited,Hired Services
Peterborough City Council,Commissioning and Commercial Operations,Clare Lodge,"Tools, Equipment, Furniture & Materials",03/10/2018,30194709,3959.28,Revenue,Zip Heaters (uk) Limited,Equipment Purchase
Peterborough City Council,Development and Construction,Planning Compliance,Agency Staff,03/10/2018,30194710,1811.70,Revenue,Park Avenue Recruitment Limited,External Temporary Staff
Peterborough City Council,Commissioning and Commercial Operations,Commissioning,Services,03/10/2018,30194724,2852.85,Revenue,BDP Social Care Ltd,Hired Services
Peterborough City Council,Children's & Safeguarding,Early Help ASC/CSC,Services,03/10/2018,30194726,2612.50,Revenue,BDP Social Care Ltd,Hired Services
Peterborough City Council,HR,HR WFD & Training,Interview & Training Expenses,03/10/2018,30194731,950.00,Revenue,Anglia Ruskin University,Training
Peterborough City Council,Westcombe Engineering,Westcombe Engineering,"Tools, Equipment, Furniture & Materials",03/10/2018,30194734,3361.70,Revenue,AALCO,Materials
Peterborough City Council,Westcombe Engineering,Westcombe Engineering,Services,03/10/2018,30194736,954.00,Revenue,BSi Management Systems,Professional Services
Peterborough City Council,Corporate Property,Commercial Propety,Services,03/10/2018,30194741,900.00,Revenue,Barker Storey Matthews,Valuations
Peterborough City Council,Corporate Property,Commercial Propety,Services,03/10/2018,30194742,850.00,Revenue,Barker Storey Matthews,Valuations
Peterborough City Council,Children's & Safeguarding,Access to Resources & Specialist Commissioning,Services,03/10/2018,30194752,9000.00,Revenue,A & T Home Limited,Boarding Out Fees
Peterborough City Council,Children's & Safeguarding,Child Health,Services,03/10/2018,30194754,13109.25,Revenue,Circles Network,Purchased Social Care Services
Peterborough City Council,Westcombe Engineering,Westcombe Engineering,"Tools, Equipment, Furniture & Materials",03/10/2018,30194762,915.80,Revenue,AALCO,Materials
Peterborough City Council,Adults,OP/PD/SI,"Tools, Equipment, Furniture & Materials",03/10/2018,30194789,89603.43,Revenue,NRS Healthcare,Occupational Therapy Equipment
Peterborough City Council,Adults,OP/PD/SI,"Tools, Equipment, Furniture & Materials",03/10/2018,30194790,1160.04,Revenue,NRS Healthcare,Occupational Therapy Equipment
Peterborough City Council,Adults,Mental Capacity Act & DoLs,Services,03/10/2018,30194791,1299.80,Revenue,SS Psychiatric Services Ltd,Hired Services
Peterborough City Council,Adults,Independent Sector Placements,Services,03/10/2018,30194820,423.79,Revenue,Sagecare Ltd,Home Care
Peterborough City Council,Adults,Independent Sector Placements,Services,03/10/2018,30194820,360.46,Revenue,Sagecare Ltd,Home Care
Peterborough City Council,Adults,Independent Sector Placements,Services,03/10/2018,30194844,1232.52,Revenue,FIELD HOUSE (EYE) LTD,Residential Care
Peterborough City Council,Adults,Independent Sector Placements,Services,03/10/2018,30194845,1269.48,Revenue,FIELD HOUSE (EYE) LTD,Residential Care
Peterborough City Council,Adults,Independent Sector Placements,Services,03/10/2018,30194847,952.84,Revenue,FIELD HOUSE (EYE) LTD,Residential Care
Peterborough City Council,Adults,Independent Sector Placements,Services,03/10/2018,30194848,1315.08,Revenue,FIELD HOUSE (EYE) LTD,Residential Care
Peterborough City Council,Adults,Independent Sector Placements,Services,03/10/2018,30194850,2320.00,Revenue,FIELD HOUSE (EYE) LTD,Residential Care
Peterborough City Council,Adults,Independent Sector Placements,Services,03/10/2018,30194868,2300.00,Revenue,FIELD HOUSE (EYE) LTD,Residential Care
Peterborough City Council,Adults,Independent Sector Placements,Services,03/10/2018,30194869,1241.84,Revenue,FIELD HOUSE (EYE) LTD,Residential Care
Peterborough City Council,Adults,Independent Sector Placements,Services,03/10/2018,30194871,1741.64,Revenue,FIELD HOUSE (EYE) LTD,Residential Care
Peterborough City Council,Commissioning and Commercial Operations,Clare Lodge,Agency Staff,03/10/2018,30194906,747.63,Revenue,Reed Specialist Recruitment Limited,External Temporary Staff
Peterborough City Council,Adults,Independent Sector Placements,Services,03/10/2018,30195108,7274.40,Revenue,Voyage,Home Care
Peterborough City Council,Corporate Property,Office Accomodation,Cleaning & Domestic Supplies,03/10/2018,30195119,1791.42,Revenue,Beebys Ltd,Cleaning
Peterborough City Council,Adults,Independent Sector Placements,Services,03/10/2018,30195133,-1992.86,Revenue,Alysia Caring Ltd T/a Cherry Blossom care Home,Residential Care
Peterborough City Council,Peterborough Highway Services,Transport & Infrastructure Commissioning,Services,03/10/2018,30195194,1945.00,Revenue,Swarco Traffic Ltd,Infrastructure Maintenance
Peterborough City Council,Adults,Independent Sector Placements,Services,03/10/2018,30195206,568.26,Revenue,Sagecare Ltd,Home Care
Peterborough City Council,Adults,Independent Sector Placements,Services,03/10/2018,30195207,1042.97,Revenue,Sagecare Ltd,Home Care
Peterborough City Council,Adults,Community Team,Agency Staff,03/10/2018,30195243,976.80,Revenue,Medicare First Ltd,External Temporary Staff
Peterborough City Council,Adults,Independent Sector Placements,Services,03/10/2018,30195325,4869.20,Revenue,Voyage,Residential Care
Peterborough City Council,Adults,Independent Sector Placements,Services,03/10/2018,30195326,1931.20,Revenue,Voyage,Home Care
Peterborough City Council,Adults,Independent Sector Placements,Services,03/10/2018,30195327,4382.88,Revenue,Voyage,Home Care
Peterborough City Council,Adults,Independent Sector Placements,Services,03/10/2018,30195328,5615.32,Revenue,Voyage,Home Care
Peterborough City Council,Adults,Independent Sector Placements,Services,03/10/2018,30195329,4559.00,Revenue,Voyage,Home Care
Peterborough City Council,Adults,Independent Sector Placements,Services,03/10/2018,30195330,3743.92,Revenue,Voyage,Home Care
Peterborough City Council,Adults,Independent Sector Placements,Services,03/10/2018,30195331,1830.72,Revenue,Voyage,Home Care
Peterborough City Council,Adults,Independent Sector Placements,Services,03/10/2018,30195332,3095.60,Revenue,Voyage,Home Care
Peterborough City Council,Regulatory Services,Regulatory Services,"Tools, Equipment, Furniture & Materials",03/10/2018,30195437,2521.33,Revenue,VIP-System Ltd,Equipment Purchase
Peterborough City Council,City Centre Management,"Markets, Tourism & Events","Tools, Equipment, Furniture & Materials",03/10/2018,30195439,1860.00,Revenue,R J Mason Blacksmith & Farrier,Equipment Hire
Peterborough City Council,Adults,Independent Sector Placements,Services,03/10/2018,30195466,4160.60,Revenue,Voyage,Home Care
Peterborough City Council,Adults,Independent Sector Placements,Services,03/10/2018,30195468,5354.88,Revenue,Voyage,Residential Care
Peterborough City Council,Adults,Independent Sector Placements,Services,03/10/2018,30195470,2328.80,Revenue,Voyage,Home Care
Peterborough City Council,Adults,Independent Sector Placements,Services,03/10/2018,30195472,1931.20,Revenue,Voyage,Home Care
Peterborough City Council,Adults,Independent Sector Placements,Services,03/10/2018,30195479,9542.40,Revenue,Voyage,Home Care
Peterborough City Council,Adults,Strategic Commissioning - Management,Third Party Payments,03/10/2018,30195511,63750.00,Revenue,VoiceAbility,Third Party Payments - Contract
Peterborough City Council,Westcombe Engineering,Westcombe Engineering,"Tools, Equipment, Furniture & Materials",03/10/2018,30195517,1160.55,Revenue,Dieselprods limited,Materials
Peterborough City Council,Corporate,Corporate,Non Revenue,03/10/2018,30195600,582.00,Capital,Weightmans LLP,Legal Fees
Peterborough City Council,Adults,Independent Sector Placements,Services,03/10/2018,30195643,2385.60,Revenue,Voyage,Home Care
Peterborough City Council,Adults,Independent Sector Placements,Services,03/10/2018,30195644,1988.00,Revenue,Voyage,Home Care
Peterborough City Council,Children's & Safeguarding,Access to Resources & Specialist Commissioning,Services,03/10/2018,30195753,1371.43,Revenue,Florinee Homes Ltd,Boarding Out Fees
Peterborough City Council,Development and Construction,Development Management,Agency Staff,03/10/2018,30195888,1568.80,Revenue,Reed Specialist Recruitment Limited,External Temporary Staff
Peterborough City Council,Development and Construction,Planning Compliance,Agency Staff,03/10/2018,30195890,1266.84,Revenue,Reed Specialist Recruitment Limited,External Temporary Staff
Peterborough City Council,Adults,Home Services Delivery Model,Agency Staff,03/10/2018,30195891,773.32,Revenue,Reed Specialist Recruitment Limited,External Temporary Staff
Peterborough City Council,Adults,Independent Sector Placements,Services,03/10/2018,30195966,1797.80,Revenue,THE LODGE TRUST,Residential Care
Peterborough City Council,Corporate,Corporate,Non Revenue,03/10/2018,30195985,2583.60,Capital,Reed Specialist Recruitment Limited,Consultants Fees
Peterborough City Council,Peterborough Highway Services,Network and Traffic Management,Services,03/10/2018,30196098,3856.07,Revenue,Dynniq UK Ltd,Infrastructure Maintenance
Peterborough City Council,Corporate,Corporate,Non Revenue,03/10/2018,30196138,40618.31,Capital,R G Carter Cambridge Ltd,Building And Site Works
Peterborough City Council,Westcombe Engineering,Westcombe Engineering,"Tools, Equipment, Furniture & Materials",03/10/2018,30196241,572.50,Revenue,Barron Clark Castings Ltd,Materials
Peterborough City Council,Westcombe Engineering,Westcombe Engineering,"Tools, Equipment, Furniture & Materials",03/10/2018,30196242,536.49,Revenue,Barron Clark Castings Ltd,Materials
Peterborough City Council,Westcombe Engineering,Westcombe Engineering,"Tools, Equipment, Furniture & Materials",03/10/2018,30196243,531.36,Revenue,Barron Clark Castings Ltd,Materials
Peterborough City Council,Westcombe Engineering,Westcombe Engineering,"Tools, Equipment, Furniture & Materials",03/10/2018,30196245,1899.80,Revenue,Barron Clark Castings Ltd,Materials
Peterborough City Council,Westcombe Engineering,Westcombe Engineering,"Tools, Equipment, Furniture & Materials",03/10/2018,30196247,531.36,Revenue,Barron Clark Castings Ltd,Materials
Peterborough City Council,Westcombe Engineering,Westcombe Engineering,"Tools, Equipment, Furniture & Materials",03/10/2018,30196249,640.50,Revenue,Barron Clark Castings Ltd,Materials
Peterborough City Council,Westcombe Engineering,Westcombe Engineering,"Tools, Equipment, Furniture & Materials",03/10/2018,30196250,1163.00,Revenue,Barron Clark Castings Ltd,Materials
Peterborough City Council,Westcombe Engineering,Westcombe Engineering,"Tools, Equipment, Furniture & Materials",03/10/2018,30196251,572.50,Revenue,Barron Clark Castings Ltd,Materials
Peterborough City Council,Adults,Independent Sector Placements,Services,03/10/2018,30196254,3237.35,Revenue,FIELD HOUSE (EYE) LTD,Residential Care
Peterborough City Council,Corporate Items,Corporate Services,Agency Staff,03/10/2018,30196292,8610.00,Revenue,Penna Plc,External Temporary Staff
Peterborough City Council,Corporate,Corporate,Non Revenue,03/10/2018,30196371,9027.41,Capital,Princebuild Limited,Building And Site Works
Peterborough City Council,Adults,Independent Sector Placements,Services,03/10/2018,30196449,5332.80,Revenue,Voyage,Residential Care
Peterborough City Council,Adults,Independent Sector Placements,Services,03/10/2018,30196452,3322.80,Revenue,Voyage,Home Care
Peterborough City Council,Legal Services,Legal Services,Agency Staff,03/10/2018,30196458,1058.25,Revenue,Giant Professional Limited,External Temporary Staff
Peterborough City Council,Commissioning and Commercial Operations,Commissioning Team,Services,03/10/2018,30196510,1470.90,Revenue,Ray Worsley Education Consultancy,Consultants Fees
Peterborough City Council,Adults,Block Contracts,Contract Hire and Operating Leases,03/10/2018,30196569,10068.08,Revenue,Sense,Hired Transport
Peterborough City Council,Children's & Safeguarding,Access to Resources & Specialist Commissioning,Services,03/10/2018,30196743,3941.34,Revenue,Byrne House Ltd,Boarding Out Fees
Peterborough City Council,Adults,Home Services Delivery Model,Agency Staff,03/10/2018,30196747,1048.74,Revenue,Reed Specialist Recruitment Limited,External Temporary Staff
Peterborough City Council,Corporate,Corporate,Non Revenue,03/10/2018,30196749,2583.60,Capital,Reed Specialist Recruitment Limited,Consultants Fees
Peterborough City Council,Peterborough Highway Services,Highway Services - HoS,Agency Staff,03/10/2018,30196750,937.41,Revenue,Reed Specialist Recruitment Limited,External Temporary Staff
Peterborough City Council,Development and Construction,Development Management,Agency Staff,03/10/2018,30196757,1568.80,Revenue,Reed Specialist Recruitment Limited,External Temporary Staff
Peterborough City Council,Corporate Property,Office Accomodation,Agency Staff,03/10/2018,30196758,6641.33,Revenue,Reed Specialist Recruitment Limited,External Temporary Staff
Peterborough City Council,Commissioning and Commercial Operations,Clare Lodge,Agency Staff,03/10/2018,30196763,718.88,Revenue,Reed Specialist Recruitment Limited,External Temporary Staff
Peterborough City Council,Corporate Property,Office Accomodation,Agency Staff,03/10/2018,30196764,5692.57,Revenue,Reed Specialist Recruitment Limited,External Temporary Staff
Peterborough City Council,Peterborough Highway Services,Highway & Drainage Control,Agency Staff,03/10/2018,30196766,576.00,Revenue,Reed Specialist Recruitment Limited,External Temporary Staff
Peterborough City Council,Legal Services,Legal Services,Agency Staff,03/10/2018,30196769,1508.15,Revenue,Reed Specialist Recruitment Limited,External Temporary Staff
Peterborough City Council,Financial Services,Finance,Agency Staff,03/10/2018,30196770,675.64,Revenue,Reed Specialist Recruitment Limited,External Temporary Staff
Peterborough City Council,Development and Construction,Development Management,Agency Staff,03/10/2018,30196772,1000.21,Revenue,Reed Specialist Recruitment Limited,External Temporary Staff
Peterborough City Council,Development and Construction,Development Management,Agency Staff,03/10/2018,30196774,1365.01,Revenue,Reed Specialist Recruitment Limited,External Temporary Staff
Peterborough City Council,Peterborough Highway Services,Highway Services - HoS,Agency Staff,03/10/2018,30196775,1235.80,Revenue,Reed Specialist Recruitment Limited,External Temporary Staff
Peterborough City Council,Regulatory Services,Regulatory Services,Agency Staff,03/10/2018,30196808,1243.77,Revenue,Reed Specialist Recruitment Limited,External Temporary Staff
Peterborough City Council,Legal Services,Legal Services,Agency Staff,03/10/2018,30196826,2025.38,Revenue,Reed Specialist Recruitment Limited,External Temporary Staff
Peterborough City Council,Peterborough Highway Services,Highway & Drainage Control,Agency Staff,03/10/2018,30196830,1235.80,Revenue,Reed Specialist Recruitment Limited,External Temporary Staff
Peterborough City Council,Corporate,Corporate,Non Revenue,03/10/2018,30196832,2268.60,Capital,Reed Specialist Recruitment Limited,Consultants Fees
Peterborough City Council,Children's & Safeguarding,Early Help ASC/CSC,Agency Staff,03/10/2018,30196833,543.39,Revenue,Reed Specialist Recruitment Limited,External Temporary Staff
Peterborough City Council,Children's & Safeguarding,Access to Resources & Specialist Commissioning,Services,03/10/2018,30196876,12150.00,Revenue,Sixteen Plus Limited,Boarding Out Fees
Peterborough City Council,Children's & Safeguarding,Access to Resources & Specialist Commissioning,Services,03/10/2018,30196879,7049.99,Revenue,Sixteen Plus Limited,Boarding Out Fees
Peterborough City Council,Children's & Safeguarding,Access to Resources & Specialist Commissioning,Services,03/10/2018,30196881,3078.57,Revenue,Sixteen Plus Limited,Boarding Out Fees
Peterborough City Council,Corporate,Corporate,Non Revenue,03/10/2018,30196894,588.80,Capital,Allworks Home Improvements Ltd,Grant Payment
Peterborough City Council,Corporate,Corporate,Non Revenue,03/10/2018,30196899,5592.01,Capital,Nadeem Construction Ltd,Grant Payment
Peterborough City Council,Corporate,Corporate,Non Revenue,03/10/2018,30196901,1579.39,Capital,Lynch Healthcare Limited,Grant Payment
Peterborough City Council,Peterborough Highway Services,Highway Services - HoS,Agency Staff,03/10/2018,30196908,4090.24,Revenue,AECOM I & E Ltd,External Temporary Staff
Peterborough City Council,Education,Special Educational Needs / Inclusion,Services,03/10/2018,30196914,1650.00,Revenue,PSI(UK)Ltd,Consultants Fees
Peterborough City Council,Children's & Safeguarding,Access to Resources & Specialist Commissioning,Services,03/10/2018,30196923,1519.28,Revenue,PC Homes,Boarding Out Fees
Peterborough City Council,Children's & Safeguarding,Access to Resources & Specialist Commissioning,Services,03/10/2018,30196924,2002.28,Revenue,PC Homes,Boarding Out Fees
Peterborough City Council,Children's & Safeguarding,Access to Resources & Specialist Commissioning,Services,03/10/2018,30196925,1519.28,Revenue,PC Homes,Boarding Out Fees
Peterborough City Council,Children's & Safeguarding,Access to Resources & Specialist Commissioning,Services,03/10/2018,30196926,1519.28,Revenue,PC Homes,Boarding Out Fees
Peterborough City Council,Children's & Safeguarding,Access to Resources & Specialist Commissioning,Services,03/10/2018,30196928,1519.28,Revenue,PC Homes,Boarding Out Fees
Peterborough City Council,Children's & Safeguarding,Access to Resources & Specialist Commissioning,Services,03/10/2018,30196929,1519.28,Revenue,PC Homes,Boarding Out Fees
Peterborough City Council,Children's & Safeguarding,Access to Resources & Specialist Commissioning,Services,03/10/2018,30196930,1519.28,Revenue,PC Homes,Boarding Out Fees
Peterborough City Council,Children's & Safeguarding,Access to Resources & Specialist Commissioning,Services,03/10/2018,30196931,1519.28,Revenue,PC Homes,Boarding Out Fees
Peterborough City Council,Children's & Safeguarding,Access to Resources & Specialist Commissioning,Services,03/10/2018,30196932,1519.28,Revenue,PC Homes,Boarding Out Fees
Peterborough City Council,Corporate Property,Office Accomodation,Services,03/10/2018,30196934,6359.75,Revenue,GSL Dardan Ltd,Security
Peterborough City Council,Corporate Property,Office Accomodation,Services,03/10/2018,30196936,9502.90,Revenue,GSL Dardan Ltd,Security
Peterborough City Council,HR,HR,Services,03/10/2018,30196952,11512.88,Revenue,Edenred,Childcare
Peterborough City Council,Communities,Housing,Services,03/10/2018,30196955,10960.54,Revenue,DA Rosalia Hotel,Temporary Accommodation Costs
Peterborough City Council,Communities,Housing,Services,03/10/2018,30196957,2975.00,Revenue,Singh and Sons Property Management Ltd,Temporary Accommodation Costs
Peterborough City Council,Communities,Housing,Services,03/10/2018,30196958,2275.00,Revenue,Singh and Sons Property Management Ltd,Temporary Accommodation Costs
Peterborough City Council,Communities,Housing,Services,03/10/2018,30196959,3220.00,Revenue,Singh and Sons Property Management Ltd,Temporary Accommodation Costs
Peterborough City Council,Communities,Housing,Services,03/10/2018,30196960,3150.00,Revenue,Singh and Sons Property Management Ltd,Temporary Accommodation Costs
Peterborough City Council,Adults,Independent Sector Placements,Services,03/10/2018,30196962,647.55,Revenue,MEARS GROUP,Home Care
Peterborough City Council,Adults,Independent Sector Placements,Services,03/10/2018,30196967,2197.65,Revenue,Merit Home Care Ltd,Home Care
Peterborough City Council,ICT,ICT,Agency Staff,03/10/2018,30196969,678.80,Revenue,Reed Specialist Recruitment Limited,External Temporary Staff
Peterborough City Council,Corporate Property,Commercial Propety,Repair & Maintenance of Buildings,03/10/2018,30197003,3007.30,Revenue,Opportunity Peterborough,Other Occupancy Costs
Peterborough City Council,Communities,Housing,Services,03/10/2018,30197005,11438.00,Revenue,Eastfield Guesthouse,Temporary Accommodation Costs
Peterborough City Council,Communities,Housing,Services,03/10/2018,30197006,3150.00,Revenue,Singh and Sons Property Management Ltd,Temporary Accommodation Costs
Peterborough City Council,Communities,Housing,Services,03/10/2018,30197007,2275.00,Revenue,Singh and Sons Property Management Ltd,Temporary Accommodation Costs
Peterborough City Council,Communities,Housing,Services,03/10/2018,30197008,3220.00,Revenue,Singh and Sons Property Management Ltd,Temporary Accommodation Costs
Peterborough City Council,Communities,Housing,Services,03/10/2018,30197009,2975.00,Revenue,Singh and Sons Property Management Ltd,Temporary Accommodation Costs
Peterborough City Council,Communities,Service Director - Adults & Communities,Third Party Payments,03/10/2018,30197019,10000.00,Revenue,P'Boro Council For Voluntary Srvs (PCVS),Grant-Third Party
Peterborough City Council,Corporate,Corporate,Non Revenue,03/10/2018,30197072,583148.19,Balance Sheet,Teachers Pensions,Pensions
Peterborough City Council,Regulatory Services,Regulatory Services,Agency Staff,03/10/2018,30197161,990.63,Revenue,Reed Specialist Recruitment Limited,External Temporary Staff
Peterborough City Council,Adults,Other Services,Third Party Payments,03/10/2018,30197162,12791.00,Revenue,Healthwatch Cambridgeshire and Peterborough,Third Party Payments - Contract
Peterborough City Council,Communities,Community Capacity,Services,03/10/2018,30197168,632.59,Revenue,Businesswatch UK Fire & Security,Security
Peterborough City Council,Commissioning and Commercial Operations,Clare Lodge,Agency Staff,03/10/2018,30197177,862.67,Revenue,Reed Specialist Recruitment Limited,External Temporary Staff
Peterborough City Council,Adults,Strategic Commissioning - Management,Agency Staff,03/10/2018,30197179,646.54,Revenue,Reed Specialist Recruitment Limited,External Temporary Staff
Peterborough City Council,Children's & Safeguarding,Children's Social Care,Agency Staff,03/10/2018,30197185,5240.70,Revenue,Service Care Solutions Ltd,External Temporary Staff
Peterborough City Council,Corporate,Corporate,Non Revenue,03/10/2018,30197196,27502.50,Capital,Lindum Group Ltd,Building And Site Works
Peterborough City Council,Adults,Independent Sector Placements,Services,03/10/2018,8000124959,922.50,Revenue,Sagecare Ltd,Home Care
Peterborough City Council,Adults,Independent Sector Placements,Services,03/10/2018,8000124961,832.50,Revenue,Sagecare Ltd,Home Care
Peterborough City Council,Adults,Independent Sector Placements,Services,03/10/2018,8000124962,3930.00,Revenue,Sagecare Ltd,Home Care
Peterborough City Council,Adults,Independent Sector Placements,Services,03/10/2018,8000124967,630.00,Revenue,Sagecare Ltd,Home Care
Peterborough City Council,Adults,Independent Sector Placements,Services,03/10/2018,8000124969,735.00,Revenue,Sagecare Ltd,Home Care
Peterborough City Council,Adults,Independent Sector Placements,Services,03/10/2018,8000124977,873.18,Revenue,Sagecare Ltd,Home Care
Peterborough City Council,Adults,Independent Sector Placements,Services,03/10/2018,8000124979,2522.52,Revenue,Sagecare Ltd,Home Care
Peterborough City Council,Adults,Independent Sector Placements,Services,03/10/2018,8000124985,582.12,Revenue,Sagecare Ltd,Home Care
Peterborough City Council,Adults,Independent Sector Placements,Services,03/10/2018,8000124991,717.26,Revenue,Sagecare Ltd,Home Care
Peterborough City Council,Adults,Independent Sector Placements,Services,03/10/2018,8000124992,873.18,Revenue,Sagecare Ltd,Home Care
Peterborough City Council,Adults,Independent Sector Placements,Services,03/10/2018,8000124997,873.18,Revenue,Sagecare Ltd,Home Care
Peterborough City Council,Adults,Independent Sector Placements,Services,03/10/2018,8000124998,533.61,Revenue,Sagecare Ltd,Home Care
Peterborough City Council,Adults,Independent Sector Placements,Services,03/10/2018,8000125000,970.20,Revenue,Sagecare Ltd,Home Care
Peterborough City Council,Adults,Independent Sector Placements,Services,03/10/2018,8000125002,679.14,Revenue,Sagecare Ltd,Home Care
Peterborough City Council,Adults,Independent Sector Placements,Services,03/10/2018,8000125005,942.48,Revenue,Sagecare Ltd,Home Care
Peterborough City Council,Adults,Independent Sector Placements,Services,03/10/2018,8000125006,2628.78,Revenue,Sagecare Ltd,Home Care
Peterborough City Council,Adults,Independent Sector Placements,Services,03/10/2018,8000125008,582.12,Revenue,Sagecare Ltd,Home Care
Peterborough City Council,Adults,Independent Sector Placements,Services,03/10/2018,8000125014,679.14,Revenue,Sagecare Ltd,Home Care
Peterborough City Council,Adults,Independent Sector Placements,Services,03/10/2018,8000125015,1049.90,Revenue,Sagecare Ltd,Home Care
Peterborough City Council,Adults,Independent Sector Placements,Services,03/10/2018,8000125016,1746.36,Revenue,Sagecare Ltd,Home Care
Peterborough City Council,Adults,Independent Sector Placements,Services,03/10/2018,8000125017,561.33,Revenue,Sagecare Ltd,Home Care
Peterborough City Council,Adults,Independent Sector Placements,Services,03/10/2018,8000125018,666.44,Revenue,Sagecare Ltd,Home Care
Peterborough City Council,Adults,Independent Sector Placements,Services,03/10/2018,8000125021,970.20,Revenue,Sagecare Ltd,Home Care
Peterborough City Council,Adults,Independent Sector Placements,Services,03/10/2018,8000125025,1940.40,Revenue,Sagecare Ltd,Home Care
Peterborough City Council,Adults,Independent Sector Placements,Services,03/10/2018,8000125028,575.19,Revenue,Sagecare Ltd,Home Care
Peterborough City Council,Adults,Independent Sector Placements,Services,03/10/2018,8000125029,664.13,Revenue,Sagecare Ltd,Home Care
Peterborough City Council,Adults,Independent Sector Placements,Services,03/10/2018,8000125034,1552.32,Revenue,Sagecare Ltd,Home Care
Peterborough City Council,Adults,Independent Sector Placements,Services,03/10/2018,8000125039,1954.26,Revenue,Sagecare Ltd,Home Care
Peterborough City Council,Adults,Independent Sector Placements,Services,03/10/2018,8000125040,1552.32,Revenue,Sagecare Ltd,Home Care
Peterborough City Council,Adults,Independent Sector Placements,Services,03/10/2018,8000125041,526.68,Revenue,Sagecare Ltd,Home Care
Peterborough City Council,Adults,Independent Sector Placements,Services,03/10/2018,8000125042,1344.42,Revenue,Sagecare Ltd,Home Care
Peterborough City Council,Adults,Independent Sector Placements,Services,03/10/2018,8000125043,582.12,Revenue,Sagecare Ltd,Home Care
Peterborough City Council,Adults,Independent Sector Placements,Services,03/10/2018,8000125045,803.88,Revenue,Sagecare Ltd,Home Care
Peterborough City Council,Adults,Independent Sector Placements,Services,03/10/2018,8000125046,1223.15,Revenue,Sagecare Ltd,Home Care
Peterborough City Council,Adults,Independent Sector Placements,Services,03/10/2018,8000125047,873.18,Revenue,Sagecare Ltd,Home Care
Peterborough City Council,Adults,Independent Sector Placements,Services,03/10/2018,8000125048,672.21,Revenue,Sagecare Ltd,Home Care
Peterborough City Council,Adults,Independent Sector Placements,Services,03/10/2018,8000125049,1940.40,Revenue,Sagecare Ltd,Home Care
Peterborough City Council,Adults,Independent Sector Placements,Services,03/10/2018,8000125050,1732.50,Revenue,Sagecare Ltd,Home Care
Peterborough City Council,Adults,Independent Sector Placements,Services,03/10/2018,8000125053,970.20,Revenue,Sagecare Ltd,Home Care
Peterborough City Council,Adults,Independent Sector Placements,Services,03/10/2018,8000125056,1746.36,Revenue,Sagecare Ltd,Home Care
Peterborough City Council,Adults,Independent Sector Placements,Services,03/10/2018,8000125060,620.24,Revenue,Sagecare Ltd,Home Care
Peterborough City Council,Adults,Independent Sector Placements,Services,03/10/2018,8000125061,845.23,Revenue,Sagecare Ltd,Home Care
Peterborough City Council,Adults,Independent Sector Placements,Services,03/10/2018,8000125064,776.16,Revenue,Sagecare Ltd,Home Care
Peterborough City Council,Adults,Independent Sector Placements,Services,03/10/2018,8000125066,679.14,Revenue,Sagecare Ltd,Home Care
Peterborough City Council,Adults,Independent Sector Placements,Services,03/10/2018,8000125068,1905.75,Revenue,Sagecare Ltd,Home Care
Peterborough City Council,Adults,Independent Sector Placements,Services,03/10/2018,8000125073,637.56,Revenue,Sagecare Ltd,Home Care
Peterborough City Council,Adults,Independent Sector Placements,Services,03/10/2018,8000125074,970.20,Revenue,Sagecare Ltd,Home Care
Peterborough City Council,Adults,Independent Sector Placements,Services,03/10/2018,8000125075,2328.48,Revenue,Sagecare Ltd,Home Care
Peterborough City Council,Adults,Independent Sector Placements,Services,03/10/2018,8000125077,779.63,Revenue,Sagecare Ltd,Home Care
Peterborough City Council,Adults,Independent Sector Placements,Services,03/10/2018,8000125208,665.28,Revenue,Sagecare Ltd,Home Care
Peterborough City Council,Adults,Independent Sector Placements,Services,03/10/2018,8000125209,679.14,Revenue,Sagecare Ltd,Home Care
Peterborough City Council,Adults,Independent Sector Placements,Services,03/10/2018,8000125211,1704.78,Revenue,Sagecare Ltd,Home Care
Peterborough City Council,Education,HTS & CSC Transport,Contract Hire and Operating Leases,03/10/2018,8000126441,600.00,Revenue,City Cabs Pboro Ltd,Hired Transport
Peterborough City Council,Education,HTS & CSC Transport,Contract Hire and Operating Leases,03/10/2018,8000126442,922.20,Revenue,City Cabs Pboro Ltd,Hired Transport
Peterborough City Council,Education,HTS & CSC Transport,Contract Hire and Operating Leases,03/10/2018,8000126443,1293.60,Revenue,City Cabs Pboro Ltd,Hired Transport
Peterborough City Council,Education,HTS & CSC Transport,Contract Hire and Operating Leases,03/10/2018,8000126449,697.12,Revenue,Redacted Personal Data,Hired Transport
Peterborough City Council,Education,HTS & CSC Transport,Contract Hire and Operating Leases,03/10/2018,8000126450,1311.75,Revenue,Redacted Personal Data,Hired Transport
Peterborough City Council,Peterborough Highway Services,Transport & Infrastructure Commissioning,Contract Hire and Operating Leases,03/10/2018,8000126451,1420.11,Revenue,Redacted Personal Data,Hired Transport
Peterborough City Council,Education,HTS & CSC Transport,Contract Hire and Operating Leases,03/10/2018,8000126452,592.50,Revenue,Redacted Personal Data,Hired Transport
Peterborough City Council,Education,HTS & CSC Transport,Contract Hire and Operating Leases,03/10/2018,8000126453,1680.41,Revenue,Redacted Personal Data,Hired Transport
Peterborough City Council,Education,HTS & CSC Transport,Contract Hire and Operating Leases,03/10/2018,8000126462,1042.35,Revenue,R T Enterprises Ltd T/A Royal Taxis,Hired Transport
Peterborough City Council,Education,HTS & CSC Transport,Contract Hire and Operating Leases,03/10/2018,8000126463,750.50,Revenue,R T Enterprises Ltd T/A Royal Taxis,Hired Transport
Peterborough City Council,Education,HTS & CSC Transport,Contract Hire and Operating Leases,03/10/2018,8000126479,549.73,Revenue,Redacted Personal Data,Hired Transport
Peterborough City Council,Corporate Property,Office Accomodation,Rents,03/10/2018,8000128220,953681.51,Revenue,Jones Lang LaSalle,Rent
Peterborough City Council,Corporate,Corporate,Non Revenue,04/10/2018,8000128220,208763.40,Capital,Weightmans LLP,Land & Building Acquisition
Peterborough City Council,Communities,Housing,Services,05/10/2018,30190656,560.00,Revenue,Redacted Personal Data,Financial Assistance
Peterborough City Council,Peterborough Serco Strategic Partnership,Peterborough Serco Strategic Partnership,Services,05/10/2018,30191803,790.00,Revenue,Rossendales C B Ltd,Debt Collection
Peterborough City Council,Communities,Housing,Services,05/10/2018,30194120,560.00,Revenue,Redacted Personal Data,Financial Assistance
Peterborough City Council,Adults,Finance,Third Party Payments,05/10/2018,30194209,4800.00,Revenue,Cross Keys Homes,Third Party Payments - Contract
Peterborough City Council,Commissioning and Commercial Operations,Clare Lodge,Agency Staff,05/10/2018,30194337,2320.00,Revenue,Wrixon Care Services,External Temporary Staff
Peterborough City Council,Commissioning and Commercial Operations,Clare Lodge,Agency Staff,05/10/2018,30194339,1344.00,Revenue,Wrixon Care Services,External Temporary Staff
Peterborough City Council,Adults,Independent Sector Placements,Services,05/10/2018,30194371,1559.60,Revenue,Goldcare Homes t/a The Tudors Care Home,Residential Care
Peterborough City Council,Adults,Independent Sector Placements,Services,05/10/2018,30194373,942.96,Revenue,Goldcare Homes t/a The Tudors Care Home,Residential Care
Peterborough City Council,Adults,Independent Sector Placements,Services,05/10/2018,30194374,1061.36,Revenue,Goldcare Homes t/a The Tudors Care Home,Residential Care
Peterborough City Council,Adults,Independent Sector Placements,Services,05/10/2018,30194376,670.04,Revenue,Goldcare Homes t/a The Tudors Care Home,Residential Care
Peterborough City Council,Adults,Independent Sector Placements,Services,05/10/2018,30194377,1369.48,Revenue,Goldcare Homes t/a The Tudors Care Home,Residential Care
Peterborough City Council,Adults,Independent Sector Placements,Services,05/10/2018,30194378,1188.68,Revenue,Goldcare Homes t/a The Tudors Care Home,Residential Care
Peterborough City Council,Adults,Independent Sector Placements,Services,05/10/2018,30194379,1023.84,Revenue,Goldcare Homes t/a The Tudors Care Home,Residential Care
Peterborough City Council,Adults,Independent Sector Placements,Services,05/10/2018,30194380,1305.48,Revenue,Goldcare Homes t/a The Tudors Care Home,Residential Care
Peterborough City Council,Commissioning and Commercial Operations,Clare Lodge,Agency Staff,05/10/2018,30194382,504.00,Revenue,Wrixon Care Services,External Temporary Staff
Peterborough City Council,Adults,Independent Sector Placements,Services,05/10/2018,30194568,-3368.36,Revenue,Mencap,Residential Care
Peterborough City Council,Adults,Independent Sector Placements,Services,05/10/2018,30194624,6543.32,Revenue,Mencap,Home Care
Peterborough City Council,Adults,Independent Sector Placements,Services,05/10/2018,30194625,979.80,Revenue,Mencap,Home Care
Peterborough City Council,Adults,Independent Sector Placements,Services,05/10/2018,30194630,2540.00,Revenue,EXCELCARE GLENNFIELD HOUSE,Residential Care
Peterborough City Council,Adults,Independent Sector Placements,Services,05/10/2018,30194631,1811.24,Revenue,Excelcare Aliwal Manor,Residential Care
Peterborough City Council,Adults,Independent Sector Placements,Services,05/10/2018,30194632,3400.00,Revenue,EXCELCARE GLENNFIELD HOUSE,Residential Care
Peterborough City Council,Adults,Block Contracts,Third Party Payments,05/10/2018,30194672,3479.44,Revenue,Longueville Court (Barchester),Third Party Payments - Contract
Peterborough City Council,Westcombe Engineering,Westcombe Engineering,"Tools, Equipment, Furniture & Materials",05/10/2018,30194740,11165.00,Revenue,BWC Aluminium Ltd,Materials
Peterborough City Council,Corporate Property,Commercial Propety,Services,05/10/2018,30194767,700.00,Revenue,Barker Storey Matthews,Valuations
Peterborough City Council,ICT,ICT,Agency Staff,05/10/2018,30194769,2500.00,Revenue,Cranford Solutions Ltd,External Temporary Staff
Peterborough City Council,Education,Special Educational Needs / Inclusion,Services,05/10/2018,30194774,1690.00,Revenue,MySign Tuition,Hired Services
Peterborough City Council,Children's & Safeguarding,Access to Resources & Specialist Commissioning,Services,05/10/2018,30194782,840.00,Revenue,Florinee Homes Ltd,Boarding Out Fees
Peterborough City Council,Children's & Safeguarding,Access to Resources & Specialist Commissioning,Services,05/10/2018,30194783,840.00,Revenue,Florinee Homes Ltd,Boarding Out Fees
Peterborough City Council,Adults,Mental Capacity Act & DoLs,Services,05/10/2018,30194784,1118.80,Revenue,SS Psychiatric Services Ltd,Hired Services
Peterborough City Council,Adults,Mental Capacity Act & DoLs,Services,05/10/2018,30194792,1116.40,Revenue,SS Psychiatric Services Ltd,Hired Services
Peterborough City Council,Adults,Independent Sector Placements,Services,05/10/2018,30194822,5686.80,Revenue,Lifeways Community Care,Residential Care
Peterborough City Council,Adults,Independent Sector Placements,Services,05/10/2018,30194823,584.23,Revenue,Mencap,Home Care
Peterborough City Council,Adults,Independent Sector Placements,Services,05/10/2018,30194849,1855.60,Revenue,FIELD HOUSE (EYE) LTD,Residential Care
Peterborough City Council,Adults,Independent Sector Placements,Services,05/10/2018,30194870,1847.60,Revenue,FIELD HOUSE (EYE) LTD,Residential Care
Peterborough City Council,Adults,Independent Sector Placements,Services,05/10/2018,30194872,1365.28,Revenue,FIELD HOUSE (EYE) LTD,Residential Care
Peterborough City Council,Adults,Independent Sector Placements,Services,05/10/2018,30194873,1747.60,Revenue,FIELD HOUSE (EYE) LTD,Residential Care
Peterborough City Council,Adults,Independent Sector Placements,Services,05/10/2018,30194874,1423.72,Revenue,FIELD HOUSE (EYE) LTD,Residential Care
Peterborough City Council,Adults,Independent Sector Placements,Services,05/10/2018,30194875,2400.00,Revenue,FIELD HOUSE (EYE) LTD,Residential Care
Peterborough City Council,Adults,Independent Sector Placements,Services,05/10/2018,30194926,1630.00,Revenue,ABBEYGATE REST HOME,Residential Care
Peterborough City Council,Adults,Independent Sector Placements,Services,05/10/2018,30194930,7439.20,Revenue,Mencap,Home Care
Peterborough City Council,Adults,Independent Sector Placements,Services,05/10/2018,30194931,568.00,Revenue,Mencap,Home Care
Peterborough City Council,Adults,Independent Sector Placements,Services,05/10/2018,30194932,1107.60,Revenue,Mencap,Home Care
Peterborough City Council,Adults,Independent Sector Placements,Services,05/10/2018,30194933,1476.80,Revenue,Mencap,Home Care
Peterborough City Council,Adults,Independent Sector Placements,Services,05/10/2018,30194935,5492.24,Revenue,Anchor Homes,Residential Care
Peterborough City Council,Corporate,Corporate,Non Revenue,05/10/2018,30194941,5340.00,Capital,M J Greaves,Grant Payment
Peterborough City Council,Adults,Independent Sector Placements,Services,05/10/2018,30194946,681.60,Revenue,Mencap,Home Care
Peterborough City Council,Adults,Independent Sector Placements,Services,05/10/2018,30194948,852.00,Revenue,Mencap,Home Care
Peterborough City Council,Adults,Independent Sector Placements,Services,05/10/2018,30194951,2215.20,Revenue,Mencap,Home Care
Peterborough City Council,Adults,Independent Sector Placements,Services,05/10/2018,30194952,8106.00,Revenue,Mencap,Home Care
Peterborough City Council,Adults,Independent Sector Placements,Services,05/10/2018,30194953,562.40,Revenue,Mencap,Home Care
Peterborough City Council,Adults,Independent Sector Placements,Services,05/10/2018,30194967,3687.04,Revenue,Mencap,Home Care
Peterborough City Council,Education,Special Educational Needs / Inclusion,Services,05/10/2018,30194969,602.70,Revenue,Caireen Sutherland Consultancy,Consultants Fees
Peterborough City Council,Adults,Independent Sector Placements,Services,05/10/2018,30194971,1680.00,Revenue,EXCELCARE GLENNFIELD HOUSE,Residential Care
Peterborough City Council,Adults,Independent Sector Placements,Services,05/10/2018,30194972,568.00,Revenue,Mencap,Home Care
Peterborough City Council,Marketing & Communications,Marketing & Communications,Services,05/10/2018,30194973,550.00,Revenue,Living Villages Magazine,Advertising
Peterborough City Council,Adults,Independent Sector Placements,Services,05/10/2018,30194974,1940.68,Revenue,Mencap,Home Care
Peterborough City Council,Adults,Independent Sector Placements,Services,05/10/2018,30194976,2034.40,Revenue,Mencap,Home Care
Peterborough City Council,Adults,Independent Sector Placements,Services,05/10/2018,30194977,7277.40,Revenue,Mencap,Home Care
Peterborough City Council,Adults,Independent Sector Placements,Services,05/10/2018,30194978,3200.00,Revenue,EXCELCARE GLENNFIELD HOUSE,Residential Care
Peterborough City Council,Adults,Independent Sector Placements,Services,05/10/2018,30194980,852.00,Revenue,Mencap,Home Care
Peterborough City Council,Adults,Independent Sector Placements,Services,05/10/2018,30194983,1500.64,Revenue,Mencap,Home Care
Peterborough City Council,Adults,Independent Sector Placements,Services,05/10/2018,30194984,695.80,Revenue,Mencap,Home Care
Peterborough City Council,Adults,Independent Sector Placements,Services,05/10/2018,30194985,8767.56,Revenue,Home From Home Care Limited,Residential Care
Peterborough City Council,Adults,Independent Sector Placements,Services,05/10/2018,30194986,2223.00,Revenue,Mencap,Home Care
Peterborough City Council,Adults,Independent Sector Placements,Services,05/10/2018,30194987,8823.48,Revenue,Home From Home Care Limited,Residential Care
Peterborough City Council,Adults,Independent Sector Placements,Services,05/10/2018,30194988,3720.00,Revenue,EXCELCARE GLENNFIELD HOUSE,Residential Care
Peterborough City Council,Adults,Independent Sector Placements,Services,05/10/2018,30194989,10856.48,Revenue,Home From Home Care Limited,Residential Care
Peterborough City Council,Adults,Independent Sector Placements,Services,05/10/2018,30194990,7860.68,Revenue,Home From Home Care Limited,Residential Care
Peterborough City Council,Adults,Independent Sector Placements,Services,05/10/2018,30194992,3869.88,Revenue,Consensus Support Services Ltd,Residential Care
Peterborough City Council,Adults,Independent Sector Placements,Services,05/10/2018,30194993,2413.40,Revenue,Linkage Community Trust Limited,Residential Care
Peterborough City Council,Adults,Independent Sector Placements,Services,05/10/2018,30194994,2442.20,Revenue,Benell Care Services Ltd,Residential Care
Peterborough City Council,Adults,Independent Sector Placements,Services,05/10/2018,30194995,1488.24,Revenue,Omega Oak Barn,Residential Care
Peterborough City Council,Adults,Independent Sector Placements,Services,05/10/2018,30195068,690.21,Revenue,K2 CARE LTD,Home Care
Peterborough City Council,Adults,Independent Sector Placements,Services,05/10/2018,30195069,2604.00,Revenue,K2 CARE LTD,Home Care
Peterborough City Council,Adults,Independent Sector Placements,Services,05/10/2018,30195070,2940.00,Revenue,K2 CARE LTD,Home Care
Peterborough City Council,Adults,Independent Sector Placements,Services,05/10/2018,30195071,1083.60,Revenue,K2 CARE LTD,Home Care
Peterborough City Council,Adults,Independent Sector Placements,Services,05/10/2018,30195072,1365.00,Revenue,K2 CARE LTD,Home Care
Peterborough City Council,Adults,Independent Sector Placements,Services,05/10/2018,30195173,1163.86,Revenue,K2 CARE LTD,Home Care
Peterborough City Council,Adults,Independent Sector Placements,Services,05/10/2018,30195174,980.00,Revenue,K2 CARE LTD,Home Care
Peterborough City Council,Adults,Independent Sector Placements,Services,05/10/2018,30195175,1174.13,Revenue,K2 CARE LTD,Home Care
Peterborough City Council,Adults,Independent Sector Placements,Services,05/10/2018,30195176,590.57,Revenue,K2 CARE LTD,Home Care
Peterborough City Council,Adults,Independent Sector Placements,Services,05/10/2018,30195178,616.00,Revenue,K2 CARE LTD,Home Care
Peterborough City Council,Adults,Independent Sector Placements,Services,05/10/2018,30195180,952.00,Revenue,K2 CARE LTD,Home Care
Peterborough City Council,Adults,Independent Sector Placements,Services,05/10/2018,30195211,3423.52,Revenue,Sanctuary Home Care Ltd (Southwood House),Residential Care
Peterborough City Council,Adults,Independent Sector Placements,Services,05/10/2018,30195218,1548.40,Revenue,K2 CARE LTD,Home Care
Peterborough City Council,Children's & Safeguarding,Children's Social Care,Agency Staff,05/10/2018,30195221,1401.85,Revenue,Swim Recruitment,External Temporary Staff
Peterborough City Council,Communities,Housing,Services,05/10/2018,30195233,11970.38,Revenue,DA Rosalia Hotel,Temporary Accommodation Costs
Peterborough City Council,Adults,Independent Sector Placements,Services,05/10/2018,30195295,3292.00,Revenue,Richmond Fellowship (The),Residential Care
Peterborough City Council,Adults,Independent Sector Placements,Services,05/10/2018,30195296,3244.00,Revenue,Richmond Fellowship (The),Residential Care
Peterborough City Council,Adults,Independent Sector Placements,Services,05/10/2018,30195333,2152.74,Revenue,K2 CARE LTD,Home Care
Peterborough City Council,Adults,Independent Sector Placements,Services,05/10/2018,30195334,2958.66,Revenue,K2 CARE LTD,Home Care
Peterborough City Council,Adults,Independent Sector Placements,Services,05/10/2018,30195563,834.76,Revenue,Avery House (Peterborough) t/a Brighterkind,Residential Care
Peterborough City Council,Adults,Independent Sector Placements,Services,05/10/2018,30195564,973.92,Revenue,Avery House (Peterborough) t/a Brighterkind,Residential Care
Peterborough City Council,Adults,Independent Sector Placements,Services,05/10/2018,30195565,1473.20,Revenue,Avery House (Peterborough) t/a Brighterkind,Residential Care
Peterborough City Council,Adults,Independent Sector Placements,Services,05/10/2018,30195566,1610.56,Revenue,Avery House (Peterborough) t/a Brighterkind,Residential Care
Peterborough City Council,Adults,Independent Sector Placements,Services,05/10/2018,30195567,1211.16,Revenue,Avery House (Peterborough) t/a Brighterkind,Residential Care
Peterborough City Council,Adults,Independent Sector Placements,Services,05/10/2018,30195568,2210.60,Revenue,Avery House (Peterborough) t/a Brighterkind,Residential Care
Peterborough City Council,Adults,Independent Sector Placements,Services,05/10/2018,30195569,1269.48,Revenue,Avery House (Peterborough) t/a Brighterkind,Residential Care
Peterborough City Council,Adults,Independent Sector Placements,Services,05/10/2018,30195570,1461.36,Revenue,Avery House (Peterborough) t/a Brighterkind,Residential Care
Peterborough City Council,Adults,Independent Sector Placements,Services,05/10/2018,30195572,1281.48,Revenue,Avery House (Peterborough) t/a Brighterkind,Residential Care
Peterborough City Council,Adults,Independent Sector Placements,Services,05/10/2018,30195573,947.48,Revenue,Avery House (Peterborough) t/a Brighterkind,Residential Care
Peterborough City Council,Adults,Independent Sector Placements,Services,05/10/2018,30195574,919.04,Revenue,Avery House (Peterborough) t/a Brighterkind,Residential Care
Peterborough City Council,Adults,Independent Sector Placements,Services,05/10/2018,30195575,1269.48,Revenue,Avery House (Peterborough) t/a Brighterkind,Residential Care
Peterborough City Council,Adults,Independent Sector Placements,Services,05/10/2018,30195576,1089.96,Revenue,Avery House (Peterborough) t/a Brighterkind,Residential Care
Peterborough City Council,Adults,Independent Sector Placements,Services,05/10/2018,30195598,1482.68,Revenue,Avery House (Peterborough) t/a Brighterkind,Residential Care
Peterborough City Council,Adults,Independent Sector Placements,Services,05/10/2018,30195602,1656.52,Revenue,Avery House (Peterborough) t/a Brighterkind,Residential Care
Peterborough City Council,Adults,Independent Sector Placements,Services,05/10/2018,30195605,1605.48,Revenue,Avery House (Peterborough) t/a Brighterkind,Residential Care
Peterborough City Council,Adults,Independent Sector Placements,Services,05/10/2018,30195606,2841.35,Revenue,Avery House (Peterborough) t/a Brighterkind,Residential Care
Peterborough City Council,Adults,Independent Sector Placements,Services,05/10/2018,30195611,1869.48,Revenue,Avery House (Peterborough) t/a Brighterkind,Residential Care
Peterborough City Council,Adults,Independent Sector Placements,Services,05/10/2018,30195612,731.83,Revenue,Avery House (Peterborough) t/a Brighterkind,Residential Care
Peterborough City Council,Adults,Independent Sector Placements,Services,05/10/2018,30195615,2179.24,Revenue,Avery House (Peterborough) t/a Brighterkind,Residential Care
Peterborough City Council,Adults,Independent Sector Placements,Services,05/10/2018,30195618,1623.84,Revenue,Avery House (Peterborough) t/a Brighterkind,Residential Care
Peterborough City Council,Adults,Independent Sector Placements,Services,05/10/2018,30195619,1531.76,Revenue,Avery House (Peterborough) t/a Brighterkind,Residential Care
Peterborough City Council,Adults,Independent Sector Placements,Services,05/10/2018,30195620,1397.24,Revenue,Avery House (Peterborough) t/a Brighterkind,Residential Care
Peterborough City Council,Adults,Independent Sector Placements,Services,05/10/2018,30195624,1159.12,Revenue,Avery House (Peterborough) t/a Brighterkind,Residential Care
Peterborough City Council,Adults,Independent Sector Placements,Services,05/10/2018,30195625,883.84,Revenue,Avery House (Peterborough) t/a Brighterkind,Residential Care
Peterborough City Council,Adults,Independent Sector Placements,Services,05/10/2018,30195627,1495.84,Revenue,Avery House (Peterborough) t/a Brighterkind,Residential Care
Peterborough City Council,Adults,Independent Sector Placements,Services,05/10/2018,30195634,1901.67,Revenue,Avery House (Peterborough) t/a Brighterkind,Residential Care
Peterborough City Council,Adults,Independent Sector Placements,Services,05/10/2018,30195654,1394.16,Revenue,The Regard Partnership Limited,Residential Care
Peterborough City Council,Peterborough Serco Strategic Partnership,PSSP Retained Services,Services,05/10/2018,30195693,1968.72,Revenue,Whistl UK Ltd,Postage
Peterborough City Council,Children's & Safeguarding,Child Health,"Tools, Equipment, Furniture & Materials",05/10/2018,30195709,875.99,Revenue,The MSR Service,Equipment Maintenance
Peterborough City Council,Corporate Property,Office Accomodation,Catering,05/10/2018,30195797,682.29,Revenue,Cooler Aid Ltd,Catering Provisions
Peterborough City Council,Adults,Independent Sector Placements,Services,05/10/2018,30195836,10800.00,Revenue,Consensus (2013) Ltd,Residential Care
Peterborough City Council,ICT,ICT,Agency Staff,05/10/2018,30195992,678.80,Revenue,Reed Specialist Recruitment Limited,External Temporary Staff
Peterborough City Council,Communities,Housing,Services,05/10/2018,30196024,11387.00,Revenue,Eastfield Guesthouse,Temporary Accommodation Costs
Peterborough City Council,Legal Services,Legal Services,Services,05/10/2018,30196290,1237.50,Revenue,Spinks Notary,Professional Fees
Peterborough City Council,Westcombe Engineering,Westcombe Engineering,"Tools, Equipment, Furniture & Materials",05/10/2018,30196323,614.90,Revenue,Barron Clark Castings Ltd,Materials
Peterborough City Council,Westcombe Engineering,Westcombe Engineering,"Tools, Equipment, Furniture & Materials",05/10/2018,30196325,531.36,Revenue,Barron Clark Castings Ltd,Materials
Peterborough City Council,Westcombe Engineering,Westcombe Engineering,"Tools, Equipment, Furniture & Materials",05/10/2018,30196326,1145.00,Revenue,Barron Clark Castings Ltd,Materials
Peterborough City Council,Westcombe Engineering,Westcombe Engineering,"Tools, Equipment, Furniture & Materials",05/10/2018,30196327,507.30,Revenue,Barron Clark Castings Ltd,Materials
Peterborough City Council,Westcombe Engineering,Westcombe Engineering,"Tools, Equipment, Furniture & Materials",05/10/2018,30196331,531.36,Revenue,Barron Clark Castings Ltd,Materials
Peterborough City Council,Corporate,Corporate,Non Revenue,05/10/2018,30196383,71523.43,Capital,Enterprise Managed Services Limited,Building And Site Works
Peterborough City Council,Peterborough Highway Services,Transport & Infrastructure Commissioning,Services,05/10/2018,30196415,2280.37,Revenue,The K A Wing Group Ltd,Infrastructure Maintenance
Peterborough City Council,Communities,Housing,Services,05/10/2018,30196493,825.00,Revenue,Redacted Personal Data,Financial Assistance
Peterborough City Council,Communities,Housing,Services,05/10/2018,30196494,1400.00,Revenue,Redacted Personal Data,Financial Assistance
Peterborough City Council,Communities,Housing,Services,05/10/2018,30196497,1250.00,Revenue,Progressive Lets,Financial Assistance
Peterborough City Council,Communities,Housing,Services,05/10/2018,30196533,795.00,Revenue,Redacted Personal Data,Financial Assistance
Peterborough City Council,ICT,ICT,Agency Staff,05/10/2018,30196807,678.80,Revenue,Reed Specialist Recruitment Limited,External Temporary Staff
Peterborough City Council,Regulatory Services,Regulatory Services,Agency Staff,05/10/2018,30196831,1283.53,Revenue,Reed Specialist Recruitment Limited,External Temporary Staff
Peterborough City Council,Development and Construction,Planning Compliance,Agency Staff,05/10/2018,30196834,691.60,Revenue,Reed Specialist Recruitment Limited,External Temporary Staff
Peterborough City Council,Communities,Housing,Services,05/10/2018,30196887,600.00,Revenue,Redacted Personal Data,Financial Assistance
Peterborough City Council,Communities,Housing,Services,05/10/2018,30196888,560.00,Revenue,RWP Property Management Ltd,Financial Assistance
Peterborough City Council,Communities,Housing,Services,05/10/2018,30196889,650.00,Revenue,Redacted Personal Data,Financial Assistance
Peterborough City Council,Communities,Housing,Services,05/10/2018,30196890,825.00,Revenue,Redacted Personal Data,Financial Assistance
Peterborough City Council,Communities,Housing,Services,05/10/2018,30196891,560.00,Revenue,Property Squires,Financial Assistance
Peterborough City Council,Communities,Housing,Services,05/10/2018,30196892,825.00,Revenue,Redacted Personal Data,Financial Assistance
Peterborough City Council,Communities,Housing,Services,05/10/2018,30196893,650.00,Revenue,Redacted Personal Data,Financial Assistance
Peterborough City Council,Communities,Housing,Services,05/10/2018,30196896,500.00,Revenue,English Estates Property Agents,Financial Assistance
Peterborough City Council,Communities,Housing,Services,05/10/2018,30196897,575.00,Revenue,Redacted Personal Data,Financial Assistance
Peterborough City Council,Communities,Housing,Services,05/10/2018,30196898,795.00,Revenue,Redacted Personal Data,Financial Assistance
Peterborough City Council,Communities,Housing,Services,05/10/2018,30196900,535.00,Revenue,Redacted Personal Data,Financial Assistance
Peterborough City Council,Communities,Housing,Services,05/10/2018,30196903,550.00,Revenue,Hometime 2020 Ltd,Financial Assistance
Peterborough City Council,Communities,Housing,Services,05/10/2018,30196916,550.00,Revenue,Redacted Personal Data,Financial Assistance
Peterborough City Council,Communities,Housing,Services,05/10/2018,30196918,750.00,Revenue,Bee Lettings Ltd,Financial Assistance
Peterborough City Council,Corporate,Corporate,Non Revenue,05/10/2018,30196919,4156.00,Capital,Casbon Building Services,Grant Payment
Peterborough City Council,Communities,Housing,Services,05/10/2018,30196920,750.00,Revenue,Redacted Personal Data,Financial Assistance
Peterborough City Council,Communities,Cohesion,Third Party Payments,05/10/2018,30196944,51198.80,Revenue,PARCA,Grant-Third Party
Peterborough City Council,Communities,Housing,Services,05/10/2018,30196956,9726.50,Revenue,Eastfield Guesthouse,Temporary Accommodation Costs
Peterborough City Council,"Waste, Cleansing and Open Spaces",Waste Management,Services,05/10/2018,30197004,4103.45,Revenue,Local Partnerships LLP t/a Local Partnerships,Legal Costs
Peterborough City Council,Adults,Day opportunities - Older People,Catering,05/10/2018,30197013,928.08,Revenue,The Cresset (Peterborough) Ltd,Catering Provisions
Peterborough City Council,Communities,Housing,Services,05/10/2018,30197023,545.00,Revenue,Redacted Personal Data,Financial Assistance
Peterborough City Council,Children's & Safeguarding,Commissioning - CSC,Services,05/10/2018,30197071,1881.37,Revenue,K2 CARE LTD,Purchased Social Care Services
Peterborough City Council,"Cemeteries, Cremation & Registrars",Bereavement Service,Customer and client receipts - Fees & Charges,05/10/2018,30197103,2277.00,Revenue,Redacted Personal Data,Refunds
Peterborough City Council,Corporate,Corporate,Non Revenue,05/10/2018,30197104,1894.00,Capital,Obam Domestic Lift Services Ltd,Grant Payment
Peterborough City Council,Adults,Independent Sector Placements,Services,05/10/2018,30197157,1241.98,Revenue,Park Vista Care Home,Residential Care
Peterborough City Council,Adults,Independent Sector Placements,Services,05/10/2018,30197160,1869.48,Revenue,The Cedars Bourne Care Home,Residential Care
Peterborough City Council,Children's & Safeguarding,Access to Resources & Specialist Commissioning,Services,05/10/2018,30197204,2625.00,Revenue,Transition Care Peterborough Ltd,Boarding Out Fees
Peterborough City Council,Children's & Safeguarding,Access to Resources & Specialist Commissioning,Services,05/10/2018,30197206,2625.00,Revenue,Transition Care Peterborough Ltd,Boarding Out Fees
Peterborough City Council,Children's & Safeguarding,Access to Resources & Specialist Commissioning,Services,05/10/2018,30197215,1869.00,Revenue,Transition Care Peterborough Ltd,Boarding Out Fees
Peterborough City Council,Adults,Independent Sector Placements,Services,05/10/2018,30197218,1082.95,Revenue,ABOUT ME CARE AND SUPPORT LTD,Home Care
Peterborough City Council,Adults,Independent Sector Placements,Services,05/10/2018,30197221,2148.00,Revenue,ABOUT ME CARE AND SUPPORT LTD,Home Care
Peterborough City Council,Parking Services,Parking Services,Agency Staff,05/10/2018,30197229,1103.98,Revenue,Reed Specialist Recruitment Limited,External Temporary Staff
Peterborough City Council,Westcombe Engineering,Westcombe Engineering,"Tools, Equipment, Furniture & Materials",05/10/2018,30197231,709.50,Revenue,Barron Clark Castings Ltd,Materials
Peterborough City Council,Legal Services,Legal Services,Agency Staff,05/10/2018,30197251,624.15,Revenue,Ten-Percent.co.uk Limited,External Temporary Staff
Peterborough City Council,Corporate,Corporate,Non Revenue,05/10/2018,30197260,5977.00,Capital,Gaswise Services Ltd,Grant Payment
Peterborough City Council,Adults,Independent Sector Placements,Services,05/10/2018,30197265,943.10,Revenue,Sahara Community Care Services Limited,Home Care
Peterborough City Council,Children's & Safeguarding,Access to Resources & Specialist Commissioning,Services,05/10/2018,30197266,2205.00,Revenue,Transition Care Peterborough Ltd,Boarding Out Fees
Peterborough City Council,Children's & Safeguarding,Access to Resources & Specialist Commissioning,Services,05/10/2018,30197268,1437.00,Revenue,Transition Care Peterborough Ltd,Boarding Out Fees
Peterborough City Council,Children's & Safeguarding,Access to Resources & Specialist Commissioning,Services,05/10/2018,30197269,1377.00,Revenue,Transition Care Peterborough Ltd,Boarding Out Fees
Peterborough City Council,Westcombe Engineering,Westcombe Engineering,"Tools, Equipment, Furniture & Materials",05/10/2018,30197278,-3147.18,Revenue,Barron Clark Castings Ltd,Materials
Peterborough City Council,Adults,Strategic Commissioning - Management,Agency Staff,05/10/2018,30197293,836.88,Revenue,Reed Specialist Recruitment Limited,External Temporary Staff
Peterborough City Council,Commissioning and Commercial Operations,Commissioning Team,Agency Staff,05/10/2018,30197294,2243.60,Revenue,Reed Specialist Recruitment Limited,External Temporary Staff
Peterborough City Council,Adults,Finance,Agency Staff,05/10/2018,30197295,2433.60,Revenue,Reed Specialist Recruitment Limited,External Temporary Staff
Peterborough City Council,Adults,Independent Sector Placements,Services,05/10/2018,30197296,3576.32,Revenue,GLASALLT FAWR,Residential Care
Peterborough City Council,Adults,Independent Sector Placements,Services,05/10/2018,30197297,3576.32,Revenue,GLASALLT FAWR,Residential Care
Peterborough City Council,Adults,Independent Sector Placements,Services,05/10/2018,30197298,3576.32,Revenue,GLASALLT FAWR,Residential Care
Peterborough City Council,Adults,Independent Sector Placements,Services,05/10/2018,30197300,3576.32,Revenue,GLASALLT FAWR,Residential Care
Peterborough City Council,Adults,Independent Sector Placements,Services,05/10/2018,30197301,3576.32,Revenue,GLASALLT FAWR,Residential Care
Peterborough City Council,Adults,Independent Sector Placements,Services,05/10/2018,30197302,3576.32,Revenue,GLASALLT FAWR,Residential Care
Peterborough City Council,Adults,Strategic Commissioning - Management,Agency Staff,05/10/2018,30197304,2362.88,Revenue,Reed Specialist Recruitment Limited,External Temporary Staff
Peterborough City Council,Adults,Strategic Commissioning - Management,Agency Staff,05/10/2018,30197316,836.88,Revenue,Reed Specialist Recruitment Limited,External Temporary Staff
Peterborough City Council,Commissioning and Commercial Operations,Commissioning Team,Agency Staff,05/10/2018,30197318,2243.60,Revenue,Reed Specialist Recruitment Limited,External Temporary Staff
Peterborough City Council,Adults,Finance,Agency Staff,05/10/2018,30197322,2433.60,Revenue,Reed Specialist Recruitment Limited,External Temporary Staff
Peterborough City Council,Adults,Strategic Commissioning - Management,Agency Staff,05/10/2018,30197330,2953.60,Revenue,Reed Specialist Recruitment Limited,External Temporary Staff
Peterborough City Council,Commissioning and Commercial Operations,Early Years & Quality Improvement,Services,05/10/2018,30197332,30143.52,Revenue,St Josephs Day Nursery,Grant Payment
Peterborough City Council,Regulatory Services,Regulatory Services,Agency Staff,05/10/2018,30197360,736.56,Revenue,Reed Specialist Recruitment Limited,External Temporary Staff
Peterborough City Council,Adults,Independent Sector Placements,Services,05/10/2018,30197375,685.28,Revenue,"ATCHISON, MR ALAN",Residential Care
Peterborough City Council,Adults,Independent Sector Placements,Services,05/10/2018,30197376,2794.32,Revenue,"ATCHISON, MR ALAN",Residential Care
Peterborough City Council,Adults,Independent Sector Placements,Services,05/10/2018,30197377,3625.08,Revenue,"ATCHISON, MR ALAN",Residential Care
Peterborough City Council,Adults,Independent Sector Placements,Services,05/10/2018,30197378,3812.84,Revenue,"ATCHISON, MR ALAN",Residential Care
Peterborough City Council,Adults,Independent Sector Placements,Services,05/10/2018,30197379,3103.92,Revenue,"ATCHISON, MR ALAN",Residential Care
Peterborough City Council,Adults,Independent Sector Placements,Services,05/10/2018,30197380,4904.00,Revenue,"ATCHISON, MR ALAN",Residential Care
Peterborough City Council,Adults,Independent Sector Placements,Services,05/10/2018,30197381,2162.24,Revenue,"ATCHISON, MR ALAN",Residential Care
Peterborough City Council,Adults,Independent Sector Placements,Services,05/10/2018,30197382,660.00,Revenue,"ATCHISON, MR ALAN",Day Care
Peterborough City Council,Adults,Independent Sector Placements,Services,05/10/2018,30197383,2337.52,Revenue,"ATCHISON, MR ALAN",Residential Care
Peterborough City Council,Adults,Independent Sector Placements,Services,05/10/2018,30197384,3065.60,Revenue,"ATCHISON, MR ALAN",Residential Care
Peterborough City Council,Adults,Independent Sector Placements,Services,05/10/2018,30197385,3200.00,Revenue,"ATCHISON, MR ALAN",Residential Care
Peterborough City Council,Adults,Independent Sector Placements,Services,05/10/2018,30197387,2345.20,Revenue,"ATCHISON, MR ALAN",Residential Care
Peterborough City Council,Adults,Independent Sector Placements,Services,05/10/2018,30197388,1954.32,Revenue,"ATCHISON, MR ALAN",Residential Care
Peterborough City Council,Adults,Independent Sector Placements,Services,05/10/2018,30197389,2162.28,Revenue,"ATCHISON, MR ALAN",Residential Care
Peterborough City Council,Adults,Independent Sector Placements,Services,05/10/2018,30197390,660.00,Revenue,"ATCHISON, MR ALAN",Residential Care
Peterborough City Council,Adults,Independent Sector Placements,Services,05/10/2018,30197391,5234.52,Revenue,"ATCHISON, MR ALAN",Residential Care
Peterborough City Council,Adults,Independent Sector Placements,Services,05/10/2018,30197392,756.00,Revenue,"ATCHISON, MR ALAN",Residential Care
Peterborough City Council,Adults,Independent Sector Placements,Services,05/10/2018,30197393,1954.32,Revenue,"ATCHISON, MR ALAN",Residential Care
Peterborough City Council,Adults,Independent Sector Placements,Services,05/10/2018,30197394,4712.00,Revenue,"ATCHISON, MR ALAN",Residential Care
Peterborough City Council,Adults,Independent Sector Placements,Services,05/10/2018,30197404,4391.48,Revenue,"ATCHISON, MR ALAN",Residential Care
Peterborough City Council,Adults,Independent Sector Placements,Services,05/10/2018,30197405,3625.08,Revenue,"ATCHISON, MR ALAN",Residential Care
Peterborough City Council,Adults,Strategic Commissioning - Management,Agency Staff,05/10/2018,30197413,836.88,Revenue,Reed Specialist Recruitment Limited,External Temporary Staff
Peterborough City Council,Adults,Independent Sector Placements,Services,05/10/2018,30197419,2648.00,Revenue,PHILIA LODGE REST HOME,Residential Care
Peterborough City Council,Adults,Independent Sector Placements,Services,05/10/2018,30197420,1975.60,Revenue,PHILIA LODGE REST HOME,Residential Care
Peterborough City Council,Adults,Independent Sector Placements,Services,05/10/2018,30197421,2364.72,Revenue,PHILIA LODGE REST HOME,Residential Care
Peterborough City Council,Adults,Independent Sector Placements,Services,05/10/2018,30197423,1822.20,Revenue,PHILIA LODGE REST HOME,Residential Care
Peterborough City Council,Adults,Independent Sector Placements,Services,05/10/2018,30197425,1674.44,Revenue,PHILIA LODGE REST HOME,Residential Care
Peterborough City Council,Adults,Independent Sector Placements,Services,05/10/2018,30197426,1236.72,Revenue,PHILIA LODGE REST HOME,Residential Care
Peterborough City Council,Adults,Independent Sector Placements,Services,05/10/2018,30197427,2648.00,Revenue,PHILIA LODGE REST HOME,Residential Care
Peterborough City Council,Adults,Independent Sector Placements,Services,05/10/2018,30197428,2648.00,Revenue,PHILIA LODGE REST HOME,Residential Care
Peterborough City Council,Adults,Independent Sector Placements,Services,05/10/2018,30197429,2648.00,Revenue,PHILIA LODGE REST HOME,Residential Care
Peterborough City Council,Adults,Independent Sector Placements,Services,05/10/2018,30197430,2648.00,Revenue,PHILIA LODGE REST HOME,Residential Care
Peterborough City Council,Adults,Strategic Commissioning - Management,Agency Staff,05/10/2018,30197439,836.88,Revenue,Reed Specialist Recruitment Limited,External Temporary Staff
Peterborough City Council,Public Health,DPH Office,Interview & Training Expenses,05/10/2018,30197446,2840.00,Revenue,University of London,Training
Peterborough City Council,Adults,Independent Sector Placements,Services,05/10/2018,30197450,1971.43,Revenue,Goldcare Homes t/a The Tudors Care Home,Residential Care
Peterborough City Council,Adults,Independent Sector Placements,Services,05/10/2018,30197455,3233.44,Revenue,STAR RESIDENTIAL HOME LTD,Residential Care
Peterborough City Council,Adults,Independent Sector Placements,Services,05/10/2018,30197456,1490.24,Revenue,STAR RESIDENTIAL HOME LTD,Residential Care
Peterborough City Council,Adults,Independent Sector Placements,Services,05/10/2018,30197457,2580.04,Revenue,STAR RESIDENTIAL HOME LTD,Residential Care
Peterborough City Council,Adults,Independent Sector Placements,Services,05/10/2018,30197458,2354.56,Revenue,STAR RESIDENTIAL HOME LTD,Residential Care
Peterborough City Council,Adults,Independent Sector Placements,Services,05/10/2018,30197459,3233.44,Revenue,STAR RESIDENTIAL HOME LTD,Residential Care
Peterborough City Council,Adults,Independent Sector Placements,Services,05/10/2018,30197460,2651.80,Revenue,STAR RESIDENTIAL HOME LTD,Residential Care
Peterborough City Council,Adults,Independent Sector Placements,Services,05/10/2018,30197461,2824.44,Revenue,STAR RESIDENTIAL HOME LTD,Residential Care
Peterborough City Council,Adults,Independent Sector Placements,Services,05/10/2018,30197462,2684.04,Revenue,STAR RESIDENTIAL HOME LTD,Residential Care
Peterborough City Council,Adults,Independent Sector Placements,Services,05/10/2018,30197463,2867.96,Revenue,STAR RESIDENTIAL HOME LTD,Residential Care
Peterborough City Council,Adults,Independent Sector Placements,Services,05/10/2018,30197464,2685.04,Revenue,STAR RESIDENTIAL HOME LTD,Residential Care
Peterborough City Council,Adults,Independent Sector Placements,Services,05/10/2018,30197465,2681.04,Revenue,STAR RESIDENTIAL HOME LTD,Residential Care
Peterborough City Council,Commissioning and Commercial Operations,Commissioning,Services,05/10/2018,30197469,3409.00,Revenue,Carter Brown The Expert Service Limited,Hired Services
Peterborough City Council,Adults,Independent Sector Placements,Services,05/10/2018,30197478,-768.00,Revenue,Longueville Court (Barchester),Residential Care
Peterborough City Council,Adults,Independent Sector Placements,Services,05/10/2018,30197479,970.36,Revenue,Hales Group Ltd,Home Care
Peterborough City Council,Adults,Independent Sector Placements,Services,05/10/2018,30197481,950.12,Revenue,Hales Group Ltd,Home Care
Peterborough City Council,Adults,Independent Sector Placements,Services,05/10/2018,30197482,994.50,Revenue,Hales Group Ltd,Home Care
Peterborough City Council,Communities,Housing,Services,05/10/2018,30197507,525.00,Revenue,Redacted Personal Data,Financial Assistance
Peterborough City Council,Communities,Housing,Services,05/10/2018,30197514,900.00,Revenue,Top Managment Letting & Estates Agents,Financial Assistance
Peterborough City Council,Communities,Housing,Services,05/10/2018,30197517,2800.00,Revenue,Hyde Housing Association,Financial Assistance
Peterborough City Council,Communities,Housing,Services,05/10/2018,30197519,1203.14,Revenue,Dunham Property Agents,Financial Assistance
Peterborough City Council,Adults,Home Services Delivery Model,Third Party Payments,05/10/2018,30197545,5017.14,Revenue,Peterborough Womens Aid,Grant-Third Party
Peterborough City Council,Peterborough Serco Strategic Partnership,PSSP Retained Services,Services,05/10/2018,30197551,608.34,Revenue,Royal Mail,Postage
Peterborough City Council,Children's & Safeguarding,Access to Resources & Specialist Commissioning,Agency Staff,05/10/2018,30197554,880.00,Revenue,HCL Social Care Ltd,External Temporary Staff
Peterborough City Council,Commissioning and Commercial Operations,Clare Lodge,Agency Staff,05/10/2018,30197587,718.88,Revenue,Reed Specialist Recruitment Limited,External Temporary Staff
Peterborough City Council,Adults,Independent Sector Placements,Services,05/10/2018,8000126385,529.50,Revenue,Axiom Housing Association Ltd,Home Care
Peterborough City Council,Adults,Independent Sector Placements,Services,05/10/2018,8000126390,589.80,Revenue,Axiom Housing Association Ltd,Home Care
Peterborough City Council,Adults,Independent Sector Placements,Services,05/10/2018,8000126392,617.85,Revenue,Axiom Housing Association Ltd,Home Care
Peterborough City Council,Adults,Independent Sector Placements,Services,05/10/2018,8000126402,588.60,Revenue,Axiom Housing Association Ltd,Home Care
Peterborough City Council,Adults,Independent Sector Placements,Services,05/10/2018,8000126405,738.54,Revenue,Axiom Housing Association Ltd,Home Care
Peterborough City Council,Adults,Independent Sector Placements,Services,05/10/2018,8000126408,941.40,Revenue,Axiom Housing Association Ltd,Home Care
Peterborough City Council,Adults,Independent Sector Placements,Services,05/10/2018,8000126411,823.80,Revenue,Axiom Housing Association Ltd,Home Care
Peterborough City Council,Adults,Independent Sector Placements,Services,05/10/2018,8000126414,603.75,Revenue,Axiom Housing Association Ltd,Home Care
Peterborough City Council,Adults,Independent Sector Placements,Social Services,05/10/2018,8000126539,1800.00,Revenue,Redacted Personal Data,Direct Payments
Peterborough City Council,Adults,Independent Sector Placements,Social Services,05/10/2018,8000126540,960.12,Revenue,Redacted Personal Data,Direct Payments
Peterborough City Council,Adults,Independent Sector Placements,Social Services,05/10/2018,8000126542,3470.96,Revenue,Redacted Personal Data,Direct Payments
Peterborough City Council,Adults,Independent Sector Placements,Social Services,05/10/2018,8000126548,2530.00,Revenue,Redacted Personal Data,Direct Payments
Peterborough City Council,Adults,Independent Sector Placements,Social Services,05/10/2018,8000126551,7347.43,Revenue,Redacted Personal Data,Direct Payments
Peterborough City Council,Adults,Independent Sector Placements,Social Services,05/10/2018,8000126552,2666.79,Revenue,Redacted Personal Data,Direct Payments
Peterborough City Council,Adults,Independent Sector Placements,Social Services,05/10/2018,8000126554,784.85,Revenue,Redacted Personal Data,Direct Payments
Peterborough City Council,Adults,Independent Sector Placements,Social Services,05/10/2018,8000126555,23310.26,Revenue,Redacted Personal Data,Direct Payments
Peterborough City Council,Adults,Independent Sector Placements,Social Services,05/10/2018,8000126556,2217.35,Revenue,Redacted Personal Data,Direct Payments
Peterborough City Council,Adults,Independent Sector Placements,Social Services,05/10/2018,8000126557,7267.68,Revenue,Redacted Personal Data,Direct Payments
Peterborough City Council,Adults,Independent Sector Placements,Social Services,05/10/2018,8000126558,864.28,Revenue,Redacted Personal Data,Direct Payments
Peterborough City Council,Adults,Independent Sector Placements,Social Services,05/10/2018,8000126559,747.60,Revenue,Redacted Personal Data,Direct Payments
Peterborough City Council,Adults,Independent Sector Placements,Services,05/10/2018,8000126560,1574.00,Revenue,Redacted Personal Data,Adult Placement Scheme
Peterborough City Council,Adults,Independent Sector Placements,Services,05/10/2018,8000126567,1452.00,Revenue,MEARS GROUP,Home Care
Peterborough City Council,Adults,Independent Sector Placements,Services,05/10/2018,8000126582,548.55,Revenue,MEARS GROUP,Home Care
Peterborough City Council,Adults,Independent Sector Placements,Services,05/10/2018,8000126587,529.65,Revenue,MEARS GROUP,Home Care
Peterborough City Council,Adults,Independent Sector Placements,Services,05/10/2018,8000126619,848.93,Revenue,Sagecare Ltd,Home Care
Peterborough City Council,Adults,Independent Sector Placements,Services,05/10/2018,8000126620,956.34,Revenue,Sagecare Ltd,Home Care
Peterborough City Council,Adults,Independent Sector Placements,Services,05/10/2018,8000126621,1830.00,Revenue,Cross Keys Homes,Home Care
Peterborough City Council,Adults,Independent Sector Placements,Services,05/10/2018,8000126681,18018.00,Revenue,Atlas Care Services Ltd,Home Care
Peterborough City Council,Adults,Independent Sector Placements,Services,05/10/2018,8000126683,625.75,Revenue,Atlas Care Services Ltd,Home Care
Peterborough City Council,Adults,Independent Sector Placements,Services,05/10/2018,8000126688,1071.86,Revenue,Atlas Care Services Ltd,Home Care
Peterborough City Council,Adults,Independent Sector Placements,Services,05/10/2018,8000126690,1471.59,Revenue,Atlas Care Services Ltd,Home Care
Peterborough City Council,Adults,Independent Sector Placements,Services,05/10/2018,8000126695,931.76,Revenue,Atlas Care Services Ltd,Home Care
Peterborough City Council,Adults,Independent Sector Placements,Services,05/10/2018,8000126697,1420.95,Revenue,Atlas Care Services Ltd,Home Care
Peterborough City Council,Adults,Independent Sector Placements,Services,05/10/2018,8000126698,1753.94,Revenue,Atlas Care Services Ltd,Home Care
Peterborough City Council,Adults,Independent Sector Placements,Services,05/10/2018,8000126702,1351.37,Revenue,Atlas Care Services Ltd,Home Care
Peterborough City Council,Adults,Independent Sector Placements,Services,05/10/2018,8000126703,842.77,Revenue,Atlas Care Services Ltd,Home Care
Peterborough City Council,Adults,Independent Sector Placements,Services,05/10/2018,8000126707,726.57,Revenue,Atlas Care Services Ltd,Home Care
Peterborough City Council,Adults,Independent Sector Placements,Services,05/10/2018,8000126709,2683.80,Revenue,Atlas Care Services Ltd,Home Care
Peterborough City Council,Adults,Independent Sector Placements,Services,05/10/2018,8000126711,1867.54,Revenue,Atlas Care Services Ltd,Home Care
Peterborough City Council,Adults,Independent Sector Placements,Services,05/10/2018,8000126712,601.84,Revenue,Atlas Care Services Ltd,Home Care
Peterborough City Council,Adults,Independent Sector Placements,Services,05/10/2018,8000126714,1950.13,Revenue,Atlas Care Services Ltd,Home Care
Peterborough City Council,Adults,Independent Sector Placements,Services,05/10/2018,8000126716,601.84,Revenue,Atlas Care Services Ltd,Home Care
Peterborough City Council,Adults,Independent Sector Placements,Services,05/10/2018,8000126717,631.43,Revenue,Atlas Care Services Ltd,Home Care
Peterborough City Council,Adults,Independent Sector Placements,Services,05/10/2018,8000126719,692.72,Revenue,Atlas Care Services Ltd,Home Care
Peterborough City Council,Adults,Independent Sector Placements,Services,05/10/2018,8000126721,1865.65,Revenue,Atlas Care Services Ltd,Home Care
Peterborough City Council,Adults,Independent Sector Placements,Services,05/10/2018,8000126723,574.39,Revenue,Atlas Care Services Ltd,Home Care
Peterborough City Council,Adults,Independent Sector Placements,Services,05/10/2018,8000126726,914.72,Revenue,Atlas Care Services Ltd,Home Care
Peterborough City Council,Adults,Independent Sector Placements,Services,05/10/2018,8000126727,658.88,Revenue,Atlas Care Services Ltd,Home Care
Peterborough City Council,Adults,Independent Sector Placements,Services,05/10/2018,8000126728,1344.98,Revenue,Atlas Care Services Ltd,Home Care
Peterborough City Council,Adults,Independent Sector Placements,Services,05/10/2018,8000126730,882.29,Revenue,Atlas Care Services Ltd,Home Care
Peterborough City Council,Adults,Independent Sector Placements,Services,05/10/2018,8000126740,683.02,Revenue,Atlas Care Services Ltd,Home Care
Peterborough City Council,Adults,Independent Sector Placements,Services,05/10/2018,8000126743,1598.92,Revenue,Atlas Care Services Ltd,Home Care
Peterborough City Council,Adults,Independent Sector Placements,Services,05/10/2018,8000126751,1124.64,Revenue,Atlas Care Services Ltd,Home Care
Peterborough City Council,Adults,Independent Sector Placements,Services,05/10/2018,8000126754,11115.52,Revenue,CambridgeshireHome Care,Home Care
Peterborough City Council,Adults,Independent Sector Placements,Services,05/10/2018,8000126758,779.70,Revenue,Merit Home Care Ltd,Home Care
Peterborough City Council,Children's & Safeguarding,Commissioning - CSC,Services,08/10/2018,30191835,1622.36,Revenue,K2 CARE LTD,Purchased Social Care Services
Peterborough City Council,Commissioning and Commercial Operations,Clare Lodge,Agency Staff,08/10/2018,30194383,880.00,Revenue,Wrixon Care Services,External Temporary Staff
Peterborough City Council,Adults,Independent Sector Placements,Services,08/10/2018,30194663,5809.39,Revenue,Voyage,Home Care
Peterborough City Council,Adults,Independent Sector Placements,Services,08/10/2018,30194665,14884.77,Revenue,Voyage,Home Care
Peterborough City Council,Education,Special Educational Needs / Inclusion,Services,08/10/2018,30194831,878.00,Revenue,Serco Ltd,Computer Software
Peterborough City Council,ICT,ICT,Services,08/10/2018,30194833,5749.82,Revenue,Serco Ltd,Computer Software
Peterborough City Council,Legal Services,Legal Services,"Tools, Equipment, Furniture & Materials",08/10/2018,30194835,789.38,Revenue,Serco Ltd,Computer Hardware
Peterborough City Council,ICT,ICT,Services,08/10/2018,30194836,21305.97,Revenue,Serco Ltd,Computer Software
Peterborough City Council,Education,School Standards & Effectiveness,Services,08/10/2018,30194975,540.00,Revenue,Top Class Tutors,Hired Services
Peterborough City Council,Westcombe Engineering,Westcombe Engineering,"Tools, Equipment, Furniture & Materials",08/10/2018,30195182,703.52,Revenue,Carillon Industrial Services Ltd,Tools
Peterborough City Council,Children's & Safeguarding,External Education Placements,Services,08/10/2018,30195184,2800.00,Revenue,The Peterborough School Limited,Out Of Area Education Costs
Peterborough City Council,Communities,Housing,Repair & Maintenance of Buildings,08/10/2018,30195191,630.00,Revenue,Rawheat Heating & Plumbing Eng.,Premises Repairs
Peterborough City Council,Peterborough Highway Services,Highway & Drainage Control,Agency Staff,08/10/2018,30195192,1692.90,Revenue,Matchtech,External Temporary Staff
Peterborough City Council,Education,Special Educational Needs / Inclusion,Services,08/10/2018,30195227,1540.20,Revenue,Becky Frewin Ltd,Hired Services
Peterborough City Council,Commissioning and Commercial Operations,Clare Lodge,Interview & Training Expenses,08/10/2018,30195372,1980.00,Revenue,Harm-ed  Ltd,Training
Peterborough City Council,Communities,Targeted Youth Service,Services,08/10/2018,30195404,4725.00,Revenue,Peterborough Open Awards Centre CIC,Youth Programmes
Peterborough City Council,Communities,Targeted Youth Service,Services,08/10/2018,30195406,3900.00,Revenue,Peterborough Open Awards Centre CIC,Youth Programmes
Peterborough City Council,Adults,Mental Capacity Act & DoLs,Services,08/10/2018,30195408,2873.40,Revenue,Raj Medical Consultancy Limited,Hired Services
Peterborough City Council,Adults,Independent Sector Placements,Services,08/10/2018,30195458,3880.88,Revenue,Bandrum Nursing Home Ltd,Residential Care
Peterborough City Council,Adults,Independent Sector Placements,Services,08/10/2018,30195476,4559.00,Revenue,Voyage,Home Care
Peterborough City Council,Parking Services,Parking Services,Services,08/10/2018,30195537,2987.04,Revenue,Parkeon Limited,Hired Services
Peterborough City Council,Parking Services,Parking Services,Services,08/10/2018,30195538,3385.20,Revenue,Parkeon Limited,Hired Services
Peterborough City Council,Adults,Independent Sector Placements,Services,08/10/2018,30196037,2181.60,Revenue,Southwark Park Nursing Homes - Blenheim Care Centre,Residential Care
Peterborough City Council,Adults,Independent Sector Placements,Services,08/10/2018,30196071,4397.00,Revenue,OAKFIELD (EASTON MAUDIT) LTD,Residential Care
Peterborough City Council,Westcombe Engineering,Westcombe Engineering,"Tools, Equipment, Furniture & Materials",08/10/2018,30196333,531.36,Revenue,Barron Clark Castings Ltd,Materials
Peterborough City Council,Westcombe Engineering,Westcombe Engineering,"Tools, Equipment, Furniture & Materials",08/10/2018,30196334,586.20,Revenue,Barron Clark Castings Ltd,Materials
Peterborough City Council,Westcombe Engineering,Westcombe Engineering,"Tools, Equipment, Furniture & Materials",08/10/2018,30196335,549.60,Revenue,Barron Clark Castings Ltd,Materials
Peterborough City Council,Corporate,Corporate,Non Revenue,08/10/2018,30197263,500.00,Capital,Cambs ACF Corps of Drums (Pboro),Grant Payment
Peterborough City Council,Children's & Safeguarding,Children's Social Care,Agency Staff,08/10/2018,30197417,1406.00,Revenue,NonStop Recruitment Ltd,External Temporary Staff
Peterborough City Council,Commissioning and Commercial Operations,Early Years & Quality Improvement,Services,08/10/2018,30197470,615.00,Revenue,Herlington Pre-School,Grant Payment
Peterborough City Council,Commissioning and Commercial Operations,Early Years & Quality Improvement,Services,08/10/2018,30197471,615.00,Revenue,Little Bees Pre-School,Grant Payment
Peterborough City Council,Commissioning and Commercial Operations,Early Years & Quality Improvement,Services,08/10/2018,30197472,615.00,Revenue,Paston & Gunthorpe Pre-School,Grant Payment
Peterborough City Council,Commissioning and Commercial Operations,Early Years & Quality Improvement,Services,08/10/2018,30197473,615.00,Revenue,Orton Wistow Under Fives,Grant Payment
Peterborough City Council,Commissioning and Commercial Operations,Early Years & Quality Improvement,Services,08/10/2018,30197474,615.00,Revenue,Orton Longueville Playgroup,Grant Payment
Peterborough City Council,Commissioning and Commercial Operations,Early Years & Quality Improvement,Services,08/10/2018,30197475,615.00,Revenue,Little Bees Pre-School,Grant Payment
Peterborough City Council,Commissioning and Commercial Operations,Early Years & Quality Improvement,Services,08/10/2018,30197476,615.00,Revenue,Beeches Pre-School,Grant Payment
Peterborough City Council,Commissioning and Commercial Operations,Early Years & Quality Improvement,Services,08/10/2018,30197477,615.00,Revenue,Family Action,Grant Payment
Peterborough City Council,Communities,Cultural Services,Third Party Payments,08/10/2018,30197544,535014.11,Revenue,Vivacity Culture and Leisure,Third Party Payments - Contract
Peterborough City Council,Corporate,Corporate,Non Revenue,08/10/2018,30197555,190412.67,Capital,R G Carter Cambridge Ltd,Building And Site Works
Peterborough City Council,Corporate Services - Exclude,Corporate Services - Exclude,Government Depts,08/10/2018,30197575,747.14,Revenue,Dept for Communities & Local Government (DCLG),Payment To Central Government
Peterborough City Council,Children's & Safeguarding,Access to Resources & Specialist Commissioning,Services,08/10/2018,30197606,2205.00,Revenue,Transition Care Peterborough Ltd,Boarding Out Fees
Peterborough City Council,Adults,Block Contracts,Third Party Payments,08/10/2018,30197764,6487.88,Revenue,Hales Group Ltd,Third Party Payments - Contract
Peterborough City Council,Children's & Safeguarding,Children's Social Care,Agency Staff,08/10/2018,30197765,1406.00,Revenue,NonStop Recruitment Ltd,External Temporary Staff
Peterborough City Council,Constitutional Services,Democratic Services,Services,08/10/2018,30197785,1832.70,Revenue,CH&I Associates Ltd,Legal Costs
Peterborough City Council,Public Health,PH Commissioning,Third Party Payments,08/10/2018,30197800,68697.41,Revenue,Solutions 4 Health Ltd,Third Party Payments - Contract
Peterborough City Council,Adults,Finance,Services,08/10/2018,30197801,3000.00,Revenue,Solutions 4 Health Ltd,Counselling
Peterborough City Council,Education,Service Director Education,Employee Costs,08/10/2018,30197806,29091.96,Revenue,Teachers Pensions,Pensions
Peterborough City Council,Adults,Home Services Delivery Model,Third Party Payments,08/10/2018,30197812,8259.10,Revenue,Cross Keys Homes,Grant-Third Party
Peterborough City Council,Commissioning and Commercial Operations,Early Years & Quality Improvement,Services,08/10/2018,30197815,615.00,Revenue,Four Cs MAT T/A The Fulbridge Academy,Grant Payment
Peterborough City Council,Legal Services,Legal Services,Services,10/10/2018,30179010,1026.05,Revenue,LMH Clinical Psychology Services,Expert Witnesses
Peterborough City Council,Corporate,Corporate,Non Revenue,10/10/2018,30186140,5687.67,Capital,Brook and Mayo Ltd,Building And Site Works
Peterborough City Council,Corporate,Corporate,Non Revenue,10/10/2018,30192384,7536.00,Capital,NPS Peterborough Ltd,Consultants Fees
Peterborough City Council,Corporate,Corporate,Non Revenue,10/10/2018,30192385,1872.00,Capital,NPS Peterborough Ltd,Consultants Fees
Peterborough City Council,Corporate Property,Commercial Propety,Third Party Payments,10/10/2018,30192557,4166.66,Revenue,NPS Peterborough Ltd,Third Party Payments - Contract
Peterborough City Council,Corporate,Corporate,Non Revenue,10/10/2018,30193678,4628.74,Capital,NPS Peterborough Ltd,Consultants Fees
Peterborough City Council,Legal Services,Legal Services,Services,10/10/2018,30193804,1021.60,Revenue,Lisa Hannant,Legal Costs
Peterborough City Council,Corporate,Corporate,Non Revenue,10/10/2018,30194307,999.99,Capital,Thorney Parish Council,Grant Payment
Peterborough City Council,Corporate,Corporate,Non Revenue,10/10/2018,30194394,6577.00,Capital,Gaswise Services Ltd,Grant Payment
Peterborough City Council,Adults,Independent Sector Placements,Services,10/10/2018,30195008,2318.00,Revenue,Thera East Anglia,Day Care
Peterborough City Council,Adults,Independent Sector Placements,Services,10/10/2018,30195009,1464.00,Revenue,Thera East Anglia,Day Care
Peterborough City Council,Adults,Independent Sector Placements,Services,10/10/2018,30195011,2318.00,Revenue,Thera East Anglia,Day Care
Peterborough City Council,Adults,Independent Sector Placements,Services,10/10/2018,30195012,817.00,Revenue,Thera East Anglia,Day Care
Peterborough City Council,Adults,Independent Sector Placements,Services,10/10/2018,30195015,645.00,Revenue,Thera East Anglia,Day Care
Peterborough City Council,Adults,Independent Sector Placements,Services,10/10/2018,30195018,3339.25,Revenue,Thera East Anglia,Day Care
Peterborough City Council,Adults,Independent Sector Placements,Services,10/10/2018,30195020,1197.00,Revenue,Thera East Anglia,Day Care
Peterborough City Council,Adults,Independent Sector Placements,Services,10/10/2018,30195025,2318.00,Revenue,Thera East Anglia,Day Care
Peterborough City Council,Adults,Independent Sector Placements,Services,10/10/2018,30195028,549.00,Revenue,Thera East Anglia,Day Care
Peterborough City Council,Adults,Independent Sector Placements,Services,10/10/2018,30195032,2318.00,Revenue,Thera East Anglia,Day Care
Peterborough City Council,Adults,Independent Sector Placements,Services,10/10/2018,30195035,1197.00,Revenue,Thera East Anglia,Day Care
Peterborough City Council,Adults,Independent Sector Placements,Services,10/10/2018,30195037,2318.00,Revenue,Thera East Anglia,Day Care
Peterborough City Council,Adults,Independent Sector Placements,Services,10/10/2018,30195038,2318.00,Revenue,Thera East Anglia,Day Care
Peterborough City Council,Adults,Independent Sector Placements,Services,10/10/2018,30195041,817.00,Revenue,Thera East Anglia,Day Care
Peterborough City Council,Adults,Independent Sector Placements,Services,10/10/2018,30195042,1197.00,Revenue,Thera East Anglia,Day Care
Peterborough City Council,Adults,Independent Sector Placements,Services,10/10/2018,30195045,945.00,Revenue,Thera East Anglia,Day Care
Peterborough City Council,Legal Services,Legal Services,Agency Staff,10/10/2018,30195060,765.00,Revenue,Venn Group Ltd,External Temporary Staff
Peterborough City Council,Legal Services,Legal Services,Agency Staff,10/10/2018,30195061,2062.50,Revenue,Venn Group Ltd,External Temporary Staff
Peterborough City Council,Legal Services,Legal Services,Agency Staff,10/10/2018,30195063,693.00,Revenue,Venn Group Ltd,External Temporary Staff
Peterborough City Council,Adults,Independent Sector Placements,Services,10/10/2018,30195109,2318.00,Revenue,Thera East Anglia,Day Care
Peterborough City Council,Adults,Independent Sector Placements,Services,10/10/2018,30195111,1952.00,Revenue,Thera East Anglia,Day Care
Peterborough City Council,Adults,Independent Sector Placements,Services,10/10/2018,30195208,6325.64,Revenue,NORTH EAST AUTISM SOCIETY,Residential Care
Peterborough City Council,Adults,Independent Sector Placements,Services,10/10/2018,30195209,6325.64,Revenue,NORTH EAST AUTISM SOCIETY,Residential Care
Peterborough City Council,Adults,Independent Sector Placements,Services,10/10/2018,30195212,4591.60,Revenue,Mencap,Residential Care
Peterborough City Council,Adults,Independent Sector Placements,Services,10/10/2018,30195213,3991.00,Revenue,Mencap,Residential Care
Peterborough City Council,Adults,Independent Sector Placements,Services,10/10/2018,30195215,4896.60,Revenue,Mencap,Residential Care
Peterborough City Council,Communities,Targeted Youth Service,Rents,10/10/2018,30195230,4900.00,Revenue,City College Peterborough,Hire Of Premises
Peterborough City Council,Corporate,Corporate,Non Revenue,10/10/2018,30195231,5000.00,Capital,Barker Storey Matthews,Consultants Fees
Peterborough City Council,Adults,Independent Sector Placements,Services,10/10/2018,30195239,1215.16,Revenue,Maxey House Res Home,Residential Care
Peterborough City Council,Adults,Independent Sector Placements,Services,10/10/2018,30195241,1821.88,Revenue,Maxey House Res Home,Residential Care
Peterborough City Council,Adults,Independent Sector Placements,Services,10/10/2018,30195247,914.56,Revenue,Maxey House Res Home,Residential Care
Peterborough City Council,Adults,Independent Sector Placements,Services,10/10/2018,30195248,1576.24,Revenue,Maxey House Res Home,Residential Care
Peterborough City Council,Adults,Independent Sector Placements,Services,10/10/2018,30195249,1225.20,Revenue,Maxey House Res Home,Residential Care
Peterborough City Council,Adults,Independent Sector Placements,Services,10/10/2018,30195250,1821.88,Revenue,Maxey House Res Home,Residential Care
Peterborough City Council,Adults,Independent Sector Placements,Services,10/10/2018,30195251,1679.96,Revenue,Maxey House Res Home,Residential Care
Peterborough City Council,Adults,Independent Sector Placements,Services,10/10/2018,30195252,5000.00,Revenue,Maxey House Res Home,Residential Care
Peterborough City Council,Adults,Independent Sector Placements,Services,10/10/2018,30195253,1236.92,Revenue,Maxey House Res Home,Residential Care
Peterborough City Council,Adults,Independent Sector Placements,Services,10/10/2018,30195254,1037.16,Revenue,Maxey House Res Home,Residential Care
Peterborough City Council,Adults,Independent Sector Placements,Services,10/10/2018,30195255,1301.48,Revenue,Maxey House Res Home,Residential Care
Peterborough City Council,Adults,Independent Sector Placements,Services,10/10/2018,30195256,996.68,Revenue,Maxey House Res Home,Residential Care
Peterborough City Council,Peterborough Serco Strategic Partnership,Peterborough Serco Strategic Partnership,Services,10/10/2018,30195291,911.88,Revenue,Rossendales C B Ltd,Debt Collection
Peterborough City Council,Adults,Mental Capacity Act & DoLs,Services,10/10/2018,30195298,1480.00,Revenue,Dr Nauman Khalil Ltd,Hired Services
Peterborough City Council,Adults,Home Services Delivery Model,Services,10/10/2018,30195301,790.50,Revenue,Nightingale Services,Contractors
Peterborough City Council,Adults,Mental Capacity Act & DoLs,Services,10/10/2018,30195302,1318.20,Revenue,Dr Nauman Khalil Ltd,Hired Services
Peterborough City Council,Adults,Home Services Delivery Model,Services,10/10/2018,30195303,1181.50,Revenue,Handyman Steve,Contractors
Peterborough City Council,Adults,Independent Sector Placements,Services,10/10/2018,30195344,8775.87,Revenue,Voyage,Residential Care
Peterborough City Council,Development and Construction,Planning Compliance,Agency Staff,10/10/2018,30195394,1016.10,Revenue,Park Avenue Recruitment Limited,External Temporary Staff
Peterborough City Council,Legal Services,Legal Services,Services,10/10/2018,30195400,635.00,Revenue,"Bramwell, Mr Christopher",Legal Costs
Peterborough City Council,"Waste, Cleansing and Open Spaces",Waste Management,Services,10/10/2018,30195401,438017.18,Revenue,Viridor Peterborough Ltd,Waste Disposal
Peterborough City Council,Peterborough Highway Services,Network and Traffic Management,Services,10/10/2018,30195471,1551.80,Revenue,Johnston Press Midlands Division,Advertising
Peterborough City Council,Peterborough Highway Services,Network and Traffic Management,Services,10/10/2018,30195473,1666.74,Revenue,Johnston Press Midlands Division,Advertising
Peterborough City Council,Peterborough Highway Services,Transport & Infrastructure Commissioning,Transport Expenses,10/10/2018,30195486,1153.85,Revenue,Stagecoach in Peterborough,Public Transport
Peterborough City Council,Peterborough Highway Services,Transport & Infrastructure Commissioning,Transport Expenses,10/10/2018,30195487,1153.85,Revenue,Stagecoach in Peterborough,Public Transport
Peterborough City Council,Peterborough Highway Services,Transport & Infrastructure Commissioning,Transport Expenses,10/10/2018,30195488,1153.84,Revenue,Stagecoach in Peterborough,Public Transport
Peterborough City Council,Peterborough Highway Services,Transport & Infrastructure Commissioning,Transport Expenses,10/10/2018,30195489,1153.84,Revenue,Stagecoach in Peterborough,Public Transport
Peterborough City Council,Peterborough Highway Services,Transport & Infrastructure Commissioning,Transport Expenses,10/10/2018,30195490,1153.85,Revenue,Stagecoach in Peterborough,Public Transport
Peterborough City Council,Peterborough Highway Services,Transport & Infrastructure Commissioning,Transport Expenses,10/10/2018,30195491,1153.85,Revenue,Stagecoach in Peterborough,Public Transport
Peterborough City Council,Peterborough Highway Services,Transport & Infrastructure Commissioning,Transport Expenses,10/10/2018,30195492,1153.85,Revenue,Stagecoach in Peterborough,Public Transport
Peterborough City Council,Peterborough Highway Services,Transport & Infrastructure Commissioning,Transport Expenses,10/10/2018,30195493,1153.85,Revenue,Stagecoach in Peterborough,Public Transport
Peterborough City Council,Peterborough Highway Services,Transport & Infrastructure Commissioning,Transport Expenses,10/10/2018,30195494,1153.84,Revenue,Stagecoach in Peterborough,Public Transport
Peterborough City Council,Peterborough Highway Services,Transport & Infrastructure Commissioning,Transport Expenses,10/10/2018,30195495,1153.85,Revenue,Stagecoach in Peterborough,Public Transport
Peterborough City Council,Peterborough Highway Services,Transport & Infrastructure Commissioning,Transport Expenses,10/10/2018,30195496,1153.85,Revenue,Stagecoach in Peterborough,Public Transport
Peterborough City Council,Corporate Property,Commercial Propety,Third Party Payments,10/10/2018,30195543,16750.00,Revenue,Opportunity Peterborough T/A OP Ltd,Third Party Payments - Contract
Peterborough City Council,Corporate Property,Commercial Propety,Third Party Payments,10/10/2018,30195545,16750.00,Revenue,Opportunity Peterborough T/A OP Ltd,Third Party Payments - Contract
Peterborough City Council,Westcombe Engineering,Westcombe Engineering,"Tools, Equipment, Furniture & Materials",10/10/2018,30195547,688.18,Revenue,M O 8 Specialities Ltd,Materials
Peterborough City Council,Legal Services,Legal Services,Services,10/10/2018,30195548,1042.00,Revenue,Lincolnshire County Council,Legal Costs
Peterborough City Council,"Waste, Cleansing and Open Spaces",Waste Management,Services,10/10/2018,30195579,7736.72,Revenue,South Cambs District Council,Hired Services
Peterborough City Council,HR,HR WFD & Training,Interview & Training Expenses,10/10/2018,30195580,950.00,Revenue,Anglia Ruskin University,Training
Peterborough City Council,Corporate,Corporate,Non Revenue,10/10/2018,30195583,29755.00,Capital,Barker Storey Matthews,Consultants Fees
Peterborough City Council,Children's & Safeguarding,Children's Social Care,Agency Staff,10/10/2018,30195585,7018.75,Revenue,HCL Social Care Ltd,External Temporary Staff
Peterborough City Council,Education,HTS & CSC Transport,Contract Hire and Operating Leases,10/10/2018,30195587,16745.00,Revenue,Stagecoach in Peterborough,Hired Transport
Peterborough City Council,Legal Services,Legal Services,Services,10/10/2018,30195589,550.00,Revenue,"Elliott, Ms Margot",Legal Costs
Peterborough City Council,Children's & Safeguarding,Access to Resources & Specialist Commissioning,Agency Staff,10/10/2018,30195593,880.00,Revenue,HCL Social Care Ltd,External Temporary Staff
Peterborough City Council,Corporate Items,Corporate Services,Services,10/10/2018,30195607,20893.00,Revenue,Ernst & Young LLP,Audit Fees
Peterborough City Council,Commissioning and Commercial Operations,Clare Lodge,Interview & Training Expenses,10/10/2018,30195666,575.00,Revenue,Liz O'Rourke Training Consultancy Ltd,Training
Peterborough City Council,Communities,Cultural Services,Rents,10/10/2018,30195669,3920.00,Revenue,Kingsgate Trading Ltd,Hire Of Premises
Peterborough City Council,Corporate,Corporate,Non Revenue,10/10/2018,30195670,3371.16,Capital,UK Power Networks (operations) Ltd,Building And Site Works
Peterborough City Council,Communities,Targeted Youth Service,Rents,10/10/2018,30195671,500.00,Revenue,Kingsgate Trading Ltd,Hire Of Premises
Peterborough City Council,Children's & Safeguarding,Early Help ASC/CSC,Services,10/10/2018,30195675,28458.00,Revenue,Barnardo Services Limited,Hired Services
Peterborough City Council,"Cemeteries, Cremation & Registrars",Bereavement Service,Services,10/10/2018,30195708,1544.00,Revenue,Anglia Co-operative Funerals,Contract Funerals
Peterborough City Council,Communities,Targeted Youth Service,Services,10/10/2018,30195711,1320.00,Revenue,Essex County Council,Youth Programmes
Peterborough City Council,Commissioning and Commercial Operations,Clare Lodge,Agency Staff,10/10/2018,30195815,2176.00,Revenue,Wrixon Care Services,External Temporary Staff
Peterborough City Council,Peterborough Highway Services,Transport & Infrastructure Commissioning,Transport Expenses,10/10/2018,30195903,6850.30,Revenue,Stagecoach in Peterborough,Public Transport
Peterborough City Council,Peterborough Highway Services,Network and Traffic Management,Services,10/10/2018,30195937,3856.07,Revenue,Dynniq UK Ltd,Infrastructure Maintenance
Peterborough City Council,Adults,Independent Sector Placements,Services,10/10/2018,30195973,1959.60,Revenue,South West Care Homes LTD (The Firs),Residential Care
Peterborough City Council,Children's & Safeguarding,Children's Social Care,Contract Hire and Operating Leases,10/10/2018,30196025,1500.00,Revenue,Stagecoach in Peterborough,Hired Transport
Peterborough City Council,Corporate,Corporate,Non Revenue,10/10/2018,30196030,579.00,Capital,Weightmans LLP,Legal Fees
Peterborough City Council,Westcombe Engineering,Westcombe Engineering,"Tools, Equipment, Furniture & Materials",10/10/2018,30196340,639.65,Revenue,Barron Clark Castings Ltd,Materials
Peterborough City Council,Westcombe Engineering,Westcombe Engineering,"Tools, Equipment, Furniture & Materials",10/10/2018,30196341,523.35,Revenue,Barron Clark Castings Ltd,Materials
Peterborough City Council,Westcombe Engineering,Westcombe Engineering,"Tools, Equipment, Furniture & Materials",10/10/2018,30196362,597.80,Revenue,Barron Clark Castings Ltd,Materials
Peterborough City Council,Westcombe Engineering,Westcombe Engineering,"Tools, Equipment, Furniture & Materials",10/10/2018,30196364,845.50,Revenue,Barron Clark Castings Ltd,Materials
Peterborough City Council,Westcombe Engineering,Westcombe Engineering,"Tools, Equipment, Furniture & Materials",10/10/2018,30196365,646.00,Revenue,Barron Clark Castings Ltd,Materials
Peterborough City Council,Westcombe Engineering,Westcombe Engineering,"Tools, Equipment, Furniture & Materials",10/10/2018,30196366,549.00,Revenue,Barron Clark Castings Ltd,Materials
Peterborough City Council,Westcombe Engineering,Westcombe Engineering,"Tools, Equipment, Furniture & Materials",10/10/2018,30196367,700.04,Revenue,Barron Clark Castings Ltd,Materials
Peterborough City Council,Westcombe Engineering,Westcombe Engineering,"Tools, Equipment, Furniture & Materials",10/10/2018,30196368,531.36,Revenue,Barron Clark Castings Ltd,Materials
Peterborough City Council,"Cemeteries, Cremation & Registrars",Bereavement Service,Repair & Maintenance of Buildings,10/10/2018,30196373,1596.18,Revenue,Facultatieve Technologies Ltd,Cremators
Peterborough City Council,City Centre Management,"Markets, Tourism & Events",Services,10/10/2018,30196390,695.00,Revenue,Ustigate Ltd,Infrastructure Maintenance
Peterborough City Council,Adults,Home Services Delivery Model,Services,10/10/2018,30196397,2550.00,Revenue,Rawheat Heating & Plumbing Eng.,Contractors
Peterborough City Council,Programme Management Office,Programme Management Office,Services,10/10/2018,30196482,23020.80,Revenue,4OC Ltd,Consultants Fees
Peterborough City Council,Adults,Independent Sector Placements,Services,10/10/2018,30196589,9254.88,Revenue,Sense,Residential Care
Peterborough City Council,Legal Services,Legal Services,Services,10/10/2018,30196704,550.00,Revenue,"Elliott, Ms Margot",Legal Costs
Peterborough City Council,Legal Services,Legal Services,Services,10/10/2018,30196706,1202.42,Revenue,Psychology Clinic of East Anglia,Expert Witnesses
Peterborough City Council,Legal Services,Legal Services,Services,10/10/2018,30196718,610.89,Revenue,The Psychological Service,Expert Witnesses
Peterborough City Council,Adults,Independent Sector Placements,Services,10/10/2018,30196821,693.18,Revenue,Axiom Housing Association Ltd,Home Care
Peterborough City Council,Corporate,Corporate,Non Revenue,10/10/2018,30196902,4990.00,Capital,Obam Domestic Lift Services Ltd,Grant Payment
Peterborough City Council,Peterborough Highway Services,Highway Services - HoS,Agency Staff,10/10/2018,30196911,17407.10,Revenue,AECOM I & E Ltd,External Temporary Staff
Peterborough City Council,Communities,Housing,Services,10/10/2018,30196979,36141.00,Revenue,Stef & Philips Ltd,Temporary Accommodation Costs
Peterborough City Council,Financial Services,Insurance,Services,10/10/2018,30196984,996.50,Revenue,Browne Jacobson,Legal Costs
Peterborough City Council,Communities,Performance & Information,Agency Staff,10/10/2018,30197055,985.88,Revenue,Reed Specialist Recruitment Limited,External Temporary Staff
Peterborough City Council,Legal Services,Legal Services,Agency Staff,10/10/2018,30197142,747.00,Revenue,Giant Professional Limited,External Temporary Staff
Peterborough City Council,Corporate,Corporate,Non Revenue,10/10/2018,30197148,20000.00,Balance Sheet,Browne Jacobson,Insurance Claims
Peterborough City Council,Adults,Independent Sector Placements,Services,10/10/2018,30197305,900.00,Revenue,SOCIAL CARE SOLUTIONS LTD,Home Care
Peterborough City Council,Adults,Independent Sector Placements,Services,10/10/2018,30197306,2472.64,Revenue,SOCIAL CARE SOLUTIONS LTD,Home Care
Peterborough City Council,Adults,Independent Sector Placements,Services,10/10/2018,30197311,2462.44,Revenue,SOCIAL CARE SOLUTIONS LTD,Home Care
Peterborough City Council,Adults,Independent Sector Placements,Services,10/10/2018,30197312,7700.40,Revenue,SOCIAL CARE SOLUTIONS LTD,Home Care
Peterborough City Council,Adults,Independent Sector Placements,Services,10/10/2018,30197321,3000.00,Revenue,SOCIAL CARE SOLUTIONS LTD,Home Care
Peterborough City Council,Commissioning and Commercial Operations,Early Years & Quality Improvement,Services,10/10/2018,30197333,904.02,Revenue,Redacted Personal Data,Grant Payment
Peterborough City Council,Adults,Independent Sector Placements,Services,10/10/2018,30197336,6674.40,Revenue,SOCIAL CARE SOLUTIONS LTD,Home Care
Peterborough City Council,Adults,Independent Sector Placements,Services,10/10/2018,30197337,3740.12,Revenue,SOCIAL CARE SOLUTIONS LTD,Home Care
Peterborough City Council,Adults,Independent Sector Placements,Services,10/10/2018,30197339,6591.00,Revenue,SOCIAL CARE SOLUTIONS LTD,Home Care
Peterborough City Council,Adults,Independent Sector Placements,Services,10/10/2018,30197341,4463.20,Revenue,SOCIAL CARE SOLUTIONS LTD,Home Care
Peterborough City Council,Adults,Independent Sector Placements,Services,10/10/2018,30197342,3210.64,Revenue,SOCIAL CARE SOLUTIONS LTD,Home Care
Peterborough City Council,Adults,Independent Sector Placements,Services,10/10/2018,30197343,1932.00,Revenue,SOCIAL CARE SOLUTIONS LTD,Home Care
Peterborough City Council,Adults,Independent Sector Placements,Services,10/10/2018,30197344,3784.00,Revenue,Community Care Solutions Ltd,Residential Care
Peterborough City Council,Adults,Independent Sector Placements,Services,10/10/2018,30197346,900.00,Revenue,SOCIAL CARE SOLUTIONS LTD,Home Care
Peterborough City Council,Adults,Independent Sector Placements,Services,10/10/2018,30197347,3290.12,Revenue,SOCIAL CARE SOLUTIONS LTD,Home Care
Peterborough City Council,Adults,Independent Sector Placements,Services,10/10/2018,30197349,6426.00,Revenue,SOCIAL CARE SOLUTIONS LTD,Home Care
Peterborough City Council,Adults,Independent Sector Placements,Services,10/10/2018,30197350,3767.20,Revenue,Community Care Solutions Ltd,Residential Care
Peterborough City Council,Adults,Independent Sector Placements,Services,10/10/2018,30197351,3767.20,Revenue,Community Care Solutions Ltd,Residential Care
Peterborough City Council,Adults,Independent Sector Placements,Services,10/10/2018,30197354,3767.20,Revenue,Community Care Solutions Ltd,Residential Care
Peterborough City Council,Adults,Independent Sector Placements,Services,10/10/2018,30197356,3767.20,Revenue,Community Care Solutions Ltd,Residential Care
Peterborough City Council,Corporate,Corporate,Non Revenue,10/10/2018,30197410,22000.45,Capital,Vivacity Culture and Leisure,Building And Site Works
Peterborough City Council,Adults,Independent Sector Placements,Services,10/10/2018,30197494,7633.32,Revenue,Sense,Residential Care
Peterborough City Council,Adults,Independent Sector Placements,Services,10/10/2018,30197495,5503.00,Revenue,Sense,Residential Care
Peterborough City Council,Adults,Independent Sector Placements,Services,10/10/2018,30197496,6575.00,Revenue,Sense,Residential Care
Peterborough City Council,Adults,Independent Sector Placements,Services,10/10/2018,30197497,5713.92,Revenue,Sense,Residential Care
Peterborough City Council,Adults,Independent Sector Placements,Services,10/10/2018,30197498,3518.80,Revenue,Sense,Residential Care
Peterborough City Council,Children's & Safeguarding,Access to Resources & Specialist Commissioning,Services,10/10/2018,30197542,2625.00,Revenue,Transition Care Peterborough Ltd,Boarding Out Fees
Peterborough City Council,Peterborough Highway Services,Transport & Infrastructure Commissioning,Services,10/10/2018,30197557,8882.40,Revenue,The K A Wing Group Ltd,Infrastructure Maintenance
Peterborough City Council,Corporate Property,Commercial Propety,Services,10/10/2018,30197569,9150.00,Revenue,Redacted Personal Data,Compensation
Peterborough City Council,Corporate,Corporate,Non Revenue,10/10/2018,30197572,11582.50,Capital,Gaswise Services Ltd,Grant Payment
Peterborough City Council,Corporate,Corporate,Non Revenue,10/10/2018,30197573,6157.00,Capital,Allworks Home Improvements Ltd,Grant Payment
Peterborough City Council,Corporate,Corporate,Non Revenue,10/10/2018,30197574,11265.00,Capital,Gaswise Services Ltd,Grant Payment
Peterborough City Council,Corporate,Corporate,Non Revenue,10/10/2018,30197576,4436.05,Capital,Obam Domestic Lift Services Ltd,Grant Payment
Peterborough City Council,Children's & Safeguarding,Access to Resources & Specialist Commissioning,Services,10/10/2018,30197577,2625.00,Revenue,Transition Care Peterborough Ltd,Boarding Out Fees
Peterborough City Council,Corporate,Corporate,Non Revenue,10/10/2018,30197578,4859.00,Capital,Gaswise Services Ltd,Grant Payment
Peterborough City Council,Corporate,Corporate,Non Revenue,10/10/2018,30197579,542.50,Capital,Gaswise Services Ltd,Grant Payment
Peterborough City Council,Children's & Safeguarding,Access to Resources & Specialist Commissioning,Services,10/10/2018,30197589,1377.00,Revenue,Transition Care Peterborough Ltd,Boarding Out Fees
Peterborough City Council,Children's & Safeguarding,Access to Resources & Specialist Commissioning,Services,10/10/2018,30197590,1437.00,Revenue,Transition Care Peterborough Ltd,Boarding Out Fees
Peterborough City Council,Adults,Independent Sector Placements,Services,10/10/2018,30197598,504.00,Revenue,THE HELPING HANDS GROUP,Day Care
Peterborough City Council,Adults,Independent Sector Placements,Services,10/10/2018,30197599,693.00,Revenue,THE HELPING HANDS GROUP,Day Care
Peterborough City Council,Adults,Independent Sector Placements,Services,10/10/2018,30197601,630.00,Revenue,THE HELPING HANDS GROUP,Day Care
Peterborough City Council,Adults,Independent Sector Placements,Services,10/10/2018,30197602,1959.60,Revenue,South West Care Homes LTD (The Firs),Residential Care
Peterborough City Council,Adults,Independent Sector Placements,Services,10/10/2018,30197603,5646.43,Revenue,Transitions Supported Living Ltd,Home Care
Peterborough City Council,Children's & Safeguarding,Access to Resources & Specialist Commissioning,Services,10/10/2018,30197605,1869.00,Revenue,Transition Care Peterborough Ltd,Boarding Out Fees
Peterborough City Council,Corporate,Corporate,Non Revenue,10/10/2018,30197641,5837.04,Capital,Serco Ltd,Infrastructure
Peterborough City Council,Adults,Independent Sector Placements,Services,10/10/2018,30197676,929.43,Revenue,The Orders of St John Care Trust,Residential Care
Peterborough City Council,Constitutional Services,Elections,Services,10/10/2018,30197677,29033.42,Revenue,Electoral Reform Services,Postage
Peterborough City Council,Constitutional Services,Elections,Services,10/10/2018,30197678,4925.61,Revenue,Electoral Reform Services,Printing
Peterborough City Council,Constitutional Services,Elections,Services,10/10/2018,30197680,1229.20,Revenue,Royal Mail,Postage
Peterborough City Council,Commissioning and Commercial Operations,Clare Lodge,Agency Staff,10/10/2018,30197681,709.29,Revenue,Reed Specialist Recruitment Limited,External Temporary Staff
Peterborough City Council,Commissioning and Commercial Operations,Clare Lodge,Agency Staff,10/10/2018,30197683,603.86,Revenue,Reed Specialist Recruitment Limited,External Temporary Staff
Peterborough City Council,Commissioning and Commercial Operations,Commissioning Team,Agency Staff,10/10/2018,30197689,2243.60,Revenue,Reed Specialist Recruitment Limited,External Temporary Staff
Peterborough City Council,Financial Services,Finance,Agency Staff,10/10/2018,30197703,829.04,Revenue,Reed Specialist Recruitment Limited,External Temporary Staff
Peterborough City Council,Regulatory Services,Regulatory Services,Agency Staff,10/10/2018,30197704,736.56,Revenue,Reed Specialist Recruitment Limited,External Temporary Staff
Peterborough City Council,Development and Construction,Development Management,Agency Staff,10/10/2018,30197709,1365.01,Revenue,Reed Specialist Recruitment Limited,External Temporary Staff
Peterborough City Council,Adults,Home Services Delivery Model,Agency Staff,10/10/2018,30197712,1018.13,Revenue,Reed Specialist Recruitment Limited,External Temporary Staff
Peterborough City Council,Regulatory Services,Regulatory Services,Agency Staff,10/10/2018,30197717,1319.15,Revenue,Reed Specialist Recruitment Limited,External Temporary Staff
Peterborough City Council,Development and Construction,Development Management,Agency Staff,10/10/2018,30197733,1568.80,Revenue,Reed Specialist Recruitment Limited,External Temporary Staff
Peterborough City Council,Legal Services,Legal Services,Agency Staff,10/10/2018,30197736,2025.38,Revenue,Reed Specialist Recruitment Limited,External Temporary Staff
Peterborough City Council,Financial Services,Finance,Agency Staff,10/10/2018,30197739,657.86,Revenue,Reed Specialist Recruitment Limited,External Temporary Staff
Peterborough City Council,Peterborough Highway Services,Highway & Drainage Control,Agency Staff,10/10/2018,30197743,1202.40,Revenue,Reed Specialist Recruitment Limited,External Temporary Staff
Peterborough City Council,Peterborough Highway Services,Highway Services - HoS,Agency Staff,10/10/2018,30197769,1235.80,Revenue,Reed Specialist Recruitment Limited,External Temporary Staff
Peterborough City Council,Adults,Strategic Commissioning - Management,Agency Staff,10/10/2018,30197770,2953.60,Revenue,Reed Specialist Recruitment Limited,External Temporary Staff
Peterborough City Council,Peterborough Highway Services,Highway & Drainage Control,Agency Staff,10/10/2018,30197774,1420.80,Revenue,Reed Specialist Recruitment Limited,External Temporary Staff
Peterborough City Council,Regulatory Services,Regulatory Services,Agency Staff,10/10/2018,30197784,1283.53,Revenue,Reed Specialist Recruitment Limited,External Temporary Staff
Peterborough City Council,Development and Construction,Development Management,Agency Staff,10/10/2018,30197787,1000.21,Revenue,Reed Specialist Recruitment Limited,External Temporary Staff
Peterborough City Council,Corporate,Corporate,Non Revenue,10/10/2018,30197804,5284.51,Balance Sheet,The Prudential Assurance Company Ltd,Pensions
Peterborough City Council,Corporate,Corporate,Non Revenue,10/10/2018,30197805,895.21,Balance Sheet,The Prudential Assurance Company Ltd,Pensions
Peterborough City Council,Adults,Block Contracts,Third Party Payments,10/10/2018,30197808,617.78,Revenue,Cross Keys Homes,Third Party Payments - Contract
Peterborough City Council,City Centre Management,"Markets, Tourism & Events",Rents,10/10/2018,30197810,-4390.00,Revenue,Kingsgate Trading Ltd,Hire Of Premises
Peterborough City Council,Communities,Housing,Services,10/10/2018,30197811,5723.98,Revenue,Cross Keys Homes,Temporary Accommodation Costs
Peterborough City Council,Adults,Day opportunities - Older People,Rents,10/10/2018,30197813,975.00,Revenue,Cross Keys Homes,Hire Of Premises
Peterborough City Council,Children's & Safeguarding,Access to Resources & Specialist Commissioning,Services,10/10/2018,30197847,1869.00,Revenue,Transition Care Peterborough Ltd,Boarding Out Fees
Peterborough City Council,Children's & Safeguarding,Access to Resources & Specialist Commissioning,Services,10/10/2018,30197848,2625.00,Revenue,Transition Care Peterborough Ltd,Boarding Out Fees
Peterborough City Council,Children's & Safeguarding,Access to Resources & Specialist Commissioning,Services,10/10/2018,30197849,2625.00,Revenue,Transition Care Peterborough Ltd,Boarding Out Fees
Peterborough City Council,Children's & Safeguarding,Access to Resources & Specialist Commissioning,Services,10/10/2018,30197897,1437.00,Revenue,Transition Care Peterborough Ltd,Boarding Out Fees
Peterborough City Council,Children's & Safeguarding,Access to Resources & Specialist Commissioning,Services,10/10/2018,30197900,1377.00,Revenue,Transition Care Peterborough Ltd,Boarding Out Fees
Peterborough City Council,Children's & Safeguarding,Access to Resources & Specialist Commissioning,Services,10/10/2018,30197906,2625.00,Revenue,Transition Care Peterborough Ltd,Boarding Out Fees
Peterborough City Council,Children's & Safeguarding,Access to Resources & Specialist Commissioning,Services,10/10/2018,30197908,2625.00,Revenue,Transition Care Peterborough Ltd,Boarding Out Fees
Peterborough City Council,Adults,Strategic Commissioning - Management,Agency Staff,10/10/2018,30197917,871.66,Revenue,Reed Specialist Recruitment Limited,External Temporary Staff
Peterborough City Council,Adults,Strategic Commissioning - Management,Agency Staff,10/10/2018,30197918,645.42,Revenue,Reed Specialist Recruitment Limited,External Temporary Staff
Peterborough City Council,Adults,Therapy/Reablement/Community Equipment,Agency Staff,10/10/2018,30197921,1164.40,Revenue,Eden Brown Ltd,External Temporary Staff
Peterborough City Council,Adults,Finance,Agency Staff,10/10/2018,30197923,2433.60,Revenue,Reed Specialist Recruitment Limited,External Temporary Staff
Peterborough City Council,Corporate,Corporate,Non Revenue,10/10/2018,30197943,819.79,Capital,InBuild Solutions Limited,Grant Payment
Peterborough City Council,Legal Services,Legal Services,Services,10/10/2018,30197946,800.00,Revenue,Buckles Solicitors LLP,Legal Costs
Peterborough City Council,Financial Services,Insurance,Services,10/10/2018,30197959,1135.50,Revenue,Browne Jacobson,Legal Costs
Peterborough City Council,Westcombe Engineering,Westcombe Engineering,"Tools, Equipment, Furniture & Materials",10/10/2018,30197964,610.73,Revenue,Carillon Industrial Services Ltd,Tools
Peterborough City Council,Adults,Independent Sector Placements,Services,10/10/2018,30197970,1814.64,Revenue,K2 CARE LTD,Home Care
Peterborough City Council,Adults,Independent Sector Placements,Services,10/10/2018,30197988,1292.25,Revenue,PRESTIGE NURSING LIMITED,Home Care
Peterborough City Council,Communities,Housing,Services,10/10/2018,30197998,3030.00,Revenue,Singh and Sons Property Management Ltd,Temporary Accommodation Costs
Peterborough City Council,Communities,Housing,Services,10/10/2018,30197999,3220.00,Revenue,Singh and Sons Property Management Ltd,Temporary Accommodation Costs
Peterborough City Council,Communities,Housing,Services,10/10/2018,30198000,2275.00,Revenue,Singh and Sons Property Management Ltd,Temporary Accommodation Costs
Peterborough City Council,Communities,Housing,Services,10/10/2018,30198001,2840.00,Revenue,Singh and Sons Property Management Ltd,Temporary Accommodation Costs
Peterborough City Council,Communities,Cohesion,Services,10/10/2018,30198031,800.00,Revenue,Rightroom Lettings Ltd,Financial Assistance
Peterborough City Council,Communities,Cohesion,Services,10/10/2018,30198033,575.00,Revenue,Record Property Solutions,Financial Assistance
Peterborough City Council,Communities,Cohesion,Services,10/10/2018,30198035,800.00,Revenue,Hope Into Action,Financial Assistance
Peterborough City Council,Communities,Cohesion,Services,10/10/2018,30198036,625.00,Revenue,Rightroom Lettings Ltd,Financial Assistance
Peterborough City Council,Communities,Cohesion,Services,10/10/2018,30198049,750.00,Revenue,Redacted Personal Data,Financial Assistance
Peterborough City Council,Communities,Cohesion,Services,10/10/2018,30198050,625.00,Revenue,Record Property Solutions,Financial Assistance
Peterborough City Council,Communities,Cohesion,Services,10/10/2018,30198051,575.00,Revenue,Redacted Personal Data,Financial Assistance
Peterborough City Council,Communities,Cohesion,Services,10/10/2018,30198052,625.00,Revenue,Record Property Solutions,Financial Assistance
Peterborough City Council,Communities,Cohesion,Services,10/10/2018,30198054,750.00,Revenue,Redacted Personal Data,Financial Assistance
Peterborough City Council,Adults,Community Team,Agency Staff,10/10/2018,30198070,1221.00,Revenue,Medicare First Ltd,External Temporary Staff
Peterborough City Council,Adults,Strategic Commissioning - Management,Agency Staff,10/10/2018,30198073,871.66,Revenue,Reed Specialist Recruitment Limited,External Temporary Staff
Peterborough City Council,Communities,Housing,Agency Staff,10/10/2018,30198074,1822.51,Revenue,Reed Specialist Recruitment Limited,External Temporary Staff
Peterborough City Council,Adults,Strategic Commissioning - Management,Agency Staff,10/10/2018,30198075,689.29,Revenue,Reed Specialist Recruitment Limited,External Temporary Staff
Peterborough City Council,Communities,Cultural Services,"Tools, Equipment, Furniture & Materials",10/10/2018,30198081,6584.60,Revenue,Vivacity Culture and Leisure,Computer Hardware
Peterborough City Council,Corporate,Corporate,Non Revenue,10/10/2018,30198081,1313.25,Capital,Vivacity Culture and Leisure,Building And Site Works
Peterborough City Council,Adults,Independent Sector Placements,Services,10/10/2018,30198082,2176.24,Revenue,Avery House (Peterborough) t/a Brighterkind,Residential Care
Peterborough City Council,Adults,Independent Sector Placements,Services,10/10/2018,30198083,2176.24,Revenue,Avery House (Peterborough) t/a Brighterkind,Residential Care
Peterborough City Council,Corporate Items,Corporate Services,Services,10/10/2018,30198090,1484.00,Revenue,Pinsent Masons,Legal Costs
Peterborough City Council,Communities,Housing,Agency Staff,10/10/2018,30198096,1822.51,Revenue,Reed Specialist Recruitment Limited,External Temporary Staff
Peterborough City Council,Adults,Strategic Commissioning - Management,Agency Staff,10/10/2018,30198098,664.28,Revenue,Reed Specialist Recruitment Limited,External Temporary Staff
Peterborough City Council,Adults,Strategic Commissioning - Management,Agency Staff,10/10/2018,30198099,871.66,Revenue,Reed Specialist Recruitment Limited,External Temporary Staff
Peterborough City Council,Adults,Strategic Commissioning - Management,Agency Staff,10/10/2018,30198103,778.83,Revenue,Reed Specialist Recruitment Limited,External Temporary Staff
Peterborough City Council,Communities,Housing,Agency Staff,10/10/2018,30198104,1822.51,Revenue,Reed Specialist Recruitment Limited,External Temporary Staff
Peterborough City Council,Adults,Strategic Commissioning - Management,Agency Staff,10/10/2018,30198105,664.28,Revenue,Reed Specialist Recruitment Limited,External Temporary Staff
Peterborough City Council,Communities,Housing,Agency Staff,10/10/2018,30198121,1453.53,Revenue,Reed Specialist Recruitment Limited,External Temporary Staff
Peterborough City Council,Corporate Property,Office Accomodation,Agency Staff,10/10/2018,30198122,5680.53,Revenue,Reed Specialist Recruitment Limited,External Temporary Staff
Peterborough City Council,Corporate,Corporate,Non Revenue,10/10/2018,30198127,600.00,Balance Sheet,Talkboost UK,Refunds 
Peterborough City Council,Adults,Strategic Commissioning - Management,Agency Staff,10/10/2018,30198144,566.60,Revenue,Reed Specialist Recruitment Limited,External Temporary Staff
Peterborough City Council,Adults,Strategic Commissioning - Management,Agency Staff,10/10/2018,30198145,534.38,Revenue,Reed Specialist Recruitment Limited,External Temporary Staff
Peterborough City Council,Adults,Independent Sector Placements,Social Services,10/10/2018,8000124571,1447.20,Revenue,Redacted Personal Data,Direct Payments
Peterborough City Council,Adults,Independent Sector Placements,Social Services,10/10/2018,8000125671,900.48,Revenue,Redacted Personal Data,Direct Payments
Peterborough City Council,Adults,Independent Sector Placements,Services,10/10/2018,8000126016,749.70,Revenue,Axiom Housing Association Ltd,Home Care
Peterborough City Council,Adults,Independent Sector Placements,Services,10/10/2018,8000126017,749.70,Revenue,Axiom Housing Association Ltd,Home Care
Peterborough City Council,Adults,Independent Sector Placements,Services,10/10/2018,8000126020,749.70,Revenue,Axiom Housing Association Ltd,Home Care
Peterborough City Council,Adults,Independent Sector Placements,Services,10/10/2018,8000126023,595.00,Revenue,Axiom Housing Association Ltd,Home Care
Peterborough City Council,Adults,Independent Sector Placements,Services,10/10/2018,8000126024,696.15,Revenue,Axiom Housing Association Ltd,Home Care
Peterborough City Council,Adults,Independent Sector Placements,Services,10/10/2018,8000126025,666.40,Revenue,Axiom Housing Association Ltd,Home Care
Peterborough City Council,Adults,Independent Sector Placements,Services,10/10/2018,8000126027,761.60,Revenue,Axiom Housing Association Ltd,Home Care
Peterborough City Council,Adults,Independent Sector Placements,Services,10/10/2018,8000126032,511.70,Revenue,Axiom Housing Association Ltd,Home Care
Peterborough City Council,Adults,Independent Sector Placements,Services,10/10/2018,8000126035,583.10,Revenue,Axiom Housing Association Ltd,Home Care
Peterborough City Council,Adults,Independent Sector Placements,Services,10/10/2018,8000126038,1249.50,Revenue,Axiom Housing Association Ltd,Home Care
Peterborough City Council,Adults,Independent Sector Placements,Services,10/10/2018,8000126043,666.40,Revenue,Axiom Housing Association Ltd,Home Care
Peterborough City Council,Adults,Independent Sector Placements,Services,10/10/2018,8000126044,666.40,Revenue,Axiom Housing Association Ltd,Home Care
Peterborough City Council,Adults,Independent Sector Placements,Services,10/10/2018,8000126045,749.70,Revenue,Axiom Housing Association Ltd,Home Care
Peterborough City Council,Adults,Independent Sector Placements,Services,10/10/2018,8000126046,1499.40,Revenue,Axiom Housing Association Ltd,Home Care
Peterborough City Council,Adults,Independent Sector Placements,Services,10/10/2018,8000126050,1832.60,Revenue,Axiom Housing Association Ltd,Home Care
Peterborough City Council,Adults,Independent Sector Placements,Services,10/10/2018,8000126052,1547.00,Revenue,Axiom Housing Association Ltd,Home Care
Peterborough City Council,Adults,Independent Sector Placements,Services,10/10/2018,8000126053,583.10,Revenue,Axiom Housing Association Ltd,Home Care
Peterborough City Council,Adults,Independent Sector Placements,Services,10/10/2018,8000126057,749.70,Revenue,Axiom Housing Association Ltd,Home Care
Peterborough City Council,Adults,Independent Sector Placements,Services,10/10/2018,8000126058,583.10,Revenue,Axiom Housing Association Ltd,Home Care
Peterborough City Council,Adults,Independent Sector Placements,Services,10/10/2018,8000126059,928.20,Revenue,Axiom Housing Association Ltd,Home Care
Peterborough City Council,Adults,Independent Sector Placements,Services,10/10/2018,8000126063,833.00,Revenue,Axiom Housing Association Ltd,Home Care
Peterborough City Council,Adults,Independent Sector Placements,Services,10/10/2018,8000126065,583.10,Revenue,Axiom Housing Association Ltd,Home Care
Peterborough City Council,Adults,Independent Sector Placements,Services,10/10/2018,8000126072,1499.40,Revenue,Axiom Housing Association Ltd,Home Care
Peterborough City Council,Adults,Independent Sector Placements,Services,10/10/2018,8000126074,642.60,Revenue,Axiom Housing Association Ltd,Home Care
Peterborough City Council,Adults,Independent Sector Placements,Services,10/10/2018,8000126075,1582.70,Revenue,Axiom Housing Association Ltd,Home Care
Peterborough City Council,Adults,Independent Sector Placements,Services,10/10/2018,8000126077,583.10,Revenue,Axiom Housing Association Ltd,Home Care
Peterborough City Council,Adults,Independent Sector Placements,Services,10/10/2018,8000126080,1999.20,Revenue,Axiom Housing Association Ltd,Home Care
Peterborough City Council,Adults,Independent Sector Placements,Services,10/10/2018,8000126082,511.70,Revenue,Axiom Housing Association Ltd,Home Care
Peterborough City Council,Adults,Independent Sector Placements,Services,10/10/2018,8000126083,556.33,Revenue,Axiom Housing Association Ltd,Home Care
Peterborough City Council,Adults,Independent Sector Placements,Services,10/10/2018,8000126084,952.00,Revenue,Axiom Housing Association Ltd,Home Care
Peterborough City Council,Adults,Independent Sector Placements,Services,10/10/2018,8000126086,1594.80,Revenue,Axiom Housing Association Ltd,Home Care
Peterborough City Council,Adults,Independent Sector Placements,Services,10/10/2018,8000126091,749.70,Revenue,Axiom Housing Association Ltd,Home Care
Peterborough City Council,Adults,Independent Sector Placements,Services,10/10/2018,8000126092,916.30,Revenue,Axiom Housing Association Ltd,Home Care
Peterborough City Council,Adults,Independent Sector Placements,Services,10/10/2018,8000126093,666.40,Revenue,Axiom Housing Association Ltd,Home Care
Peterborough City Council,Adults,Independent Sector Placements,Services,10/10/2018,8000126096,749.70,Revenue,Axiom Housing Association Ltd,Home Care
Peterborough City Council,Adults,Independent Sector Placements,Services,10/10/2018,8000126102,866.25,Revenue,Axiom Housing Association Ltd,Home Care
Peterborough City Council,Education,HTS & CSC Transport,Contract Hire and Operating Leases,10/10/2018,8000126802,1480.00,Revenue,Goldstar Cabs Ltd,Hired Transport
Peterborough City Council,Education,HTS & CSC Transport,Contract Hire and Operating Leases,10/10/2018,8000126826,725.33,Revenue,Redacted Personal Data,Hired Transport
Peterborough City Council,Legal & Democratic,Democratic Services,Contract Hire and Operating Leases,11/10/2018,8000127216,534.32,Revenue,Lex Autolease Ltd,Leasing Charges
Peterborough City Council,"Waste, Cleansing and Open Spaces",Waste Management,Services,12/10/2018,30188840,7570.42,Revenue,Biffa Waste Services Ltd,Waste Disposal
Peterborough City Council,"Waste, Cleansing and Open Spaces",Waste Management,Services,12/10/2018,30193427,7369.61,Revenue,Biffa Waste Services Ltd,Waste Disposal
Peterborough City Council,Children's & Safeguarding,Access to Resources & Specialist Commissioning,Services,12/10/2018,30195523,840.00,Revenue,Florinee Homes Ltd,Boarding Out Fees
Peterborough City Council,Children's & Safeguarding,Access to Resources & Specialist Commissioning,Services,12/10/2018,30195524,1980.00,Revenue,Florinee Homes Ltd,Boarding Out Fees
Peterborough City Council,Children's & Safeguarding,Access to Resources & Specialist Commissioning,Services,12/10/2018,30195525,1980.00,Revenue,Florinee Homes Ltd,Boarding Out Fees
Peterborough City Council,Children's & Safeguarding,Access to Resources & Specialist Commissioning,Services,12/10/2018,30195526,840.00,Revenue,Florinee Homes Ltd,Boarding Out Fees
Peterborough City Council,Corporate Property,Commercial Propety,Third Party Payments,12/10/2018,30195531,185273.32,Revenue,NPS Peterborough Ltd,Third Party Payments - Contract
Peterborough City Council,Commissioning and Commercial Operations,Clare Lodge,"Tools, Equipment, Furniture & Materials",12/10/2018,30195676,700.00,Revenue,Radiotronics Limited,Equipment Purchase
Peterborough City Council,Children's & Safeguarding,Children's Social Care,Agency Staff,12/10/2018,30195686,1462.24,Revenue,HCL Social Care Ltd,External Temporary Staff
Peterborough City Council,Education,School Standards & Effectiveness,Interview & Training Expenses,12/10/2018,30195707,500.00,Revenue,Edge Hill University,Training
Peterborough City Council,Communities,Housing,Services,12/10/2018,30195717,13746.23,Revenue,DA Rosalia Hotel,Temporary Accommodation Costs
Peterborough City Council,Children's & Safeguarding,Access to Resources & Specialist Commissioning,Services,12/10/2018,30195731,1980.00,Revenue,Florinee Homes Ltd,Boarding Out Fees
Peterborough City Council,Adults,Block Contracts,Contract Hire and Operating Leases,12/10/2018,30195737,5034.04,Revenue,Sense,Hired Transport
Peterborough City Council,Children's & Safeguarding,Access to Resources & Specialist Commissioning,Services,12/10/2018,30195752,2400.00,Revenue,Florinee Homes Ltd,Boarding Out Fees
Peterborough City Council,Commissioning and Commercial Operations,Clare Lodge,Agency Staff,12/10/2018,30195816,1488.00,Revenue,Wrixon Care Services,External Temporary Staff
Peterborough City Council,Commissioning and Commercial Operations,Clare Lodge,Agency Staff,12/10/2018,30195818,1608.00,Revenue,Wrixon Care Services,External Temporary Staff
Peterborough City Council,Adults,Independent Sector Placements,Services,12/10/2018,30195827,1776.24,Revenue,Goldcare Homes t/a The Tudors Care Home,Residential Care
Peterborough City Council,Adults,Independent Sector Placements,Services,12/10/2018,30195834,2300.00,Revenue,Goldcare Homes t/a The Tudors Care Home,Residential Care
Peterborough City Council,Adults,Independent Sector Placements,Services,12/10/2018,30195840,2021.88,Revenue,Goldcare Homes t/a The Tudors Care Home,Residential Care
Peterborough City Council,Adults,Independent Sector Placements,Services,12/10/2018,30195841,982.12,Revenue,Goldcare Homes t/a The Tudors Care Home,Residential Care
Peterborough City Council,Adults,Independent Sector Placements,Services,12/10/2018,30195842,1703.04,Revenue,Goldcare Homes t/a The Tudors Care Home,Residential Care
Peterborough City Council,Adults,Independent Sector Placements,Services,12/10/2018,30195843,1517.28,Revenue,Goldcare Homes t/a The Tudors Care Home,Residential Care
Peterborough City Council,Adults,Independent Sector Placements,Services,12/10/2018,30195844,1020.04,Revenue,Goldcare Homes t/a The Tudors Care Home,Residential Care
Peterborough City Council,Education,HTS & CSC Transport,Contract Hire and Operating Leases,12/10/2018,30195906,1044.56,Revenue,Centrebus North Ltd,Hired Transport
Peterborough City Council,Adults,Independent Sector Placements,Services,12/10/2018,30195911,529.20,Revenue,Carers Trust Cambridgeshire,Home Care
Peterborough City Council,Adults,Independent Sector Placements,Services,12/10/2018,30195912,567.00,Revenue,Carers Trust Cambridgeshire,Home Care
Peterborough City Council,Adults,Independent Sector Placements,Services,12/10/2018,30195913,544.32,Revenue,Carers Trust Cambridgeshire,Home Care
Peterborough City Council,Adults,Independent Sector Placements,Services,12/10/2018,30195967,532.98,Revenue,Carers Trust Cambridgeshire,Home Care
Peterborough City Council,Adults,Independent Sector Placements,Services,12/10/2018,30195977,544.32,Revenue,Carers Trust Cambridgeshire,Home Care
Peterborough City Council,Adults,Independent Sector Placements,Services,12/10/2018,30195979,506.52,Revenue,Carers Trust Cambridgeshire,Home Care
Peterborough City Council,Adults,Independent Sector Placements,Services,12/10/2018,30196017,3686.00,Revenue,Carers Trust Cambridgeshire,Home Care
Peterborough City Council,Adults,Independent Sector Placements,Services,12/10/2018,30196073,2700.00,Revenue,Sense,Day Care
Peterborough City Council,Adults,Independent Sector Placements,Services,12/10/2018,30196084,715.76,Revenue,Sense,Day Care
Peterborough City Council,Adults,Independent Sector Placements,Services,12/10/2018,30196085,2483.60,Revenue,Sense,Day Care
Peterborough City Council,Adults,Independent Sector Placements,Services,12/10/2018,30196086,877.48,Revenue,Sense,Day Care
Peterborough City Council,Adults,Independent Sector Placements,Services,12/10/2018,30196087,1378.56,Revenue,Sense,Day Care
Peterborough City Council,Adults,Independent Sector Placements,Services,12/10/2018,30196089,2669.72,Revenue,Sense,Day Care
Peterborough City Council,Adults,Independent Sector Placements,Services,12/10/2018,30196135,2483.60,Revenue,Sense,Day Care
Peterborough City Council,Adults,Independent Sector Placements,Services,12/10/2018,30196136,2483.60,Revenue,Sense,Day Care
Peterborough City Council,Adults,Independent Sector Placements,Services,12/10/2018,30196137,1276.40,Revenue,Sense,Day Care
Peterborough City Council,Adults,Independent Sector Placements,Services,12/10/2018,30196139,1856.20,Revenue,Sense,Day Care
Peterborough City Council,Peterborough Serco Strategic Partnership,PSSP Retained Services,Services,12/10/2018,30196181,606.98,Revenue,Whistl UK Ltd,Postage
Peterborough City Council,Peterborough Serco Strategic Partnership,PSSP Retained Services,Services,12/10/2018,30196191,1844.33,Revenue,Whistl UK Ltd,Postage
Peterborough City Council,Corporate,Corporate,Non Revenue,12/10/2018,30196199,43127.50,Capital,Chris Groome Decorating Ltd,Building And Site Works
Peterborough City Council,Adults,Independent Sector Placements,Services,12/10/2018,30196228,510.56,Revenue,Sense,Day Care
Peterborough City Council,Adults,Independent Sector Placements,Services,12/10/2018,30196255,588.75,Revenue,FIELD HOUSE (EYE) LTD,Home Care
Peterborough City Council,Legal Services,Legal Services,Services,12/10/2018,30196291,1540.00,Revenue,Spinks Notary,Professional Fees
Peterborough City Council,Education,Financing - Resources,Services,12/10/2018,30196312,874.64,Revenue,Sense,Education Expenses
Peterborough City Council,Westcombe Engineering,Westcombe Engineering,"Tools, Equipment, Furniture & Materials",12/10/2018,30196369,570.96,Revenue,Barron Clark Castings Ltd,Materials
Peterborough City Council,Westcombe Engineering,Westcombe Engineering,"Tools, Equipment, Furniture & Materials",12/10/2018,30196370,567.60,Revenue,Barron Clark Castings Ltd,Materials
Peterborough City Council,Westcombe Engineering,Westcombe Engineering,"Tools, Equipment, Furniture & Materials",12/10/2018,30196372,646.00,Revenue,Barron Clark Castings Ltd,Materials
Peterborough City Council,Westcombe Engineering,Westcombe Engineering,"Tools, Equipment, Furniture & Materials",12/10/2018,30196377,531.36,Revenue,Barron Clark Castings Ltd,Materials
Peterborough City Council,Westcombe Engineering,Westcombe Engineering,"Tools, Equipment, Furniture & Materials",12/10/2018,30196388,683.20,Revenue,Barron Clark Castings Ltd,Materials
Peterborough City Council,Corporate,Corporate,Non Revenue,12/10/2018,30196402,722.84,Capital,Enterprise Managed Services Limited,Consultants Fees
Peterborough City Council,Corporate,Corporate,Non Revenue,12/10/2018,30196404,3128.22,Capital,Enterprise Managed Services Limited,Consultants Fees
Peterborough City Council,Corporate,Corporate,Non Revenue,12/10/2018,30196457,4000.00,Capital,The Froglife Trust,Building And Site Works
Peterborough City Council,Corporate,Corporate,Non Revenue,12/10/2018,30196519,724.46,Capital,Enterprise Managed Services Limited,Consultants Fees
Peterborough City Council,Legal Services,Legal Services,Services,12/10/2018,30196707,550.00,Revenue,"Martignetti, Mr Ian",Legal Costs
Peterborough City Council,Adults,Independent Sector Placements,Services,12/10/2018,30196965,1827.32,Revenue,Ashmere,Residential Care
Peterborough City Council,Commissioning and Commercial Operations,Clare Lodge,Agency Staff,12/10/2018,30197165,2344.00,Revenue,Wrixon Care Services,External Temporary Staff
Peterborough City Council,Adults,Independent Sector Placements,Services,12/10/2018,30197219,2434.56,Revenue,ABOUT ME CARE AND SUPPORT LTD,Home Care
Peterborough City Council,Adults,Independent Sector Placements,Services,12/10/2018,30197220,1324.86,Revenue,ABOUT ME CARE AND SUPPORT LTD,Home Care
Peterborough City Council,Adults,Independent Sector Placements,Services,12/10/2018,30197222,2577.60,Revenue,ABOUT ME CARE AND SUPPORT LTD,Home Care
Peterborough City Council,Adults,Independent Sector Placements,Services,12/10/2018,30197223,1861.60,Revenue,ABOUT ME CARE AND SUPPORT LTD,Home Care
Peterborough City Council,Adults,Independent Sector Placements,Services,12/10/2018,30197224,662.30,Revenue,ABOUT ME CARE AND SUPPORT LTD,Home Care
Peterborough City Council,Adults,Independent Sector Placements,Services,12/10/2018,30197225,1575.20,Revenue,ABOUT ME CARE AND SUPPORT LTD,Home Care
Peterborough City Council,Adults,Independent Sector Placements,Services,12/10/2018,30197226,724.95,Revenue,ABOUT ME CARE AND SUPPORT LTD,Home Care
Peterborough City Council,Adults,Independent Sector Placements,Services,12/10/2018,30197227,1897.40,Revenue,ABOUT ME CARE AND SUPPORT LTD,Home Care
Peterborough City Council,Adults,Independent Sector Placements,Services,12/10/2018,30197241,1074.00,Revenue,ABOUT ME CARE AND SUPPORT LTD,Home Care
Peterborough City Council,ICT,ICT,Services,12/10/2018,30197407,81276.49,Revenue,Amazon Web Services Inc.,Computer Software
Peterborough City Council,Adults,Independent Sector Placements,Services,12/10/2018,30197499,506.16,Revenue,Sense,Home Care
Peterborough City Council,Children's & Safeguarding,Children's Social Care,Relocation,12/10/2018,30197528,1455.64,Revenue,Tripod Partners Ltd,Relocation Expenses
Peterborough City Council,City Centre Management,"Markets, Tourism & Events",Repair & Maintenance of Buildings,12/10/2018,30197628,2155.28,Revenue,The K A Wing Group Ltd,Premises Maintenance
Peterborough City Council,Communities,Performance & Information,Agency Staff,12/10/2018,30197690,985.88,Revenue,Reed Specialist Recruitment Limited,External Temporary Staff
Peterborough City Council,Commissioning and Commercial Operations,Clare Lodge,Agency Staff,12/10/2018,30197692,594.27,Revenue,Reed Specialist Recruitment Limited,External Temporary Staff
Peterborough City Council,Children's & Safeguarding,Children's Social Care,Relocation,12/10/2018,30197721,1755.60,Revenue,Tripod Partners Ltd,Relocation Expenses
Peterborough City Council,Corporate,Corporate,Non Revenue,12/10/2018,30197728,352516.14,Capital,R G Carter Cambridge Ltd,Building And Site Works
Peterborough City Council,Development and Construction,Planning Compliance,Agency Staff,12/10/2018,30197786,894.43,Revenue,Reed Specialist Recruitment Limited,External Temporary Staff
Peterborough City Council,Children's & Safeguarding,Children's Social Care,Relocation,12/10/2018,30197963,5822.56,Revenue,Tripod Partners Ltd,Relocation Expenses
Peterborough City Council,Financial Services,Insurance,Services,12/10/2018,30197965,18636.35,Revenue,Browne Jacobson,Legal Costs
Peterborough City Council,Adults,Independent Sector Placements,Services,12/10/2018,30198191,915.25,Revenue,FIELD HOUSE (EYE) LTD,Residential Care
Peterborough City Council,Adults,Independent Sector Placements,Services,12/10/2018,30198192,600.00,Revenue,FIELD HOUSE (EYE) LTD,Residential Care
Peterborough City Council,Adults,Independent Sector Placements,Services,12/10/2018,30198193,2485.71,Revenue,FIELD HOUSE (EYE) LTD,Residential Care
Peterborough City Council,Adults,Independent Sector Placements,Services,12/10/2018,30198194,1200.00,Revenue,FIELD HOUSE (EYE) LTD,Residential Care
Peterborough City Council,Adults,Independent Sector Placements,Services,12/10/2018,30198195,1028.57,Revenue,FIELD HOUSE (EYE) LTD,Residential Care
Peterborough City Council,Adults,Strategic Commissioning - Management,Agency Staff,12/10/2018,30198211,649.88,Revenue,Reed Specialist Recruitment Limited,External Temporary Staff
Peterborough City Council,Adults,Independent Sector Placements,Services,12/10/2018,30198236,945.00,Revenue,THE HELPING HANDS GROUP,Day Care
Peterborough City Council,Adults,Independent Sector Placements,Services,12/10/2018,30198237,1194.75,Revenue,THE HELPING HANDS GROUP,Day Care
Peterborough City Council,Adults,Independent Sector Placements,Services,12/10/2018,30198238,1991.25,Revenue,THE HELPING HANDS GROUP,Day Care
Peterborough City Council,Adults,Independent Sector Placements,Services,12/10/2018,30198239,1830.00,Revenue,THE HELPING HANDS GROUP,Day Care
Peterborough City Council,Adults,Independent Sector Placements,Services,12/10/2018,30198240,1194.75,Revenue,THE HELPING HANDS GROUP,Day Care
Peterborough City Council,Adults,Independent Sector Placements,Services,12/10/2018,30198241,945.00,Revenue,THE HELPING HANDS GROUP,Day Care
Peterborough City Council,Adults,Block Contracts,Third Party Payments,12/10/2018,30198243,2340.57,Revenue,Park Vista Care Home,Third Party Payments - Contract
Peterborough City Council,Adults,Independent Sector Placements,Services,12/10/2018,30198244,2878.13,Revenue,THE HELPING HANDS GROUP,Day Care
Peterborough City Council,Adults,Independent Sector Placements,Services,12/10/2018,30198245,796.50,Revenue,THE HELPING HANDS GROUP,Day Care
Peterborough City Council,Adults,Independent Sector Placements,Services,12/10/2018,30198247,732.00,Revenue,THE HELPING HANDS GROUP,Day Care
Peterborough City Council,Adults,Independent Sector Placements,Services,12/10/2018,30198249,1041.75,Revenue,THE HELPING HANDS GROUP,Day Care
Peterborough City Council,Adults,Independent Sector Placements,Services,12/10/2018,30198250,1464.00,Revenue,THE HELPING HANDS GROUP,Day Care
Peterborough City Council,Adults,Independent Sector Placements,Services,12/10/2018,30198251,1830.00,Revenue,THE HELPING HANDS GROUP,Day Care
Peterborough City Council,Adults,Independent Sector Placements,Services,12/10/2018,30198253,945.00,Revenue,THE HELPING HANDS GROUP,Day Care
Peterborough City Council,Adults,Independent Sector Placements,Services,12/10/2018,30198254,756.00,Revenue,THE HELPING HANDS GROUP,Day Care
Peterborough City Council,Adults,Independent Sector Placements,Services,12/10/2018,30198256,945.00,Revenue,THE HELPING HANDS GROUP,Day Care
Peterborough City Council,Communities,Housing,Services,12/10/2018,30198257,91627.89,Revenue,Cross Keys Homes,Temporary Accommodation Costs
Peterborough City Council,Adults,Independent Sector Placements,Services,12/10/2018,30198258,567.00,Revenue,THE HELPING HANDS GROUP,Day Care
Peterborough City Council,Adults,Independent Sector Placements,Services,12/10/2018,30198260,1830.00,Revenue,THE HELPING HANDS GROUP,Day Care
Peterborough City Council,Adults,Independent Sector Placements,Services,12/10/2018,30198262,749.81,Revenue,THE HELPING HANDS GROUP,Day Care
Peterborough City Council,Commissioning and Commercial Operations,Commissioning,Services,12/10/2018,30198282,624.96,Revenue,CAPITA Translation and Interpreting,Interpretation Expenses
Peterborough City Council,Commissioning and Commercial Operations,Commissioning,Services,12/10/2018,30198284,757.04,Revenue,CAPITA Translation and Interpreting,Interpretation Expenses
Peterborough City Council,Commissioning and Commercial Operations,Commissioning,Services,12/10/2018,30198290,881.00,Revenue,CAPITA Translation and Interpreting,Interpretation Expenses
Peterborough City Council,Commissioning and Commercial Operations,Commissioning,Services,12/10/2018,30198293,555.12,Revenue,CAPITA Translation and Interpreting,Interpretation Expenses
Peterborough City Council,Commissioning and Commercial Operations,Commissioning,Services,12/10/2018,30198319,606.55,Revenue,CAPITA Translation and Interpreting,Interpretation Expenses
Peterborough City Council,Adults,Independent Sector Placements,Services,12/10/2018,30198343,2640.04,Revenue,Barchester Healthcare (Werrington Lodge),Residential Care
Peterborough City Council,Adults,Independent Sector Placements,Services,12/10/2018,30198357,5760.00,Revenue,Barchester Healthcare (Werrington Lodge),Residential Care
Peterborough City Council,Adults,Independent Sector Placements,Services,12/10/2018,30198363,2057.14,Revenue,FIELD HOUSE (EYE) LTD,Residential Care
Peterborough City Council,Commissioning and Commercial Operations,Early Years & Quality Improvement,Services,12/10/2018,30198375,13472.34,Revenue,The Owls' Nest Pre-School,Grant Payment
Peterborough City Council,Commissioning and Commercial Operations,Early Years & Quality Improvement,Services,12/10/2018,30198376,17518.54,Revenue,Longthorpe Playgroup,Grant Payment
Peterborough City Council,Commissioning and Commercial Operations,Early Years & Quality Improvement,Services,12/10/2018,30198377,1556.10,Revenue,Redacted Personal Data,Grant Payment
Peterborough City Council,Commissioning and Commercial Operations,Early Years & Quality Improvement,Services,12/10/2018,30198381,2502.50,Revenue,Orton Longueville Playgroup,Grant Payment
Peterborough City Council,Commissioning and Commercial Operations,Early Years & Quality Improvement,Services,12/10/2018,30198382,624.00,Revenue,Busy Bunnies Braybrook,Grant Payment
Peterborough City Council,Commissioning and Commercial Operations,Early Years & Quality Improvement,Services,12/10/2018,30198383,1215.50,Revenue,Anna-Ca-Soo Day Nursery,Grant Payment
Peterborough City Council,Commissioning and Commercial Operations,Early Years & Quality Improvement,Services,12/10/2018,30198384,910.00,Revenue,Stars Pre-School Dogsthorpe,Grant Payment
Peterborough City Council,Commissioning and Commercial Operations,Early Years & Quality Improvement,Services,12/10/2018,30198385,2418.00,Revenue,Herlington Pre-School,Grant Payment
Peterborough City Council,Commissioning and Commercial Operations,Early Years & Quality Improvement,Services,12/10/2018,30198386,682.50,Revenue,Newborough Pre-School Playgroup,Grant Payment
Peterborough City Council,Communities,Targeted Youth Service,Services,12/10/2018,30198414,9900.00,Revenue,Kingswood Learning & Leisure Grp Ltd,Youth Programmes
Peterborough City Council,Communities,Targeted Youth Service,Services,12/10/2018,30198415,9900.00,Revenue,Kingswood Learning & Leisure Grp Ltd,Youth Programmes
Peterborough City Council,Children's & Safeguarding,CSC Quality Assurance,Services,12/10/2018,30198416,566.50,Revenue,Betteridge SW Solutions Ltd,Consultants Fees
Peterborough City Council,ICT,ICT,Services,12/10/2018,30198418,6381.40,Revenue,Capita Business Services Ltd,Computer Software
Peterborough City Council,Adults,Independent Sector Placements,Services,12/10/2018,30198424,-5203.04,Revenue,Barchester Healthcare (Werrington Lodge),Residential Care
Peterborough City Council,Adults,Independent Sector Placements,Services,12/10/2018,30198443,1610.56,Revenue,Avery House (Peterborough) t/a Brighterkind,Residential Care
Peterborough City Council,Communities,Targeted Youth Service,Services,12/10/2018,30198464,4450.00,Revenue,Kingswood Learning & Leisure Grp Ltd,Youth Programmes
Peterborough City Council,Education,HTS & CSC Transport,Contract Hire and Operating Leases,12/10/2018,8000126841,627.60,Revenue,A2B Euro Cars,Hired Transport
Peterborough City Council,Education,HTS & CSC Transport,Contract Hire and Operating Leases,12/10/2018,8000126849,1610.00,Revenue,Goldstar Cabs Ltd,Hired Transport
Peterborough City Council,Education,HTS & CSC Transport,Contract Hire and Operating Leases,12/10/2018,8000126856,3800.00,Revenue,Marks Passenger Services Ltd,Hired Transport
Peterborough City Council,Education,HTS & CSC Transport,Contract Hire and Operating Leases,12/10/2018,8000126859,3413.79,Revenue,Marks Passenger Services Ltd,Hired Transport
Peterborough City Council,Education,HTS & CSC Transport,Contract Hire and Operating Leases,12/10/2018,8000126860,2570.60,Revenue,Marks Passenger Services Ltd,Hired Transport
Peterborough City Council,Public Health,PH Commissioning,Third Party Payments,15/10/2018,30185491,758.00,Revenue,Cambridgeshire Community Services,Third Party Payments - Contract
Peterborough City Council,Public Health,PH Commissioning,Third Party Payments,15/10/2018,30187979,651.00,Revenue,Cambridgeshire Community Services,Third Party Payments - Contract
Peterborough City Council,Public Health,PH Commissioning,Third Party Payments,15/10/2018,30191986,729.00,Revenue,Cambridgeshire Community Services,Third Party Payments - Contract
Peterborough City Council,Adults,Independent Sector Placements,Services,15/10/2018,30195342,6496.00,Revenue,Voyage,Home Care
Peterborough City Council,Adults,Independent Sector Placements,Services,15/10/2018,30195549,1094.56,Revenue,Kemps Place Ltd,Residential Care
Peterborough City Council,Adults,Independent Sector Placements,Services,15/10/2018,30195550,2735.48,Revenue,Kemps Place Ltd,Residential Care
Peterborough City Council,Adults,Independent Sector Placements,Services,15/10/2018,30195551,2535.48,Revenue,Kemps Place Ltd,Residential Care
Peterborough City Council,Adults,Independent Sector Placements,Services,15/10/2018,30195683,1137.48,Revenue,Oakhouse Home Care Cambs Ltd,Residential Care
Peterborough City Council,Adults,Independent Sector Placements,Services,15/10/2018,30195684,1205.68,Revenue,Oakhouse Home Care Cambs Ltd,Residential Care
Peterborough City Council,Adults,Independent Sector Placements,Services,15/10/2018,30195685,984.32,Revenue,Oakhouse Home Care Cambs Ltd,Residential Care
Peterborough City Council,Children's & Safeguarding,Children's Social Care,Services,15/10/2018,30195690,7200.00,Revenue,MA Education Ltd,Conferences
Peterborough City Council,Adults,Mental Capacity Act & DoLs,Services,15/10/2018,30195696,744.80,Revenue,SS Psychiatric Services Ltd,Hired Services
Peterborough City Council,Adults,Block Contracts,Third Party Payments,15/10/2018,30195697,6894.96,Revenue,Axiom Housing Association Ltd,Third Party Payments - Contract
Peterborough City Council,Education,HTS & CSC Transport,Contract Hire and Operating Leases,15/10/2018,30195698,1247.40,Revenue,Staffordshire County Council,Hired Transport
Peterborough City Council,City Centre Management,"Markets, Tourism & Events",Services,15/10/2018,30195701,672.50,Revenue,C N SECURITY,Security
Peterborough City Council,Commissioning and Commercial Operations,Clare Lodge,Repair & Maintenance of Buildings,15/10/2018,30195710,755.80,Revenue,ASSA Abloy Ltd T/A Chubb Locks,Premises Maintenance
Peterborough City Council,Financial Services,Finance,Services,15/10/2018,30195721,12352.50,Revenue,Penna Plc,Consultants Fees
Peterborough City Council,Adults,Independent Sector Placements,Services,15/10/2018,30195852,738.86,Revenue,Goldcare Homes t/a The Tudors Care Home,Residential Care
Peterborough City Council,Legal Services,Legal Services,Services,15/10/2018,30196705,785.00,Revenue,"Elliott, Ms Margot",Legal Costs
Peterborough City Council,Corporate,Corporate,Non Revenue,15/10/2018,30197772,843.97,Capital,UK Power Networks (operations) Ltd,Infrastructure
Peterborough City Council,Communities,Housing,Services,15/10/2018,30198186,1287.52,Revenue,Axiom - Peterborough Foyer,Financial Assistance
Peterborough City Council,Communities,Housing,Services,15/10/2018,30198267,550.00,Revenue,Redacted Personal Data,Financial Assistance
Peterborough City Council,Westcombe Engineering,Westcombe Engineering,"Tools, Equipment, Furniture & Materials",15/10/2018,30198393,904.40,Revenue,Barron Clark Castings Ltd,Materials
Peterborough City Council,Adults,Independent Sector Placements,Services,15/10/2018,30198445,-2343.00,Revenue,Augusta Care Ltd,Home Care
Peterborough City Council,Adults,Independent Sector Placements,Services,15/10/2018,30198446,-2343.00,Revenue,Augusta Care Ltd,Home Care
Peterborough City Council,HR,HR WFD & Training,Services,15/10/2018,30198507,1020.90,Revenue,Health Assured Ltd,Counselling
Peterborough City Council,HR,HR WFD & Training,Services,15/10/2018,30198508,1049.38,Revenue,Health Assured Ltd,Counselling
Peterborough City Council,Corporate,Corporate,Non Revenue,15/10/2018,30198509,5042.35,Balance Sheet,NHS Pensions,Pensions
Peterborough City Council,HR,HR WFD & Training,Services,15/10/2018,30198510,815.24,Revenue,Health Assured Ltd,Counselling
Peterborough City Council,Corporate,Corporate,Non Revenue,15/10/2018,30198511,64234.05,Balance Sheet,LGSS Cambridgeshire Pension Fund,Pensions
Peterborough City Council,Corporate,Corporate,Non Revenue,15/10/2018,30198514,487376.62,Balance Sheet,LGSS Cambridgeshire Pension Fund,Pensions
Peterborough City Council,Corporate,Corporate,Non Revenue,15/10/2018,30198515,15769.26,Balance Sheet,LGSS Cambridgeshire Pension Fund,Pensions
Peterborough City Council,Corporate,Corporate,Non Revenue,15/10/2018,30198516,9519.12,Balance Sheet,NHS Pensions,Pensions
Peterborough City Council,Corporate,Corporate,Non Revenue,15/10/2018,30198517,198352.04,Balance Sheet,LGSS Cambridgeshire Pension Fund,Pensions
Peterborough City Council,Commissioning and Commercial Operations,Clare Lodge,Agency Staff,15/10/2018,30198577,527.67,Revenue,Reed Specialist Recruitment Limited,External Temporary Staff
Peterborough City Council,Financial Services,Finance,Agency Staff,15/10/2018,30198583,915.00,Revenue,Penna Plc,External Temporary Staff
Peterborough City Council,Adults,Independent Sector Placements,Services,15/10/2018,8000124740,1979.86,Revenue,Allied Healthcare (UK) Ltd,Home Care
Peterborough City Council,Adults,Independent Sector Placements,Services,15/10/2018,8000124741,1764.72,Revenue,Allied Healthcare (UK) Ltd,Home Care
Peterborough City Council,Adults,Independent Sector Placements,Services,15/10/2018,8000124743,645.26,Revenue,Allied Healthcare (UK) Ltd,Home Care
Peterborough City Council,Adults,Independent Sector Placements,Services,15/10/2018,8000124745,1704.53,Revenue,Allied Healthcare (UK) Ltd,Home Care
Peterborough City Council,Adults,Independent Sector Placements,Services,15/10/2018,8000124746,546.48,Revenue,Allied Healthcare (UK) Ltd,Home Care
Peterborough City Council,Adults,Independent Sector Placements,Services,15/10/2018,8000124754,584.21,Revenue,Allied Healthcare (UK) Ltd,Home Care
Peterborough City Council,Adults,Independent Sector Placements,Services,15/10/2018,8000124755,624.24,Revenue,Allied Healthcare (UK) Ltd,Home Care
Peterborough City Council,Adults,Independent Sector Placements,Services,15/10/2018,8000124758,533.52,Revenue,Allied Healthcare (UK) Ltd,Home Care
Peterborough City Council,Adults,Independent Sector Placements,Services,15/10/2018,8000124760,2712.82,Revenue,Allied Healthcare (UK) Ltd,Home Care
Peterborough City Council,Adults,Independent Sector Placements,Services,15/10/2018,8000125116,1949.62,Revenue,Allied Healthcare (UK) Ltd,Home Care
Peterborough City Council,Adults,Independent Sector Placements,Services,15/10/2018,8000125117,1717.34,Revenue,Allied Healthcare (UK) Ltd,Home Care
Peterborough City Council,Adults,Independent Sector Placements,Services,15/10/2018,8000125119,651.02,Revenue,Allied Healthcare (UK) Ltd,Home Care
Peterborough City Council,Adults,Independent Sector Placements,Services,15/10/2018,8000125121,1668.82,Revenue,Allied Healthcare (UK) Ltd,Home Care
Peterborough City Council,Adults,Independent Sector Placements,Services,15/10/2018,8000125122,641.23,Revenue,Allied Healthcare (UK) Ltd,Home Care
Peterborough City Council,Adults,Independent Sector Placements,Services,15/10/2018,8000125133,618.34,Revenue,Allied Healthcare (UK) Ltd,Home Care
Peterborough City Council,Adults,Independent Sector Placements,Services,15/10/2018,8000125134,604.66,Revenue,Allied Healthcare (UK) Ltd,Home Care
Peterborough City Council,Adults,Independent Sector Placements,Services,15/10/2018,8000125137,522.43,Revenue,Allied Healthcare (UK) Ltd,Home Care
Peterborough City Council,Adults,Independent Sector Placements,Services,15/10/2018,8000125139,2664.00,Revenue,Allied Healthcare (UK) Ltd,Home Care
Peterborough City Council,Adults,Independent Sector Placements,Services,15/10/2018,8000126002,1683.95,Revenue,MEARS GROUP,Home Care
Peterborough City Council,Adults,Independent Sector Placements,Services,15/10/2018,8000126003,658.35,Revenue,MEARS GROUP,Home Care
Peterborough City Council,Adults,Independent Sector Placements,Services,15/10/2018,8000126303,508.35,Revenue,MEARS GROUP,Home Care
Peterborough City Council,Adults,Independent Sector Placements,Services,15/10/2018,8000126306,993.90,Revenue,MEARS GROUP,Home Care
Peterborough City Council,Adults,Independent Sector Placements,Services,15/10/2018,8000126311,1860.15,Revenue,MEARS GROUP,Home Care
Peterborough City Council,Adults,Independent Sector Placements,Services,15/10/2018,8000126312,624.45,Revenue,MEARS GROUP,Home Care
Peterborough City Council,Adults,Independent Sector Placements,Services,15/10/2018,8000126313,985.65,Revenue,MEARS GROUP,Home Care
Peterborough City Council,Adults,Independent Sector Placements,Services,15/10/2018,8000126314,604.65,Revenue,MEARS GROUP,Home Care
Peterborough City Council,Adults,Independent Sector Placements,Services,15/10/2018,8000126315,586.65,Revenue,MEARS GROUP,Home Care
Peterborough City Council,Adults,Independent Sector Placements,Services,15/10/2018,8000126316,1293.30,Revenue,MEARS GROUP,Home Care
Peterborough City Council,Adults,Independent Sector Placements,Services,15/10/2018,8000126317,772.50,Revenue,MEARS GROUP,Home Care
Peterborough City Council,Adults,Independent Sector Placements,Services,15/10/2018,8000126318,517.35,Revenue,MEARS GROUP,Home Care
Peterborough City Council,Adults,Independent Sector Placements,Services,15/10/2018,8000126324,654.45,Revenue,MEARS GROUP,Home Care
Peterborough City Council,Adults,Independent Sector Placements,Services,15/10/2018,8000126325,1672.50,Revenue,MEARS GROUP,Home Care
Peterborough City Council,Adults,Independent Sector Placements,Services,15/10/2018,8000126328,765.45,Revenue,MEARS GROUP,Home Care
Peterborough City Council,Adults,Independent Sector Placements,Services,15/10/2018,8000126331,805.20,Revenue,MEARS GROUP,Home Care
Peterborough City Council,Adults,Independent Sector Placements,Services,15/10/2018,8000126332,1584.60,Revenue,MEARS GROUP,Home Care
Peterborough City Council,Adults,Independent Sector Placements,Services,15/10/2018,8000126333,539.85,Revenue,MEARS GROUP,Home Care
Peterborough City Council,Adults,Independent Sector Placements,Services,15/10/2018,8000126338,570.60,Revenue,MEARS GROUP,Home Care
Peterborough City Council,Adults,Independent Sector Placements,Services,15/10/2018,8000126339,1045.95,Revenue,MEARS GROUP,Home Care
Peterborough City Council,Adults,Independent Sector Placements,Services,15/10/2018,8000126341,531.00,Revenue,MEARS GROUP,Home Care
Peterborough City Council,Adults,Independent Sector Placements,Services,15/10/2018,8000126347,636.00,Revenue,MEARS GROUP,Home Care
Peterborough City Council,Adults,Independent Sector Placements,Services,15/10/2018,8000126350,522.30,Revenue,MEARS GROUP,Home Care
Peterborough City Council,Adults,Independent Sector Placements,Services,15/10/2018,8000126351,849.45,Revenue,MEARS GROUP,Home Care
Peterborough City Council,Adults,Independent Sector Placements,Services,15/10/2018,8000126352,532.65,Revenue,MEARS GROUP,Home Care
Peterborough City Council,Adults,Independent Sector Placements,Services,15/10/2018,8000126353,576.15,Revenue,MEARS GROUP,Home Care
Peterborough City Council,Adults,Independent Sector Placements,Services,15/10/2018,8000126354,502.80,Revenue,MEARS GROUP,Home Care
Peterborough City Council,Adults,Independent Sector Placements,Services,15/10/2018,8000126355,2031.90,Revenue,MEARS GROUP,Home Care
Peterborough City Council,Adults,Independent Sector Placements,Services,15/10/2018,8000126357,1284.15,Revenue,MEARS GROUP,Home Care
Peterborough City Council,Adults,Independent Sector Placements,Services,15/10/2018,8000126358,807.15,Revenue,MEARS GROUP,Home Care
Peterborough City Council,Adults,Independent Sector Placements,Services,15/10/2018,8000126359,810.60,Revenue,MEARS GROUP,Home Care
Peterborough City Council,Adults,Independent Sector Placements,Services,15/10/2018,8000126362,858.00,Revenue,MEARS GROUP,Home Care
Peterborough City Council,Adults,Independent Sector Placements,Services,15/10/2018,8000126367,1223.70,Revenue,MEARS GROUP,Home Care
Peterborough City Council,Adults,Independent Sector Placements,Services,15/10/2018,8000126369,509.25,Revenue,MEARS GROUP,Home Care
Peterborough City Council,Adults,Independent Sector Placements,Services,15/10/2018,8000126371,544.20,Revenue,MEARS GROUP,Home Care
Peterborough City Council,Adults,Independent Sector Placements,Services,15/10/2018,8000126373,702.15,Revenue,MEARS GROUP,Home Care
Peterborough City Council,Adults,Independent Sector Placements,Services,15/10/2018,8000126375,900.90,Revenue,MEARS GROUP,Home Care
Peterborough City Council,Adults,Independent Sector Placements,Services,15/10/2018,8000126570,816.15,Revenue,MEARS GROUP,Home Care
Peterborough City Council,Adults,Independent Sector Placements,Services,15/10/2018,8000126578,624.30,Revenue,MEARS GROUP,Home Care
Peterborough City Council,Adults,Independent Sector Placements,Services,15/10/2018,8000126585,575.55,Revenue,MEARS GROUP,Home Care
Peterborough City Council,Adults,Independent Sector Placements,Services,15/10/2018,8000126596,675.90,Revenue,MEARS GROUP,Home Care
Peterborough City Council,Adults,Independent Sector Placements,Services,15/10/2018,8000126597,514.35,Revenue,MEARS GROUP,Home Care
Peterborough City Council,Adults,Independent Sector Placements,Services,15/10/2018,8000126600,840.30,Revenue,MEARS GROUP,Home Care
Peterborough City Council,Adults,Independent Sector Placements,Services,15/10/2018,8000126606,564.60,Revenue,MEARS GROUP,Home Care
Peterborough City Council,Adults,Independent Sector Placements,Services,15/10/2018,8000126608,2004.00,Revenue,MEARS GROUP,Home Care
Peterborough City Council,Adults,Independent Sector Placements,Services,15/10/2018,8000126610,801.75,Revenue,MEARS GROUP,Home Care
Peterborough City Council,Adults,Independent Sector Placements,Services,15/10/2018,8000126614,709.16,Revenue,MEARS GROUP,Home Care
Peterborough City Council,Adults,Independent Sector Placements,Services,15/10/2018,8000126616,621.03,Revenue,MEARS GROUP,Home Care
Peterborough City Council,Adults,Independent Sector Placements,Services,15/10/2018,8000126617,817.02,Revenue,MEARS GROUP,Home Care
Peterborough City Council,Education,HTS & CSC Transport,Contract Hire and Operating Leases,15/10/2018,8000126883,4278.00,Revenue,A2B Euro Cars,Hired Transport
Peterborough City Council,Education,HTS & CSC Transport,Contract Hire and Operating Leases,15/10/2018,8000126884,4214.00,Revenue,A2B Euro Cars,Hired Transport
Peterborough City Council,Education,HTS & CSC Transport,Contract Hire and Operating Leases,15/10/2018,8000126885,4281.00,Revenue,A2B Euro Cars,Hired Transport
Peterborough City Council,Education,HTS & CSC Transport,Contract Hire and Operating Leases,15/10/2018,8000126886,4217.00,Revenue,A2B Euro Cars,Hired Transport
Peterborough City Council,Education,HTS & CSC Transport,Contract Hire and Operating Leases,15/10/2018,8000126888,973.84,Revenue,Peterborough Cars,Hired Transport
Peterborough City Council,Education,HTS & CSC Transport,Contract Hire and Operating Leases,15/10/2018,8000126889,1575.54,Revenue,Peterborough Cars,Hired Transport
Peterborough City Council,Education,HTS & CSC Transport,Contract Hire and Operating Leases,15/10/2018,8000126890,1417.90,Revenue,Peterborough Cars,Hired Transport
Peterborough City Council,Education,HTS & CSC Transport,Contract Hire and Operating Leases,15/10/2018,8000126891,1573.64,Revenue,Peterborough Cars,Hired Transport
Peterborough City Council,Education,HTS & CSC Transport,Contract Hire and Operating Leases,15/10/2018,8000126892,889.87,Revenue,Redacted Personal Data,Hired Transport
Peterborough City Council,Education,HTS & CSC Transport,Contract Hire and Operating Leases,15/10/2018,8000126893,874.12,Revenue,Redacted Personal Data,Hired Transport
Peterborough City Council,Education,HTS & CSC Transport,Contract Hire and Operating Leases,15/10/2018,8000126895,527.62,Revenue,Redacted Personal Data,Hired Transport
Peterborough City Council,Adults,Independent Sector Placements,Services,15/10/2018,8000126906,6758.30,Revenue,Augusta Care Ltd,Home Care
Peterborough City Council,Adults,Independent Sector Placements,Services,15/10/2018,8000126908,6524.00,Revenue,Augusta Care Ltd,Home Care
Peterborough City Council,Adults,Independent Sector Placements,Services,15/10/2018,8000126909,2073.21,Revenue,Augusta Care Ltd,Home Care
Peterborough City Council,Adults,Independent Sector Placements,Services,15/10/2018,8000126914,6524.00,Revenue,Augusta Care Ltd,Home Care
Peterborough City Council,Adults,Independent Sector Placements,Services,15/10/2018,8000126915,2764.28,Revenue,Augusta Care Ltd,Home Care
Peterborough City Council,Adults,Independent Sector Placements,Services,15/10/2018,8000126916,4091.52,Revenue,Augusta Care Ltd,Home Care
Peterborough City Council,Adults,Independent Sector Placements,Services,15/10/2018,8000126917,2711.80,Revenue,Augusta Care Ltd,Home Care
Peterborough City Council,Adults,Independent Sector Placements,Services,15/10/2018,8000126918,6524.00,Revenue,Augusta Care Ltd,Home Care
Peterborough City Council,Adults,Independent Sector Placements,Services,15/10/2018,8000126919,4252.00,Revenue,Augusta Care Ltd,Home Care
Peterborough City Council,Adults,Independent Sector Placements,Services,15/10/2018,8000126920,2764.28,Revenue,Augusta Care Ltd,Home Care
Peterborough City Council,Children's & Safeguarding,Commissioning - CSC,Third Party Payments,15/10/2018,8000128220,738372.50,Revenue,IAS TACT,Third Party Payments - Contract
Peterborough City Council,Children's & Safeguarding,Children's Social Care,Services,17/10/2018,30185971,926.40,Revenue,Florinee Homes Ltd,Purchased Social Care Services
Peterborough City Council,Children's & Safeguarding,Access to Resources & Specialist Commissioning,Services,17/10/2018,30188646,34833.34,Revenue,Acorn Care & Education Ltd,Boarding Out Fees
Peterborough City Council,Children's & Safeguarding,Children's Social Care,Third Party Payments,17/10/2018,30190900,81548.00,Revenue,"CGL - Change, Grow, Live",Third Party Payments - Contract
Peterborough City Council,Children's & Safeguarding,Children's Social Care,Third Party Payments,17/10/2018,30190901,81548.00,Revenue,"CGL - Change, Grow, Live",Third Party Payments - Contract
Peterborough City Council,Public Health,PH Commissioning,Third Party Payments,17/10/2018,30193456,357675.00,Revenue,Cambridgeshire Community Services,Third Party Payments - Contract
Peterborough City Council,Legal Services,Legal Services,Services,17/10/2018,30194194,900.00,Revenue,Chantelle Barker,Legal Costs
Peterborough City Council,Communities,Cohesion,Third Party Payments,17/10/2018,30194540,25984.20,Revenue,"CGL - Change, Grow, Live",Third Party Payments - Contract
Peterborough City Council,Communities,Cohesion,Third Party Payments,17/10/2018,30194541,6350.00,Revenue,"CGL - Change, Grow, Live",Third Party Payments - Contract
Peterborough City Council,Corporate,Corporate,Non Revenue,17/10/2018,30194554,71781.93,Capital,Enterprise Managed Services Limited,Building And Site Works
Peterborough City Council,Children's & Safeguarding,Child Health,Services,17/10/2018,30195324,12931.66,Revenue,Vivacity Culture and Leisure,Purchased Social Care Services
Peterborough City Council,Adults,Independent Sector Placements,Services,17/10/2018,30195459,2677.32,Revenue,HEREWARD CARE SERVICES LIMITED,Residential Care
Peterborough City Council,Adults,Independent Sector Placements,Services,17/10/2018,30195460,2671.84,Revenue,HEREWARD CARE SERVICES LIMITED,Residential Care
Peterborough City Council,Adults,Independent Sector Placements,Services,17/10/2018,30195461,2607.00,Revenue,HEREWARD CARE SERVICES LIMITED,Residential Care
Peterborough City Council,Adults,Independent Sector Placements,Services,17/10/2018,30195462,4491.36,Revenue,HEREWARD CARE SERVICES LIMITED,Residential Care
Peterborough City Council,Adults,Independent Sector Placements,Services,17/10/2018,30195463,3431.12,Revenue,HEREWARD CARE SERVICES LIMITED,Residential Care
Peterborough City Council,Adults,Independent Sector Placements,Services,17/10/2018,30195464,2167.60,Revenue,HEREWARD CARE SERVICES LIMITED,Residential Care
Peterborough City Council,ICT,ICT,Services,17/10/2018,30195623,36629.54,Revenue,Serco Ltd,Computer Software
Peterborough City Council,ICT,ICT,Services,17/10/2018,30195631,608.68,Revenue,Serco Ltd,Computer Software
Peterborough City Council,Adults,Independent Sector Placements,Services,17/10/2018,30195682,-3187.48,Revenue,HEREWARD CARE SERVICES LIMITED,Residential Care
Peterborough City Council,Adults,Block Contracts,Third Party Payments,17/10/2018,30195702,60548.12,Revenue,HEREWARD CARE SERVICES LIMITED,Third Party Payments - Contract
Peterborough City Council,ICT,ICT,Agency Staff,17/10/2018,30195714,500.00,Revenue,Cranford Solutions Ltd,External Temporary Staff
Peterborough City Council,Corporate,Corporate,Non Revenue,17/10/2018,30195715,7950.00,Capital,Quadrant Security Group Ltd,Infrastructure
Peterborough City Council,Corporate,Corporate,Non Revenue,17/10/2018,30195718,580.00,Capital,Smooth Removals,Building And Site Works
Peterborough City Council,Parking Services,Parking Services,Services,17/10/2018,30195720,3000.00,Revenue,C N SECURITY,Security
Peterborough City Council,Marketing & Communications,Marketing & Communications,Services,17/10/2018,30195726,1994.94,Revenue,Signs Express,Printing
Peterborough City Council,Legal Services,Legal Services,Agency Staff,17/10/2018,30195739,765.00,Revenue,Venn Group Ltd,External Temporary Staff
Peterborough City Council,Legal Services,Legal Services,Agency Staff,17/10/2018,30195743,748.00,Revenue,Venn Group Ltd,External Temporary Staff
Peterborough City Council,Adults,Home Services Delivery Model,Third Party Payments,17/10/2018,30195754,2933.36,Revenue,NACRO,Grant-Third Party
Peterborough City Council,Peterborough Highway Services,Highway & Drainage Control,Services,17/10/2018,30195791,693.66,Revenue,AECOM I & E Ltd,Consultants Fees
Peterborough City Council,Education,Financing - Resources,Services,17/10/2018,30195794,128313.89,Revenue,New College Stamford,Education Expenses
Peterborough City Council,Adults,Mental Health,Services,17/10/2018,30195918,9590.70,Revenue,Mind in Cambridgeshire Ltd,Contract Services
Peterborough City Council,Adults,Home Services Delivery Model,Third Party Payments,17/10/2018,30195919,1777.80,Revenue,Mind in Cambridgeshire Ltd,Grant-Third Party
Peterborough City Council,Corporate,Corporate,Non Revenue,17/10/2018,30195920,1500.00,Capital,Barker Storey Matthews,Consultants Fees
Peterborough City Council,Energy,Environment Capital,Services,17/10/2018,30195925,6652.80,Revenue,B & H Projects Ltd,Consultants Fees
Peterborough City Council,Children's & Safeguarding,CSC Quality Assurance,Third Party Payments,17/10/2018,30195926,5270.83,Revenue,NHS Cambs & P'boro CCG (Clinical Commissioning Group),Third Party Payments - Contract
Peterborough City Council,Corporate,Corporate,Non Revenue,17/10/2018,30195927,25000.00,Capital,WYG,Consultants Fees
Peterborough City Council,City Centre Management,"Markets, Tourism & Events",Services,17/10/2018,30195930,1500.00,Revenue,Advance Performance UK Ltd,Marketing
Peterborough City Council,Development and Construction,Planning Compliance,Agency Staff,17/10/2018,30195949,1482.30,Revenue,Park Avenue Recruitment Limited,External Temporary Staff
Peterborough City Council,Legal Services,Legal Services,Agency Staff,17/10/2018,30195950,2062.50,Revenue,Venn Group Ltd,External Temporary Staff
Peterborough City Council,Adults,Independent Sector Placements,Services,17/10/2018,30196014,11780.00,Revenue,Exclusive Secure Care Services,Home Care
Peterborough City Council,Adults,Independent Sector Placements,Services,17/10/2018,30196043,1385.36,Revenue,Barchester Wood Grange,Residential Care
Peterborough City Council,Adults,Independent Sector Placements,Services,17/10/2018,30196045,1459.52,Revenue,PRIME LIFE LTD (Caenarvon House),Residential Care
Peterborough City Council,Peterborough Highway Services,Network and Traffic Management,Services,17/10/2018,30196063,1551.80,Revenue,Johnston Press Midlands Division,Advertising
Peterborough City Council,Communities,Cultural Services,"Tools, Equipment, Furniture & Materials",17/10/2018,30196066,636.00,Revenue,Chamberlain Music Education,Equipment Purchase
Peterborough City Council,Peterborough Highway Services,Network and Traffic Management,Services,17/10/2018,30196068,919.58,Revenue,Johnston Press Midlands Division,Advertising
Peterborough City Council,ICT,ICT,Services,17/10/2018,30196069,9475.38,Revenue,Northgate Public Services (UK) Ltd,Computer Software
Peterborough City Council,Peterborough Highway Services,Network and Traffic Management,Services,17/10/2018,30196070,747.16,Revenue,Johnston Press Midlands Division,Advertising
Peterborough City Council,Peterborough Highway Services,Network and Traffic Management,Interview & Training Expenses,17/10/2018,30196121,1250.00,Revenue,PITNEY BOWES SOFTWARE EUROPE LTD,Training
Peterborough City Council,Commissioning and Commercial Operations,Commissioning,Services,17/10/2018,30196142,1796.75,Revenue,BDP Social Care Ltd,Hired Services
Peterborough City Council,Children's & Safeguarding,Early Help ASC/CSC,Services,17/10/2018,30196143,1243.55,Revenue,BDP Social Care Ltd,Hired Services
Peterborough City Council,Adults,Strategic Commissioning - Management,Agency Staff,17/10/2018,30196144,2058.84,Revenue,Badenoch & Clark Ltd,External Temporary Staff
Peterborough City Council,Adults,Strategic Commissioning - Management,Agency Staff,17/10/2018,30196145,10000.08,Revenue,Badenoch & Clark Ltd,External Temporary Staff
Peterborough City Council,Peterborough Serco Strategic Partnership,Peterborough Serco Strategic Partnership,Services,17/10/2018,30196207,553.77,Revenue,Rossendales C B Ltd,Debt Collection
Peterborough City Council,Communities,Cultural Services,"Tools, Equipment, Furniture & Materials",17/10/2018,30196259,9090.51,Revenue,Chamberlain Music Education,Equipment Purchase
Peterborough City Council,Adults,Independent Sector Placements,Services,17/10/2018,30196262,3175.00,Revenue,HC-One Oval Limited,Residential Care
Peterborough City Council,Adults,Independent Sector Placements,Services,17/10/2018,30196263,2575.00,Revenue,HC-One Oval Limited,Residential Care
Peterborough City Council,Adults,Independent Sector Placements,Services,17/10/2018,30196271,2616.88,Revenue,HC-One Oval Limited,Residential Care
Peterborough City Council,Adults,Independent Sector Placements,Services,17/10/2018,30196273,1574.20,Revenue,HC-One Oval Limited,Residential Care
Peterborough City Council,Corporate,Corporate,Non Revenue,17/10/2018,30196316,1980.00,Capital,Eastern Shires Purchasing Organisation,Furniture And Equipment Purchase
Peterborough City Council,Adults,Independent Sector Placements,Services,17/10/2018,30196359,1188.74,Revenue,Voyage,Home Care
Peterborough City Council,Corporate,Corporate,Non Revenue,17/10/2018,30196395,155221.30,Capital,R G Carter Cambridge Ltd,Building And Site Works
Peterborough City Council,Communities,Housing Enforcement,Repair & Maintenance of Buildings,17/10/2018,30196396,592.00,Revenue,Antares Installations Ltd,Premises Repairs
